Workbook

Sheet Settings (hidden)
C1: Department Database | D1: Entities name ENE publication | E1: Entities name Database | F1: Examiner | G1: ExamTel | H1: ExamMail | I1: TechName | J1: TechTel | K1: TechMail | L1: Type | M1: Consol | N1: PFMA | O1: PE_No1 | P1: PE_No | Q1: Entity Abbreviation
C2: =INDEX(($C$17:$C$240),MATCH($E$2,$E$17:$E$240,0)) -> Water and Sanitation | D2: =INDEX(($D$17:$D$240),MATCH($E$2,$E$17:$E$240,0)) -> Consolidated Water Boards | E2: =Information!A14 -> ZWater Boards Consolidation | F2: =INDEX(($F$17:$F$240),MATCH($E$2,$E$17:$E$240,0)) -> Iqbal Mahomed Alli | G2: =INDEX(($G$17:$G$240),MATCH($E$2,$E$17:$E$240,0)) -> (012) 315 5809 | H2: =INDEX(($H$17:$H$240),MATCH($E$2,$E$17:$E$240,0)) -> iqbal.mahomedalli@treasury.gov.za | I2: =INDEX(($I$17:$I$240),MATCH($E$2,$E$17:$E$240,0)) -> Mntazi Msiza | J2: =INDEX(($J$17:$J$240),MATCH($E$2,$E$17:$E$240,0)) -> (012) 315 5876 | K2: =INDEX(($K$17:$K$240),MATCH($E$2,$E$17:$E$240,0)) -> Mntazi.msiza@treasury.gov.za | L2: =INDEX(($L$17:$L$240),MATCH($E$2,$E$17:$E$240,0)) -> 1 | M2: =INDEX(($M$17:$M$240),MATCH($E$2,$E$17:$E$240,0)) -> 1 | N2: =INDEX(($N$17:$N$240),MATCH($E$2,$E$17:$E$240,0)) -> 3B | O2: =INDEX(($O$17:$O$240),MATCH($E$2,$E$17:$E$240,0)) -> PE153 | P2: =INDEX(($P$17:$P$240),MATCH($E$2,$E$17:$E$240,0)) -> 153 | Q2: =INDEX(($Q$17:$Q$240),MATCH($E$2,$E$17:$E$240,0)) -> Zwaterboards
Z14: Related Party | AO14: Personnel | BF14: Infrastructure
AB15: =COUNTA(AB18:AB236) -> 41 | AC15: =COUNTA(AC18:AC235) -> 146 | AD15: =COUNTA(AD18:AD235) -> 16 | AE15: =COUNTA(AE18:AE236) -> 14 | AF15: 16 | AG15: 15 | AH15: 13 | AI15: 14 | AJ15: 15 | AK15: 14 | AL15: =COUNTA(AL18:AL236) -> 15 | AS15: =COUNTA(AS18:AS20) -> 3 | AT15: =COUNTA(AT18:AT20) -> 3 | AU15: =COUNTA(AU18:AU19) -> 2 | AV15: 2 | AW15: 2 | AX15: 2 | AY15: 2 | AZ15: 2
C16: Department | D16: EntityNameENE | E16: EntityName | F16: Examiner | G16: ExamTel | H16: ExamMail | I16: TechName | J16: TechTel | K16: TechMail | L16: Type_Code | M16: ConsolIndi | N16: PFMA | O16: PE_No1 | P16: PE_No | Q16: ENT_Abrev | R16: Sorce | T16: Years | W16: Priorities | Z16: Entity revenue | AA16: Related Party category | AB16: Related Party Name | AO16: Level | AP16: Salary Level | AQ16: Salary Level 202022 | AR16: Occupation | BA16: Category | BB16: Occupation | BC16: Components of Remuneration | BF16: SIP Category | BG16: InfraList1 | BH16: InfraList2 | BI16: InfraList3 | BJ16: InfraList4 | BK16: SCOA level | BO16: Headings
C17: Science and Innovation | D17: Academy of Science of South Africa | E17: Academy of Science of South Africa | F17: Thabiso Molewa | G17: (012) 395 6780 | H17: thabiso.molewa@treasury.gov.za | I17: Vuyo Ngqukumba | J17: (012) 315 5760 | K17: Vuyo.Ngqukumba@treasury.gov.za | L17: 1 | M17: 1 | N17: Not listed | O17: PE8 | P17: 8 | Q17: ASSAF | R17: 202324 | T17: 2019/20 | W17: Priority 1: A Capable, Ethical and Developmental State | Z17: Advertising | AA17: National Department | AB17: National Department | AC17: Other Public Entities | AD17: Eastern Cape | AE17: Free State | AF17: Gauteng | AG17: Kwazulu-Natal | AH17: Limpopo | AI17: Mpumalanga | AJ17: Northern Cape | AK17: North West | AL17: Western Cape | AO17: 1 | AP17: ≤104 071 | AR17: Executive Board Members | AS17: Executive Board Members | AT17: Executive Management | AU17: Senior Management | AV17: Middle Management | AW17: Professionals | AX17: Skilled | AY17: Semi-skilled | AZ17: Very low skilled | BA17: Permanent | BB17: Actors | BC17: Guaranteed package | BF17: Not related to SIPs | BG17: Programme | BH17: New infrastructure assets | BI17: Site identification | BJ17: Mega | BK17: Residential buildings | BO17: Budget
C18: National Treasury | D18: Accounting Standards Board | E18: Accounting Standards Board | F18: Mokgatla Tema | G18: (012) 315 5948 | H18: mokgatla.tema@treasury.gov.za | I18: Patrick Mbedzi | J18: (012) 315 5912 | K18: Patrick.Mbedzi@treasury.gov.za | L18: 1 | M18: 1 | N18: 3A | O18: PE7 | P18: 7 | Q18: ASB | R18: 202324 | T18: 2020/21 | W18: Priority 2: Economic Transformation and Job Creation | Z18: Communication (G&S) | AA18: Other Public Entities | AB18: Science and Innovation | AC18: Academy of Science of South Africa | AD18: Office of the Premier | AE18: Office of the Premier | AF18: Office of the Premier | AG18: Office of the Premier | AH18: Office of the Premier | AI18: Office of the Premier | AJ18: Office of the Premier | AK18: Office of the Premier | AL18: Premier | AO18: 2 | AP18: 104 072 - 124 433 | AR18: Executive Management | AS18: Guaranteed package | AT18: Guaranteed package | AU18: Guaranteed package | AV18: Guaranteed package | AW18: Guaranteed package | AX18: Guaranteed package | AY18: Guaranteed package | AZ18: Guaranteed package | BA18: Temporary/Contract | BB18: Adjudicators | BC18: Performance bonus | BF18: SIP 1: Unlocking the northern mineral belt with Waterberg as Catalyst | BG18: Project | BH18: Upgrading and additions | BI18: Pre-feasibility | BJ18: Large | BK18: Non-residential buildings | BO18: Audited outcome
C19: International Relations and Cooperation | D19: African Renaissance and International Cooperation Fund | E19: African Renaissance and International Cooperation Fund | F19: George Tembo | G19: (012) 315 5514 | H19: george.tembo@treasury.gov.za | I19: Patrick Mbedzi | J19: (012) 315 5912 | K19: Patrick.Mbedzi@treasury.gov.za | L19: 3 | M19: 1 | N19: 3A | O19: PE2 | P19: 2 | Q19: ARICF | R19: 202324 | T19: 2021/22 | W19: Priority 3: Education, Skills and Health | Z19: Computer services | AA19: Eastern Cape | AB19: National Treasury | AC19: Accounting Standards Board | AD19: Provincial Legislature | AE19: Provincial Legislature | AF19: Provincial Legislature | AG19: Provincial Legislature | AH19: Provincial Legislature | AI19: Provincial Legislature | AJ19: Provincial Legislature | AK19: Provincial Legislature | AL19: Transport and Public Works | AO19: 3 | AP19: 124 434 - 147 459 | AR19: Senior Management | AS19: Performance bonus | AT19: Performance bonus | AU19: Other | AV19: Other | AW19: Other | AX19: Other | AY19: Other | AZ19: Other | BB19: Administrative and related professionals | BC19: Other | BF19: SIP 2: Durban-Free State Gauteng Logistics and Industrial Corridor | BH19: Rehabilitation and refurbishment | BI19: Feasibility | BJ19: Small | BK19: Investment property | BO19: Budget
C20: Public Works and Infrastructure | D20: Agrément South Africa | E20: Agrément South Africa | F20: George Tembo | G20: (012) 315 5514 | H20: george.tembo@treasury.gov.za | I20: Patrick Mbedzi | J20: (012) 315 5912 | K20: Patrick.Mbedzi@treasury.gov.za | L20: 1 | M20: 1 | N20: 3A | O20: PE246 | P20: 246 | Q20: ASA | R20: 202324 | T20: 2022/23 | W20: Priority 4: Consolidating the Social Wage through Reliable and Quality Basic Services | Z20: Consultants: Business and advisory services | AA20: Free State | AB20: International Relations and Cooperation | AC20: African Renaissance and International Cooperation Fund | AD20: Health | AE20: Economic, Small Business Development, Tourism and Environmental Affairs | AF20: Economic Development | AG20: Health | AH20: Health | AI20: Provincial Treasury | AJ20: Transport, Safety and Liaison | AK20: Health | AL20: Agriculture | AO20: 4 | AP20: 147 460 - 176 308 | AR20: Middle Management | AS20: Other | AT20: Other | BB20: Agriculture related | BF20: Sip 3: South eastern note and corridor development | BH20: Maintenance and repair | BI20: Design | BK20: Heritage assets | BO20: Audited outcome
C21: Agriculture, Land Reform and Rural Development | D21: Agricultural land holding account | E21: Agricultural Land Holding Account | F21: Humbelani Ramuedzisi | G21: (012) 315 5585 | H21: humbelani.ramuedzisi@treasury.gov.za | I21: Vuyo Ngqukumba | J21: (012) 315 5760 | K21: Vuyo.Ngqukumba@treasury.gov.za | L21: 1 | M21: 1 | N21: Not listed | O21: PE62 | P21: 62 | Q21: ALHA | R21: 202324 | T21: 2023/24 | W21: Priority 5: Spatial Integration, Human Settlements and Local Government | Z21: Infrastructure and planning services | AA21: Gauteng | AB21: Public Works and Infrastructure | AC21: Agrement South Africa | AD21: Social Development | AE21: Provincial Treasury | AF21: Health | AG21: Social Development | AH21: Social Development | AI21: Co-Operative Governance and Traditional Affairs | AJ21: Education | AK21: Arts, Culture, Sports and Recreation | AL21: Economic Development and Tourism | AO21: 5 | AP21: 176 309 - 211 712 | AR21: Professionals | BB21: Analysts | BF21: SIP 4: Unlocking the economic opportunities in the Both West Province | BI21: Tender | BK21: Other fixed structures | BO21: Budget
C22: Agriculture, Land Reform and Rural Development | D22: Agricultural Research Council | E22: Agricultural Research Council | F22: Humbelani Ramuedzisi | G22: (012) 315 5585 | H22: humbelani.ramuedzisi@treasury.gov.za | I22: Vuyo Ngqukumba | J22: (012) 315 5760 | K22: Vuyo.Ngqukumba@treasury.gov.za | L22: 1 | M22: 1 | N22: 3A | O22: PE5 | P22: 5 | Q22: ARC | R22: 202324 | T22: 2024/25 | W22: Priority 6: Social Cohesion and Safer Communities | Z22: Laboratory services | AA22: Kwazulu-Natal | AB22: Agriculture, Land Reform and Rural Development | AC22: Agricultural Land Holding Account | AD22: Roads and Public Works | AE22: Health | AF22: Education | AG22: Education | AH22: Roads and Public Works | AI22: Agriculture, Rural Development, Land and Environmental Affairs | AJ22: Roads and Public Works | AK22: Community Safety and Transport Management | AL22: Cultural Affairs and Sport | AO22: 6 | AP22: 211 713 - 261 370 | AR22: Skilled | BB22: Appraisers-valuers and related professionals | BF22: SIP 5: Saldanha-Northern Cape Development Corridor | BI22: Construction | BO22: Audited outcome
C23: Higher Education and Training | D23: Agricultural Sector Education and Training Authority | E23: Agricultural Sector Education and Training Authority | F23: Spencer Janari | G23: (012) 315 5436 | H23: spencer.janari@treasury.gov.za | I23: Vuyo Ngqukumba | J23: (012) 315 5760 | K23: Vuyo.Ngqukumba@treasury.gov.za | L23: 2 | M23: 3 | N23: 3A | O23: PE214 | P23: 214 | Q23: AgriSETA | R23: 202324 | T23: 2025/26 | W23: Priority 7: A Better Africa and World | Z23: Legal services (G&S) | AA23: Limpopo | AB23: Higher Education and Training | AC23: Agricultural Research Council | AD23: Education | AE23: Education | AF23: Social Development | AG23: Cooperative Governance and Traditional Affairs | AH23: Education | AI23: Economic Development and Tourism | AJ23: Economic Development and Tourism | AK23: Economic Development, Environment, Conservation and Tourism | AL23: Local Government | AO23: 7 | AP23: 261 371 - 321 542 | AR23: Semi-skilled | BB23: Architects and related professionals | BF23: SIP 6: Integrated municipal infrastructure project | BI23: Hand over | BO23: Budget estimate
C24: Transport | D24: Air Traffic and Navigation Services Company Limited | E24: Air Traffic and Navigation Services Company | F24: Luyolo Ntlangula | G24: (012) 315 5571 | H24: luyolo.ntlangula@treasury.gov.za | I24: Mntazi Msiza | J24: (012) 315 5876 | K24: Mntazi.msiza@treasury.gov.za | L24: 1 | M24: 3 | N24: 2 | O24: PE9 | P24: 9 | Q24: ATNS | R24: 202324 | Z24: Science and technological services | AA24: Mpumalanga | AB24: Transport | AC24: Amatola Water Board | AD24: Local Government and Traditional Affairs | AE24: Social Development | AF24: Cooperative Governance and Traditional Affairs | AG24: Agriculture and Rural Development | AH24: Local Government and Traditional Affairs | AI24: Education | AJ24: Sport, Arts and Culture | AK24: Education | AL24: Provincial Parliament | AO24: 8 | AP24: 321 543 - 382 244 | AR24: Very low skilled | BB24: Archivists and related professionals | BF24: SIP 7: Integrated urban space and public transport programme | BI24: Handed over | BO24: Approved budget
C25: Transport | D25: The Airports Company Limited | E25: Airports Company | F25: Luyolo Ntlangula | G25: (012) 315 5571 | H25: luyolo.ntlangula@treasury.gov.za | I25: Mntazi Msiza | J25: (012) 315 5876 | K25: Mntazi.msiza@treasury.gov.za | L25: 1 | M25: 3 | N25: 2 | O25: PE1 | P25: 1 | Q25: ACSA | R25: 202324 | Z25: Contractors | AA25: Northern Cape | AB25: Public Enterprises | AC25: Armaments Corporation of South Africa Limited | AD25: Rural Development and Agrarian Reform | AE25: Cooperative Governance and Traditional Affairs | AF25: Human Settlements | AG25: Economic Development, Environmental Affairs and Tourism | AH25: Rural Development and Agrarian Reform | AI25: Public Works, Roads and Transport | AJ25: Provincial Treasury | AK25: Local Government and Traditional Affairs | AL25: Provincial Treasury | AO25: 9 | AP25: 382 245 - 477 090 | BB25: Artisans and related professionals | BF25: SIP 8: Green energy in support of the South African economy | BI25: On hold | BO25: Changes from budget estimate
C26: Public Enterprises | D26: Alexkor Limited | E26: Alexkor Limited | F26: Isaac Kurasha | G26: (012) 315 5213 | H26: Isaac.Kurasha@treasury.gov.za | I26: Sihle Manqele | J26: (012) 406 9174 | K26: Sihle.Manqele@treasury.gov.za | L26: 1 | M26: 3 | N26: 2 | O26: PE4 | P26: 4 | Q26: Alexkor | R26: 202324 | Z26: Agency and support/outsourced services | AA26: North West | AB26: Water and Sanitation | AC26: Bloem Water | AD26: Economic Development, Environmental Affairs and Tourism | AE26: Public Works and Infrastructure | AF26: Roads and Transport | AG26: Transport | AH26: Economic Development, Environmental Affairs and Tourism | AI26: Community Safety, Security and Liaison | AJ26: Cooperative Governance, Human Settlements and Traditional Affairs | AK26: Human Settlements | AL26: Community Safety | AO26: 10 | AP26: 477 091 - 744 255 | BB26: Arts and culture related | BF26: SIP 9: Electricity generations to support socio-economic development | BI26: Complete | BO26: Budget estimate
C27: Water and Sanitation | D27: Amatola Water Board | E27: Amatola Water Board | F27: Iqbal Mahomed Alli | G27: (012) 315 5809 | H27: iqbal.mahomedalli@treasury.gov.za | I27: Mntazi Msiza | J27: (012) 315 5876 | K27: Mntazi.msiza@treasury.gov.za | L27: 1 | M27: 3 | N27: 3B | O27: PE215 | P27: 215 | Q27: Amatola | R27: 202324 | Z27: Fleet services (including government motor transport) | AA27: Western Cape | AB27: Sport, Arts and Culture | AC27: Boxing South Africa | AD27: Transport | AE27: Police, Roads and Transport | AF27: Community Safety | AG27: Human Settlements | AH27: Transport | AI27: Health | AJ27: Health | AK27: Public Works and Roads | AL27: Education | AO27: 11 | AP27: 744 256 - 882 041 | BB27: Asset controllers and related professionals | BF27: SIP 10: Electricity transmission and distribution for all | BI27: On-going | BO27: Revised budget estimate
C28: Sport, Arts and Culture | D28: National English Literary Museum | E28: Amazwi – South African Museum of Literature | F28: Judy Naidoo | G28: (012) 315 5269 | H28: judy.naidoo@treasury.gov.za | I28: Patrick Mbedzi | J28: (012) 315 5912 | K28: Patrick.Mbedzi@treasury.gov.za | L28: 1 | M28: 3 | N28: 3A | O28: PE191 | P28: 191 | Q28: Amazwi | R28: 202324 | Z28: Housing | AB28: Defence | AC28: Brand SA | AD28: Human Settlements | AE28: Agriculture and Rural Development | AF28: Agriculture and Rural Development | AG28: Provincial Treasury | AH28: Provincial Planning and Treasury | AI28: Culture, Sport and Recreation | AJ28: Social Development | AK28: Provincial Planning and Treasury | AL28: Health | AO28: 12 | AP28: 882 042 - 1 073 185 | BB28: Attendants | BF28: SIP 11: Agri-logistics and rural infrastructure | BO28: Changes from budget estimate
C29: Defence | D29: Armaments Corporation of South Africa, Limited | E29: Armaments Corporation of South Africa Limited | F29: Mashudu Bidzha | G29: (012) 315 5344 | H29: mashudu.bidzha@treasury.gov.za | I29: Mntazi Msiza | J29: (012) 315 5876 | K29: Mntazi.msiza@treasury.gov.za | L29: 1 | M29: 1 | N29: 2 | O29: PE6 | P29: 6 | Q29: ARMSCOR | R29: 202324 | Z29: Inventory: Clothing material and accessories | AB29: Government Communication and Information System | AC29: Breede-Gouritz Catchment Management Agency | AD29: Provincial Planning and Treasury | AE29: Sport, Arts, Culture and Recreation | AF29: Sport, Arts, Culture and Recreation | AG29: Arts and Culture | AH29: Sport, Recreation, Arts and Culture | AI29: Social Development | AJ29: Agriculture, Land Reform and Rural Development | AK29: Social Development | AL29: Social Development | AO29: 13 | AP29: 1 0731 86 - 1 269 951 | BB29: Auditors and related professionals | BF29: SIP 12: Revitalisation of public hospitals and other health facilities | BO29: Budget estimate
C30: Sport, Arts and Culture | D30: Artscape | E30: Artscape | F30: Judy Naidoo | G30: (012) 315 5269 | H30: judy.naidoo@treasury.gov.za | I30: Patrick Mbedzi | J30: (012) 315 5912 | K30: Patrick.Mbedzi@treasury.gov.za | L30: 1 | M30: 3 | N30: 3A | O30: PE217 | P30: 217 | Q30: Artscape | R30: 202324 | Z30: Inventory: Farming supplies | AB30: Communications and Digital Technologies | AC30: Castle Control Board | AD30: Sport, Recreation, Arts and Culture | AE30: Human Settlements | AF30: E-Government | AG30: Public Works | AI30: Human Settlements | AK30: Agriculture and Rural Development | AL30: Human Settlements | AO30: 14 | AP30: 1 269 952 - 1 544 413 | BB30: Authors journalists and other writers | BF30: SIP 13: National school build programme | BO30: Revised budget estimate
C31: Higher Education and Training | D31: Banking Sector Education and Training Authority | E31: Banking Sector Education and Training Authority | F31: Spencer Janari | G31: (012) 315 5436 | H31: spencer.janari@treasury.gov.za | I31: Vuyo Ngqukumba | J31: (012) 315 5760 | K31: Vuyo.Ngqukumba@treasury.gov.za | L31: 2 | M31: 3 | N31: 3A | O31: PE218 | P31: 218 | Q31: BankSETA | R31: 202324 | Z31: Inventory: Food and food supplies | AB31: Mineral Resources and Energy | AC31: Commission for Conciliation Mediation & Arbitration | AD31: Safety and Liaison | AF31: Provincial Treasury | AG31: Sport and Recreation | AL31: Environmental Affairs and Development Planning | AO31: 15 | AP31: 1 544 414 - 2 008 211 | BB31: Auxiliary and related workers | BF31: SIP 14: Higher education infrastructure | BO31: Changes from budget estimate
C32: Water and Sanitation | D32: Bloem Water Board | E32: Bloem Water | F32: Iqbal Mahomed Alli | G32: (012) 315 5809 | H32: iqbal.mahomedalli@treasury.gov.za | I32: Mntazi Msiza | J32: (012) 315 5876 | K32: Mntazi.msiza@treasury.gov.za | L32: 1 | M32: 3 | N32: 3B | O32: PE220 | P32: 220 | Q32: Bloem | R32: 202324 | Z32: Inventory: Fuel, oil and gas | AB32: Employment and Labour | AC32: Community Schemes Ombud Service | AF32: Infrastructure Development | AG32: Community Safety and Liaison | AO32: 16 | AP32: 2 008 212 - 2 262 253 | BB32: Aviation related | BF32: SIP 15: Expanding access to communication technology | BO32: Planning budget estimate
C33: Sport, Arts and Culture | D33: Boxing SA | E33: Boxing South Africa | F33: Judy Naidoo | G33: (012) 315 5269 | H33: judy.naidoo@treasury.gov.za | I33: Patrick Mbedzi | J33: (012) 315 5912 | K33: Patrick.Mbedzi@treasury.gov.za | L33: 1 | M33: 1 | N33: 3A | O33: PE12 | P33: 12 | Q33: BSA | R33: 202324 | Z33: Inventory: Learner and teacher support material | AB33: Human Settlements | AC33: Companies and Intellectual Property Commission | AO33: 17 | AP33: 2 262 254 - 2 556 940 | BB33: Board Members | BF33: SIP 16: SKA and Meerkat
C34: Government Communication and Information System | D34: Brand South Africa | E34: Brand SA | F34: Mokgatla Tema | G34: (012) 315 5948 | H34: mokgatla.tema@treasury.gov.za | I34: Mntazi Msiza | J34: (012) 315 5876 | K34: Mntazi.msiza@treasury.gov.za | L34: 1 | M34: 1 | N34: 3A | O34: PE51 | P34: 51 | Q34: BrandSA | R34: 202324 | Z34: Inventory: Materials and supplies | AB34: Trade, Industry and Competition | AC34: Companies Tribunal | AO34: 18 | AP34: 2 556 941 - 2 891 384 | BB34: Business support and related professionals | BF34: SIP 17: Regional integration for African Cooperation and development
C35: Water and Sanitation | D35: Breede-Gouritz Catchment Management Agency | E35: Breede-Gouritz Catchment Management Agency | F35: Iqbal Mahomed Alli | G35: (012) 315 5809 | H35: iqbal.mahomedalli@treasury.gov.za | I35: Mntazi Msiza | J35: (012) 315 5876 | K35: Mntazi.msiza@treasury.gov.za | L35: 1 | M35: 1 | N35: 3A | O35: PE225 | P35: 225 | Q35: BGCMA | R35: 202324 | Z35: Inventory: Medical supplies | AB35: Health | AC35: Competition Commission | AO35: 19 | AP35: 2 891 385 - 3 270 976 | BB35: CAE (Chief Audit Executive) | BF35: SIP 18. Water and sanitation master plan
C36: Communications and Digital Technologies | D36: Broadband Infraco (Proprietary) Limited | E36: Broadband Infraco Limited | F36: Keitumetse Motshegwe | G36: (012) 395 6750 | H36: keitumetse.motshegwe@treasury.gov.za | I36: Mntazi Msiza | J36: (012) 315 5876 | K36: Mntazi.msiza@treasury.gov.za | L36: 1 | M36: 3 | N36: 3A | O36: PE224 | P36: 224 | Q36: Broadband | R36: 202324 | Z36: Inventory: Medicine | AB36: Dummy | AC36: Competition Tribunal | AO36: 20 | AP36: 3 270 977 - 3 701 816 | BB36: Call centre operator
C37: Defence | D37: Castle Control Board | E37: Castle Control Board | F37: Mashudu Bidzha | G37: (012) 315 5344 | H37: mashudu.bidzha@treasury.gov.za | I37: Mntazi Msiza | J37: (012) 315 5876 | K37: Mntazi.msiza@treasury.gov.za | L37: 1 | M37: 1 | N37: 3A | O37: PE16 | P37: 16 | Q37: CCB | R37: 202324 | Z37: Medsas inventory interface | AB37: Home Affairs | AC37: Construction Industry Development Board | AO37: 21 | AP37: 3 701 817 - 4 190 815 | BB37: Caretakers
C38: Mineral Resources and Energy | D38: CEF (Proprietary) Limited | E38: CEF (Pty) Ltd | F38: Nomagugu Madikane | G38: (012) 315 5312 | H38: nomagugu.madikane@treasury.gov.za | I38: Sihle Manqele | J38: (012) 406 9174 | K38: Sihle.Manqele@treasury.gov.za | L38: 3 | M38: 3 | N38: 2 | O38: PE18 | P38: 18 | Q38: CEF | R38: 202324 | Z38: Inventory: Other supplies | AB38: Forestry, Fisheries and the Environment | AC38: Council for Geoscience | AO38: 22 | AP38: ≥ 4 190 816 | BB38: Cartographers surveyors and related technicaians
C39: Higher Education and Training | D39: Chemical Industries Education and Training Authority | E39: Chemical Industries Education and Training Authority | F39: Spencer Janari | G39: (012) 315 5436 | H39: spencer.janari@treasury.gov.za | I39: Vuyo Ngqukumba | J39: (012) 315 5760 | K39: Vuyo.Ngqukumba@treasury.gov.za | L39: 2 | M39: 3 | N39: 3A | O39: PE165 | P39: 165 | Q39: CHIETA | R39: 202324 | Z39: Consumable supplies | AB39: Justice and Constitutional Development | AC39: Council for Medical Schemes | BB39: Case management officer
C40: Employment and Labour | D40: Commission for Conciliation, Mediation and Arbitration | E40: Commission for Conciliation Mediation & Arbitration | F40: Judy Naidoo | G40: (012) 315 5269 | H40: judy.naidoo@treasury.gov.za | I40: Sihle Manqele | J40: (012) 406 9174 | K40: Sihle.Manqele@treasury.gov.za | L40: 1 | M40: 1 | N40: 3A | O40: PE17 | P40: 17 | Q40: CCMA | R40: 202324 | Z40: Consumables: Stationery, printing and office supplies | AB40: Cooperative Governance | AC40: Council for Scientific and Industrial Research | BB40: Case officer
C41: Human Settlements | D41: Community Schemes Ombud Service | E41: Community Schemes Ombud Service | F41: Lindiwe Ngcongwane | G41: (012) 315 5357 | H41: Lindiwe.Ngcongwane@treasury.gov.za | I41: Sihle Manqele | J41: (012) 406 9174 | K41: Sihle.Manqele@treasury.gov.za | L41: 1 | M41: 1 | N41: 3A | O41: PE240 | P41: 240 | Q41: CSOS | R41: 202324 | Z41: Operating leases | AB41: Social Development | AC41: Council for the Built Environment | BB41: Catering and related
C42: Trade, Industry and Competition | D42: Companies and Intellectual Property Commission | E42: Companies and Intellectual Property Commission | F42: Isaac Kurasha | G42: (012) 315 5213 | H42: Isaac.Kurasha@treasury.gov.za | I42: Sihle Manqele | J42: (012) 406 9174 | K42: Sihle.Manqele@treasury.gov.za | L42: 1 | M42: 1 | N42: 3A | O42: PE22 | P42: 22 | Q42: CIPC | R42: 202324 | Z42: Rental and hiring | AB42: National School of Government | AC42: Council on Higher Education | BB42: CEO (Chief Executive Officer)
C43: Trade, Industry and Competition | D43: Companies Tribunal | E43: Companies Tribunal | F43: Isaac Kurasha | G43: (012) 315 5213 | H43: Isaac.Kurasha@treasury.gov.za | I43: Sihle Manqele | J43: (012) 406 9174 | K43: Sihle.Manqele@treasury.gov.za | L43: 1 | M43: 1 | N43: 3A | O43: PE230 | P43: 230 | Q43: CT | R43: 202324 | Z43: Property payments | AB43: Women, Youth and Persons with Disabilities | AC43: Cross-Border Road Transport Agency | BB43: CFO (Chief Financial Officer)
C44: Health | D44: Mines and Works Compensation Fund | E44: Mines and Works Compensation Fund | F44: Refiloe Thokoa | G44: (012) 395 6559 | H44: refiloe.thokoa@treasury.gov.za | I44: Victor Ramphele | J44: 082 561 5029 | K44: Victor.Ramphele@treasury.gov.za | L44: 4 | M44: 4 | N44: Not listed | O44: PE60 | P44: 60 | Q44: Mines and Works Compensation Fund | R44: 202324 | Z44: Transport provided: Departmental activity | AB44: Police | AC44: Driving License Card Account | BB44: Chairperson
C45: Employment and Labour | D45: Compensation Fund | E45: Compensation Fund, including Reserve Fund | F45: Judy Naidoo | G45: (012) 315 5269 | H45: judy.naidoo@treasury.gov.za | I45: Sihle Manqele | J45: (012) 406 9174 | K45: Sihle.Manqele@treasury.gov.za | L45: 4 | M45: 4 | N45: 3A | O45: PE26 | P45: 26 | Q45: CompFund | R45: 202324 | Z45: Training and development | AB45: Small Business Development | AC45: Estate Agency Affairs Board | BB45: CIO (Chief Information Officer)
C46: Trade, Industry and Competition | D46: Competition Commission | E46: Competition Commission | F46: Isaac Kurasha | G46: (012) 315 5213 | H46: Isaac.Kurasha@treasury.gov.za | I46: Sihle Manqele | J46: (012) 406 9174 | K46: Sihle.Manqele@treasury.gov.za | L46: 1 | M46: 1 | N46: 3A | O46: PE25 | P46: 25 | Q46: CC | R46: 202324 | Z46: Operating payments | AB46: Basic Education | AC46: Estate Agents Fidelity Fund | BB46: Cleaners
C47: Trade, Industry and Competition | D47: Competition Tribunal | E47: Competition Tribunal | F47: Isaac Kurasha | G47: (012) 315 5213 | H47: Isaac.Kurasha@treasury.gov.za | I47: Sihle Manqele | J47: (012) 406 9174 | K47: Sihle.Manqele@treasury.gov.za | L47: 1 | M47: 1 | N47: 3A | O47: PE27 | P47: 27 | Q47: CT | R47: 202324 | Z47: Venues and facilities | AB47: Tourism | AC47: Film and Publication Board | BB47: Commissioners
C48: Higher Education and Training | D48: Construction Education and Training Authority | E48: Construction Education and Training Authority | F48: Spencer Janari | G48: (012) 315 5436 | H48: spencer.janari@treasury.gov.za | I48: Vuyo Ngqukumba | J48: (012) 315 5760 | K48: Vuyo.Ngqukumba@treasury.gov.za | L48: 2 | M48: 3 | N48: 3A | O48: PE223 | P48: 223 | Q48: CETA | R48: 202324 | AB48: Traditional Affairs | AC48: Financial Intelligence Centre | BB48: Committee officials
C49: Public Works and Infrastructure | D49: Construction Industry Development Board | E49: Construction Industry Development Board | F49: George Tembo | G49: (012) 315 5514 | H49: george.tembo@treasury.gov.za | I49: Patrick Mbedzi | J49: (012) 315 5912 | K49: Patrick.Mbedzi@treasury.gov.za | L49: 1 | M49: 1 | N49: 3A | O49: PE21 | P49: 21 | Q49: CIDB | R49: 202324 | AB49: Environment, Forestry and Fisheries | AC49: Financial Sector Conduct Authority | BB49: Communication and information related
C50: Mineral Resources and Energy | D50: Council for Geoscience | E50: Council for Geoscience | F50: Nomagugu Madikane | G50: (012) 315 5312 | H50: nomagugu.madikane@treasury.gov.za | I50: Sihle Manqele | J50: (012) 406 9174 | K50: Sihle.Manqele@treasury.gov.za | L50: 1 | M50: 1 | N50: 3A | O50: PE43 | P50: 43 | Q50: GeoScience | R50: 202324 | AB50: Human Settlements | AC50: Government Pensions Administration Agency | BB50: Compliance officers
C51: Health | D51: Council for Medical Schemes | E51: Council for Medical Schemes | F51: Refiloe Thokoa | G51: (012) 395 6559 | H51: refiloe.thokoa@treasury.gov.za | I51: Victor Ramphele | J51: 082 561 5029 | K51: Victor.Ramphele@treasury.gov.za | L51: 1 | M51: 1 | N51: 3A | O51: PE24 | P51: 24 | Q51: CMS | R51: 202324 | AB51: Mineral Resources and Energy | AC51: Government Printing Works | BB51: Consultants
C52: Science and Innovation | D52: Council for Scientific and Industrial Research | E52: Council for Scientific and Industrial Research | F52: Thabiso Molewa | G52: (012) 395 6780 | H52: thabiso.molewa@treasury.gov.za | I52: Vuyo Ngqukumba | J52: (012) 315 5760 | K52: Vuyo.Ngqukumba@treasury.gov.za | L52: 1 | M52: 1 | N52: 3B | O52: PE29 | P52: 29 | Q52: CSIR | R52: 202324 | AB52: Science and Innovation | AC52: Government Technical Advisory Centre | BB52: COO (Chief Operating Officer)
C53: Public Works and Infrastructure | D53: Council for the Built Environment | E53: Council for the Built Environment | F53: George Tembo | G53: (012) 315 5514 | H53: george.tembo@treasury.gov.za | I53: Patrick Mbedzi | J53: (012) 315 5912 | K53: Patrick.Mbedzi@treasury.gov.za | L53: 1 | M53: 1 | N53: 3A | O53: PE14 | P53: 14 | Q53: CBE | R53: 202324 | AB53: Small Business Development | AC53: Housing Development Agency | BB53: Council members
C54: Higher Education and Training | D54: Council on Higher Education | E54: Council on Higher Education | F54: Spencer Janari | G54: (012) 315 5436 | H54: spencer.janari@treasury.gov.za | I54: Vuyo Ngqukumba | J54: (012) 315 5760 | K54: Vuyo.Ngqukumba@treasury.gov.za | L54: 1 | M54: 1 | N54: 3A | O54: PE20 | P54: 20 | Q54: CHE | R54: 202324 | AB54: Sports, Arts and Culture | AC54: Human Sciences Research Council | BB54: Data analyst
C55: Transport | D55: Cross-Border Road Transport Agency | E55: Cross-Border Road Transport Agency | F55: Luyolo Ntlangula | G55: (012) 315 5571 | H55: luyolo.ntlangula@treasury.gov.za | I55: Mntazi Msiza | J55: (012) 315 5876 | K55: Mntazi.msiza@treasury.gov.za | L55: 1 | M55: 1 | N55: 3A | O55: PE15 | P55: 15 | Q55: CBRTA | R55: 202324 | AB55: Tourism | AC55: Independent Development Trust | BB55: Data capturer
C56: Higher Education and Training | D56: Culture, Arts, Tourism, Hospitality and Sports Education and Training Authority | E56: Culture, Arts, Tourism, Hospitality and Sports Education and Training Authority | F56: Spencer Janari | G56: (012) 315 5436 | H56: spencer.janari@treasury.gov.za | I56: Vuyo Ngqukumba | J56: (012) 315 5760 | K56: Vuyo.Ngqukumba@treasury.gov.za | L56: 2 | M56: 3 | N56: 3A | O56: PE206 | P56: 206 | Q56: CATHSETA | R56: 202324 | AB56: Trade, Industry and Competition | AC56: Independent Regulatory Board for Auditors | BB56: Deeds officer
C57: Public Enterprises | D57: DENEL (Pty) Ltd | E57: DENEL (Pty) Ltd | F57: Isaac Kurasha | G57: (012) 315 5213 | H57: Isaac.Kurasha@treasury.gov.za | I57: Sihle Manqele | J57: (012) 406 9174 | K57: Sihle.Manqele@treasury.gov.za | L57: 1 | M57: 3 | N57: 2 | O57: PE32 | P57: 32 | Q57: DENEL | R57: 202324 | AB57: Transport | AC57: Ingonyama Trust Board | BB57: Distribution offer
C58: National Treasury | D58: Development Bank of Southern Africa | E58: Development Bank of Southern Africa | F58: Mokgatla Tema | G58: (012) 315 5948 | H58: mokgatla.tema@treasury.gov.za | I58: Patrick Mbedzi | J58: (012) 315 5912 | K58: Patrick.Mbedzi@treasury.gov.za | L58: 3 | M58: 3 | N58: 2 | O58: PE30 | P58: 30 | Q58: DBSA | R58: 202324 | AB58: Water and Sanitation | AC58: Inkomati-Usuthu Catchment Management Agency | BB58: Draught and related trades
C59: Sport, Arts and Culture | D59: Afrikaans Language Museum and Language Monument | E59: Die Afrikaanse Taal Museum | F59: Judy Naidoo | G59: (012) 315 5269 | H59: judy.naidoo@treasury.gov.za | I59: Patrick Mbedzi | J59: (012) 315 5912 | K59: Patrick.Mbedzi@treasury.gov.za | L59: 1 | M59: 3 | N59: 3A | O59: PE213 | P59: 213 | Q59: TaalMuseum | R59: 202324 | AC59: International Trade Administration Commission | BB59: Drivers
C60: Sport, Arts and Culture | D60: Ditsong: Museums of South Africa | E60: Ditsong: Museums of South Africa | F60: Judy Naidoo | G60: (012) 315 5269 | H60: judy.naidoo@treasury.gov.za | I60: Patrick Mbedzi | J60: (012) 315 5912 | K60: Patrick.Mbedzi@treasury.gov.za | L60: 1 | M60: 3 | N60: 3A | O60: PE193 | P60: 193 | Q60: DitsongM | R60: 202324 | AC60: iSimangaliso Wetland Park | BB60: Earth moving and related plant operator
C61: Transport | D61: Driving License Card Account | E61: Driving License Card Account | F61: Luyolo Ntlangula | G61: (012) 315 5571 | H61: luyolo.ntlangula@treasury.gov.za | I61: Mntazi Msiza | J61: (012) 315 5876 | K61: Mntazi.msiza@treasury.gov.za | L61: 1 | M61: 1 | N61: Not listed | O61: PE162 | P61: 162 | Q61: DLCA | R61: 202324 | AC61: Legal Aid South Africa | BB61: Earth science and related professionals
C62: Dummy | D62: Dummy | E62: Dummy | F62: Dummy | G62: Dummy | H62: 0 | I62: 0 | J62: 0 | K62: 0 | L62: 0 | M62: 0 | N62: 0 | O62: 0 | P62: 0 | Q62: 0 | R62: 202324 | AC62: Lepelle Northern Water | BB62: Economists
C63: Higher Education and Training | D63: Education, Training and Development Practices SETA | E63: Education, Training and Development Practices SETA | F63: Spencer Janari | G63: (012) 315 5436 | H63: spencer.janari@treasury.gov.za | I63: Vuyo Ngqukumba | J63: (012) 315 5760 | K63: Vuyo.Ngqukumba@treasury.gov.za | L63: 2 | M63: 3 | N63: 3A | O63: PE168 | P63: 168 | Q63: ETDP | R63: 202324 | AC63: Magalies Water | BB63: Editor
C64: Higher Education and Training | D64: Energy and Water Sector Education and Training Authority | E64: Energy and Water Sector Education and Training Authority | F64: Spencer Janari | G64: (012) 315 5436 | H64: spencer.janari@treasury.gov.za | I64: Vuyo Ngqukumba | J64: (012) 315 5760 | K64: Vuyo.Ngqukumba@treasury.gov.za | L64: 2 | M64: 3 | N64: 3A | O64: PE167 | P64: 167 | Q64: EWSETA | R64: 202324 | AC64: Marine Living Resources Fund | BB64: Education Officer
C65: Public Enterprises | D65: ESKOM | E65: ESKOM | F65: Isaac Kurasha | G65: (012) 315 5213 | H65: Isaac.Kurasha@treasury.gov.za | I65: Sihle Manqele | J65: (012) 406 9174 | K65: Sihle.Manqele@treasury.gov.za | L65: 1 | M65: 3 | N65: 2 | O65: PE164 | P65: 164 | Q65: ESKOM | R65: 202324 | AC65: Media Development Diversity Agency | BB65: Emergency service related
C66: Human Settlements | D66: Estate Agency Affairs Board | E66: Estate Agency Affairs Board | F66: Lindiwe Ngcongwane | G66: (012) 315 5357 | H66: Lindiwe.Ngcongwane@treasury.gov.za | I66: Sihle Manqele | J66: (012) 406 9174 | K66: Sihle.Manqele@treasury.gov.za | L66: 1 | M66: 1 | N66: 3A | O66: PE33 | P66: 33 | Q66: EAAB | R66: 202324 | AC66: Medical Research Council of South Africa | BB66: Engineers and related professionals
C67: Human Settlements | D67: Estate Agents Fidelity Fund | E67: Estate Agents Fidelity Fund | F67: Lindiwe Ngcongwane | G67: (012) 315 5357 | H67: Lindiwe.Ngcongwane@treasury.gov.za | I67: Sihle Manqele | J67: (012) 406 9174 | K67: Sihle.Manqele@treasury.gov.za | L67: 1 | M67: 1 | N67: Not listed | O67: PE241 | P67: 241 | Q67: EAFF | R67: 202324 | AC67: Mhlathuze Water | BB67: Examiners
C68: Trade, Industry and Competition | D68: Export Credit Insurance Corporation of South Africa Limited | E68: Export Credit Insurance Corporation of South Africa Limited | F68: Isaac Kurasha | G68: (012) 315 5213 | H68: Isaac.Kurasha@treasury.gov.za | I68: Sihle Manqele | J68: (012) 406 9174 | K68: Sihle.Manqele@treasury.gov.za | L68: 3 | M68: 3 | N68: 3B | O68: PE34 | P68: 34 | Q68: ECIC | R68: 202324 | AC68: Mine Health and Safety Council | BB68: Executive assistant
C69: Higher Education and Training | D69: Fibre Processing Manufacturing Sector Education and Training Authority | E69: Fibre Processing Manufacturing Sector Education and Training Authority | F69: Spencer Janari | G69: (012) 315 5436 | H69: spencer.janari@treasury.gov.za | I69: Vuyo Ngqukumba | J69: (012) 315 5760 | K69: Vuyo.Ngqukumba@treasury.gov.za | L69: 2 | M69: 3 | N69: 3A | O69: PE237 | P69: 237 | Q69: FPMSETA | R69: 202324 | AC69: Mintek | BB69: Executive Director
C70: Communications and Digital Technologies | D70: Film and Publication Board | E70: Film and Publication Board | F70: Keitumetse Motshegwe | G70: (012) 395 6750 | H70: keitumetse.motshegwe@treasury.gov.za | I70: Mntazi Msiza | J70: (012) 315 5876 | K70: Mntazi.msiza@treasury.gov.za | L70: 1 | M70: 1 | N70: 3A | O70: PE40 | P70: 40 | Q70: FPB | R70: 202324 | AC70: Municipal Infrastructure Support Agency | BB70: Executives (Exco Members)
C71: Higher Education and Training | D71: Financial and Accounting Services SETA | E71: Financial and Accounting Services SETA | F71: Spencer Janari | G71: (012) 315 5436 | H71: spencer.janari@treasury.gov.za | I71: Vuyo Ngqukumba | J71: (012) 315 5760 | K71: Vuyo.Ngqukumba@treasury.gov.za | L71: 2 | M71: 3 | N71: 3A | O71: PE169 | P71: 169 | Q71: FASSETA | R71: 202324 | AC71: National Agricultural Marketing Council | BB71: Facilities Officer
C72: National Treasury | D72: Financial Intelligence Centre | E72: Financial Intelligence Centre | F72: Mokgatla Tema | G72: (012) 315 5948 | H72: mokgatla.tema@treasury.gov.za | I72: Patrick Mbedzi | J72: (012) 315 5912 | K72: Patrick.Mbedzi@treasury.gov.za | L72: 1 | M72: 1 | N72: 3A | O72: PE39 | P72: 39 | Q72: FIC | R72: 202324 | AC72: National Arts Council of South Africa | BB72: Financial and related professionals
C73: National Treasury | D73: Financial Sector Conduct Authority | E73: Financial Sector Conduct Authority | F73: Mokgatla Tema | G73: (012) 315 5948 | H73: mokgatla.tema@treasury.gov.za | I73: Patrick Mbedzi | J73: (012) 315 5912 | K73: Patrick.Mbedzi@treasury.gov.za | L73: 1 | M73: 1 | N73: 3A | O73: PE249 | P73: 249 | Q73: FSCA | R73: 202324 | AC73: National Consumer Commission | BB73: Geography and environmental sciences related
C74: Higher Education and Training | D74: Food and Beverages Manufacturing Industry | E74: Food and Beverages Manufacturing Industry | F74: Spencer Janari | G74: (012) 315 5436 | H74: spencer.janari@treasury.gov.za | I74: Vuyo Ngqukumba | J74: (012) 315 5760 | K74: Vuyo.Ngqukumba@treasury.gov.za | L74: 2 | M74: 3 | N74: 3A | O74: PE171 | P74: 171 | Q74: FoodBev | R74: 202324 | AC74: National Consumer Tribunal | BB74: Health related
C75: Sport, Arts and Culture | D75: Freedom Park Trust | E75: Freedom Park Trust | F75: Judy Naidoo | G75: (012) 315 5269 | H75: judy.naidoo@treasury.gov.za | I75: Patrick Mbedzi | J75: (012) 315 5912 | K75: Patrick.Mbedzi@treasury.gov.za | L75: 1 | M75: 3 | N75: 3A | O75: PE41 | P75: 41 | Q75: FPT | R75: 202324 | AC75: National Credit Regulator | BB75: Human resources and related professionals
C76: National Treasury | D76: Government Pensions Administration Agency | E76: Government Pensions Administration Agency | F76: Mokgatla Tema | G76: (012) 315 5948 | H76: mokgatla.tema@treasury.gov.za | I76: Patrick Mbedzi | J76: (012) 315 5912 | K76: Patrick.Mbedzi@treasury.gov.za | L76: 1 | M76: 1 | N76: Not listed | O76: PE61 | P76: 61 | Q76: GPAA | R76: 202324 | AC76: National Development Agency | BB76: ICT (Information and Communications Technology)
C77: Home Affairs | D77: Government Printing Works | E77: Government Printing Works | F77: Timothy Murwa | G77: (012) 315 5002 | H77: timothy.murwa@treasury.gov.za | I77: Busi Motlhabedi | J77: (012) 395 6657 | K77: Busi.Motlhabedi@treasury.gov.za | L77: 1 | M77: 1 | N77: Not listed | O77: PE44 | P77: 44 | Q77: GPW | R77: 202324 | AC77: National Economic Development and Labour Council | BB77: Inspectors/Investigators
C78: National Treasury | D78: Government Technical Advisory Centre | E78: Government Technical Advisory Centre | F78: Mokgatla Tema | G78: (012) 315 5948 | H78: mokgatla.tema@treasury.gov.za | I78: Patrick Mbedzi | J78: (012) 315 5912 | K78: Patrick.Mbedzi@treasury.gov.za | L78: 1 | M78: 1 | N78: Not listed | O78: PE245 | P78: 245 | Q78: GTAC | R78: 202324 | AC78: National Electronic Media Institute of South Africa | BB78: Interns/Trainees
C79: Higher Education and Training | D79: Health and Welfare Sector Education and Training Authority | E79: Health and Welfare Sector Education and Training Authority | F79: Spencer Janari | G79: (012) 315 5436 | H79: spencer.janari@treasury.gov.za | I79: Vuyo Ngqukumba | J79: (012) 315 5760 | K79: Vuyo.Ngqukumba@treasury.gov.za | L79: 2 | M79: 3 | N79: 3A | O79: PE172 | P79: 172 | Q79: HWSETA | R79: 202324 | AC79: National Empowerment Fund | BB79: Judges
C80: Human Settlements | D80: Housing Development Agency | E80: Housing Development Agency | F80: Lindiwe Ngcongwane | G80: (012) 315 5357 | H80: Lindiwe.Ngcongwane@treasury.gov.za | I80: Sihle Manqele | J80: (012) 406 9174 | K80: Sihle.Manqele@treasury.gov.za | L80: 1 | M80: 1 | N80: 3A | O80: PE139 | P80: 139 | Q80: HDA | R80: 202324 | AC80: National Energy Regulator of South Africa | BB80: Labour related
C81: Science and Innovation | D81: Human Sciences Research Council | E81: Human Sciences Research Council | F81: Thabiso Molewa | G81: (012) 395 6780 | H81: thabiso.molewa@treasury.gov.za | I81: Vuyo Ngqukumba | J81: (012) 315 5760 | K81: Vuyo.Ngqukumba@treasury.gov.za | L81: 1 | M81: 1 | N81: 3A | O81: PE46 | P81: 46 | Q81: HSRC | R81: 202324 | AC81: National Film and Video Foundation of South Africa | BB81: Language practitioners interpreters & other commun
C82: Public Works and Infrastructure | D82: The Independent Development Trust | E82: Independent Development Trust | F82: George Tembo | G82: (012) 315 5514 | H82: george.tembo@treasury.gov.za | I82: Patrick Mbedzi | J82: (012) 315 5912 | K82: Patrick.Mbedzi@treasury.gov.za | L82: 3 | M82: 1 | N82: 2 | O82: PE49 | P82: 49 | Q82: IDT | R82: 202324 | AC82: National Gambling Board of South Africa | BB82: Lecturer
C83: National Treasury | D83: Independent Regulatory Board for Auditors | E83: Independent Regulatory Board for Auditors | F83: Mokgatla Tema | G83: (012) 315 5948 | H83: mokgatla.tema@treasury.gov.za | I83: Patrick Mbedzi | J83: (012) 315 5912 | K83: Patrick.Mbedzi@treasury.gov.za | L83: 1 | M83: 1 | N83: 3A | O83: PE53 | P83: 53 | Q83: IRBA | R83: 202324 | AC83: National Health Laboratory Service | BB83: Legal related
C84: Trade, Industry and Competition | D84: Industrial Development Corporation of South Africa, Limited | E84: Industrial Development Corporation of South Africa Limited | F84: Isaac Kurasha | G84: (012) 315 5213 | H84: Isaac.Kurasha@treasury.gov.za | I84: Sihle Manqele | J84: (012) 406 9174 | K84: Sihle.Manqele@treasury.gov.za | L84: 3 | M84: 3 | N84: 2 | O84: PE48 | P84: 48 | Q84: IDC | R84: 202324 | AC84: National Heritage Council of South Africa | BB84: Librarians and related
C85: Agriculture, Land Reform and Rural Development | D85: KwaZulu-Natal Ingonyama Trust Board | E85: Ingonyama Trust Board | F85: Humbelani Ramuedzisi | G85: (012) 315 5585 | H85: humbelani.ramuedzisi@treasury.gov.za | I85: Vuyo Ngqukumba | J85: (012) 315 5760 | K85: Vuyo.Ngqukumba@treasury.gov.za | L85: 1 | M85: 1 | N85: 3A | O85: PE52 | P85: 52 | Q85: ITB | R85: 202324 | AC85: National Home Builders Registration Council | BB85: Life sciences related
C86: Water and Sanitation | D86: Inkomati-Usuthu Catchment Management Agency | E86: Inkomati-Usuthu Catchment Management Agency | F86: Iqbal Mahomed Alli | G86: (012) 315 5809 | H86: iqbal.mahomedalli@treasury.gov.za | I86: Mntazi Msiza | J86: (012) 315 5876 | K86: Mntazi.msiza@treasury.gov.za | L86: 1 | M86: 1 | N86: 3A | O86: PE156 | P86: 156 | Q86: IUCMA | R86: 202324 | AC86: National Housing Finance Corporation Limited | BB86: Marketing related
C87: Higher Education and Training | D87: Insurance Sector Education and Training Authority | E87: Insurance Sector Education and Training Authority | F87: Spencer Janari | G87: (012) 315 5436 | H87: spencer.janari@treasury.gov.za | I87: Vuyo Ngqukumba | J87: (012) 315 5760 | K87: Vuyo.Ngqukumba@treasury.gov.za | L87: 2 | M87: 3 | N87: 3A | O87: PE174 | P87: 174 | Q87: ISETA | R87: 202324 | AC87: National Lotteries Commission | BB87: Mathematicians and related professionals
C88: Trade, Industry and Competition | D88: International Trade Administration Commission | E88: International Trade Administration Commission | F88: Isaac Kurasha | G88: (012) 315 5213 | H88: Isaac.Kurasha@treasury.gov.za | I88: Sihle Manqele | J88: (012) 406 9174 | K88: Sihle.Manqele@treasury.gov.za | L88: 1 | M88: 1 | N88: 3A | O88: PE55 | P88: 55 | Q88: ITAC | R88: 202324 | AC88: National Lotteries Commission Distribution Trust Fund | BB88: Medical officer
C89: Forestry, Fisheries and the Environment | D89: iSimangaliso Wetland Park Authority | E89: iSimangaliso Wetland Park | F89: Ashley Ramasimu | G89: (012) 315 5166 | H89: ashley.ramasimu@treasury.gov.za | I89: Vuyo Ngqukumba | J89: (012) 315 5760 | K89: Vuyo.Ngqukumba@treasury.gov.za | L89: 1 | M89: 1 | N89: 3A | O89: PE54 | P89: 54 | Q89: ISIMANGALISO | R89: 202324 | AC89: National Metrology Institute of South Africa | BB89: Medical related
C90: Sport, Arts and Culture | D90: Iziko Museums of South Africa | E90: Iziko Museums of Cape Town | F90: Judy Naidoo | G90: (012) 315 5269 | H90: judy.naidoo@treasury.gov.za | I90: Patrick Mbedzi | J90: (012) 315 5912 | K90: Patrick.Mbedzi@treasury.gov.za | L90: 1 | M90: 3 | N90: 3A | O90: PE176 | P90: 176 | Q90: Iziko | R90: 202324 | AC90: National Nuclear Regulator | BB90: Messengers
C91: Sport, Arts and Culture | D91: Natal Museum | E91: KwaZulu-Natal Museum | F91: Judy Naidoo | G91: (012) 315 5269 | H91: judy.naidoo@treasury.gov.za | I91: Patrick Mbedzi | J91: (012) 315 5912 | K91: Patrick.Mbedzi@treasury.gov.za | L91: 1 | M91: 3 | N91: 3A | O91: PE188 | P91: 188 | Q91: Kwa-ZuluM | R91: 202324 | AC91: National Regulator for Compulsory Specifications | BB91: Ombudsman
C92: National Treasury | D92: Land and Agricultural Development Bank of South Africa | E92: Land and Agricultural Development Bank of South Africa | F92: Mokgatla Tema | G92: (012) 315 5948 | H92: mokgatla.tema@treasury.gov.za | I92: Patrick Mbedzi | J92: (012) 315 5912 | K92: Patrick.Mbedzi@treasury.gov.za | L92: 3 | M92: 3 | N92: 2 | O92: PE59 | P92: 59 | Q92: Land Bank | R92: 202324 | AC92: National Research Foundation | BB92: Pathologist
C93: Justice and Constitutional Development | D93: Legal Aid South Africa | E93: Legal Aid South Africa | F93: Werner Krause | G93: (012) 315 5211 | H93: Werner.Krause@treasury.gov.za | I93: Mntazi Msiza | J93: (012) 315 5876 | K93: Mntazi.msiza@treasury.gov.za | L93: 1 | M93: 1 | N93: 3A | O93: PE58 | P93: 58 | Q93: LASA | R93: 202324 | AC93: National school of government | BB93: Personal Assistants
C94: Water and Sanitation | D94: Lepelle Northern Water Board | E94: Lepelle Northern Water | F94: Iqbal Mahomed Alli | G94: (012) 315 5809 | H94: iqbal.mahomedalli@treasury.gov.za | I94: Mntazi Msiza | J94: (012) 315 5876 | K94: Mntazi.msiza@treasury.gov.za | L94: 1 | M94: 3 | N94: 3B | O94: PE177 | P94: 177 | Q94: Lepelle | R94: 202324 | AC94: National Skills Fund | BB94: Pharmacists
C95: Higher Education and Training | D95: Local Government Education and Training Authority | E95: Local Government Education and Training Authority | F95: Spencer Janari | G95: (012) 315 5436 | H95: spencer.janari@treasury.gov.za | I95: Vuyo Ngqukumba | J95: (012) 315 5760 | K95: Vuyo.Ngqukumba@treasury.gov.za | L95: 2 | M95: 3 | N95: 3A | O95: PE178 | P95: 178 | Q95: LGSETA | R95: 202324 | AC95: National Student Financial Aid Scheme | BB95: Physicists
C96: Sport, Arts and Culture | D96: Luthuli Museum | E96: Luthuli Museum | F96: Judy Naidoo | G96: (012) 315 5269 | H96: judy.naidoo@treasury.gov.za | I96: Patrick Mbedzi | J96: (012) 315 5912 | K96: Patrick.Mbedzi@treasury.gov.za | L96: 1 | M96: 3 | N96: 3A | O96: PE180 | P96: 180 | Q96: LuthuliM | R96: 202324 | AC96: National Urban Reconstruction and Housing Agency | BB96: Police
C97: Water and Sanitation | D97: Magalies Water Board | E97: Magalies Water | F97: Iqbal Mahomed Alli | G97: (012) 315 5809 | H97: iqbal.mahomedalli@treasury.gov.za | I97: Mntazi Msiza | J97: (012) 315 5876 | K97: Mntazi.msiza@treasury.gov.za | L97: 1 | M97: 3 | N97: 3B | O97: PE181 | P97: 181 | Q97: Magalies | R97: 202324 | AC97: National Youth Development Agency | BB97: Programmers and related professionals
C98: Sport, Arts and Culture | D98: Mandela Bay Theatre Complex | E98: Mandela Bay Theatre Complex | F98: Judy Naidoo | G98: (012) 315 5269 | H98: judy.naidoo@treasury.gov.za | I98: Patrick Mbedzi | J98: (012) 315 5912 | K98: Patrick.Mbedzi@treasury.gov.za | L98: 1 | M98: 3 | N98: Not listed | O98: PE251 | P98: 251 | Q98: MBTC | R98: 202324 | AC98: Office of Health Standards Compliance | BB98: Records management related
C99: Higher Education and Training | D99: Manufacturing, Engineering and Related Services Education and Training Authority | E99: Manufacturing, Engineering and Related Services Education and Training Authority | F99: Spencer Janari | G99: (012) 315 5436 | H99: spencer.janari@treasury.gov.za | I99: Vuyo Ngqukumba | J99: (012) 315 5760 | K99: Vuyo.Ngqukumba@treasury.gov.za | L99: 2 | M99: 3 | N99: 3A | O99: PE184 | P99: 184 | Q99: MERSETA | R99: 202324 | AC99: Office of the Ombud for Financial Service Providers | BB99: Researchers
C100: Forestry, Fisheries and the Environment | D100: Marine Living Resources Fund | E100: Marine Living Resources Fund | F100: Ashley Ramasimu | G100: (012) 315 5166 | H100: ashley.ramasimu@treasury.gov.za | I100: Vuyo Ngqukumba | J100: (012) 315 5760 | K100: Vuyo.Ngqukumba@treasury.gov.za | L100: 1 | M100: 1 | N100: 3A | O100: PE66 | P100: 66 | Q100: MLRF | R100: 202324 | AC100: Office of the Pension Funds Adjudicator | BB100: Risk management related
C101: Sport, Arts and Culture | D101: Market Theatre Foundation | E101: Market Theatre Foundation | F101: Judy Naidoo | G101: (012) 315 5269 | H101: judy.naidoo@treasury.gov.za | I101: Patrick Mbedzi | J101: (012) 315 5912 | K101: Patrick.Mbedzi@treasury.gov.za | L101: 1 | M101: 3 | N101: 3A | O101: PE183 | P101: 183 | Q101: Marketh | R101: 202324 | AC101: Onderstepoort Biological Products Limited | BB101: Safety and security related
C102: Government Communication and Information System | D102: Media Development Diversity Agency | E102: Media Development Diversity Agency | F102: Mokgatla Tema | G102: (012) 315 5948 | H102: mokgatla.tema@treasury.gov.za | I102: Mntazi Msiza | J102: (012) 315 5876 | K102: Mntazi.msiza@treasury.gov.za | L102: 1 | M102: 1 | N102: 3A | O102: PE63 | P102: 63 | Q102: MDDA | R102: 202324 | AC102: Overberg Water | BB102: Sales related
C103: Higher Education and Training | D103: Media, Information and Communication Technologies Sector Education and Training Authority | E103: Media, Information and Communication Technologies Sector Education and Training Authority | F103: Spencer Janari | G103: (012) 315 5436 | H103: spencer.janari@treasury.gov.za | I103: Vuyo Ngqukumba | J103: (012) 315 5760 | K103: Vuyo.Ngqukumba@treasury.gov.za | L103: 2 | M103: 3 | N103: 3A | O103: PE175 | P103: 175 | Q103: MICTSETTA | R103: 202324 | AC103: Passenger Rail Agency of South Africa | BB103: Seamstress
C104: Water and Sanitation | D104: Mhlathuze Water Board | E104: Mhlathuze Water | F104: Iqbal Mahomed Alli | G104: (012) 315 5809 | H104: iqbal.mahomedalli@treasury.gov.za | I104: Mntazi Msiza | J104: (012) 315 5876 | K104: Mntazi.msiza@treasury.gov.za | L104: 1 | M104: 3 | N104: 3B | O104: PE185 | P104: 185 | Q104: Mhlathuze | R104: 202324 | AC104: Perishable Products Export Control Board | BB104: Social work and related professionals
C105: Mineral Resources and Energy | D105: Mine Health and Safety Council | E105: Mine Health and Safety Council | F105: Nomagugu Madikane | G105: (012) 315 5312 | H105: nomagugu.madikane@treasury.gov.za | I105: Sihle Manqele | J105: (012) 406 9174 | K105: Sihle.Manqele@treasury.gov.za | L105: 1 | M105: 1 | N105: 3A | O105: PE64 | P105: 64 | Q105: MHSC | R105: 202324 | AC105: Ports Regulator of South Africa | BB105: Statisticians and related professionals
C106: Higher Education and Training | D106: Mining Qualifications Authority | E106: Mining Qualifications Authority | F106: Spencer Janari | G106: (012) 315 5436 | H106: spencer.janari@treasury.gov.za | I106: Vuyo Ngqukumba | J106: (012) 315 5760 | K106: Vuyo.Ngqukumba@treasury.gov.za | L106: 2 | M106: 3 | N106: 3A | O106: PE186 | P106: 186 | Q106: MQA | R106: 202324 | AC106: Private Security Industry Regulatory Authority | BB106: Supply chain related
C107: Mineral Resources and Energy | D107: Council for Mineral Technology | E107: Mintek | F107: Nomagugu Madikane | G107: (012) 315 5312 | H107: nomagugu.madikane@treasury.gov.za | I107: Sihle Manqele | J107: (012) 406 9174 | K107: Sihle.Manqele@treasury.gov.za | L107: 1 | M107: 1 | N107: 3B | O107: PE65 | P107: 65 | Q107: Mintek | R107: 202324 | AC107: Productivity SA | BB107: Teachers
C108: Cooperative Governance | D108: Municipal Infrastructure Support Agent | E108: Municipal Infrastructure Support Agency | F108: Millicent Mulaudzi | G108: (012) 395 6576 | H108: millicent.mulaudzi@treasury.gov.za | I108: Tumi Tjale | J108: (012) 395 6561 | K108: Tumi.Tjale@treasury.gov.za | L108: 1 | M108: 1 | N108: Not listed | O108: PE244 | P108: 244 | Q108: MISA | R108: 202324 | AC108: Property Management Trading Entity | BB108: Technicians
C109: Agriculture, Land Reform and Rural Development | D109: National Agricultural Marketing Council | E109: National Agricultural Marketing Council | F109: Humbelani Ramuedzisi | G109: (012) 315 5585 | H109: humbelani.ramuedzisi@treasury.gov.za | I109: Vuyo Ngqukumba | J109: (012) 315 5760 | K109: Vuyo.Ngqukumba@treasury.gov.za | L109: 1 | M109: 1 | N109: 3A | O109: PE68 | P109: 68 | Q109: NAMC | R109: 202324 | AC109: Public Investment Corporation Limited | BB109: Tour Guide
C110: Sport, Arts and Culture | D110: National Arts Council | E110: National Arts Council | F110: Judy Naidoo | G110: (012) 315 5269 | H110: judy.naidoo@treasury.gov.za | I110: Patrick Mbedzi | J110: (012) 315 5912 | K110: Patrick.Mbedzi@treasury.gov.za | L110: 1 | M110: 1 | N110: 3A | O110: PE67 | P110: 67 | Q110: NAC | R110: 202324 | AC110: Quality Council for Trades and Occupations | BB110: Training and development related
C111: Trade, Industry and Competition | D111: National Consumer Commission | E111: National Consumer Commission | F111: Isaac Kurasha | G111: (012) 315 5213 | H111: Isaac.Kurasha@treasury.gov.za | I111: Sihle Manqele | J111: (012) 406 9174 | K111: Sihle.Manqele@treasury.gov.za | L111: 1 | M111: 1 | N111: 3A | O111: PE124 | P111: 124 | Q111: NCC | R111: 202324 | AC111: Railway Safety Regulator | BB111: Tribunal member
C112: Trade, Industry and Competition | D112: National Consumer Tribunal | E112: National Consumer Tribunal | F112: Isaac Kurasha | G112: (012) 315 5213 | H112: Isaac.Kurasha@treasury.gov.za | I112: Sihle Manqele | J112: (012) 406 9174 | K112: Sihle.Manqele@treasury.gov.za | L112: 1 | M112: 1 | N112: 3A | O112: PE71 | P112: 71 | Q112: NCT | R112: 202324 | AC112: Rand Water | BB112: Ushers
C113: Trade, Industry and Competition | D113: National Credit Regulator | E113: National Credit Regulator | F113: Isaac Kurasha | G113: (012) 315 5213 | H113: Isaac.Kurasha@treasury.gov.za | I113: Sihle Manqele | J113: (012) 406 9174 | K113: Sihle.Manqele@treasury.gov.za | L113: 1 | M113: 1 | N113: 3A | O113: PE70 | P113: 70 | Q113: NCR | R113: 202324 | AC113: Registration of Deeds Trading Entity | BB113: Wardrobe specialist
C114: Social Development | D114: National Development Agency | E114: National Development Agency | F114: Lindi Mzankomo | G114: (012) 315 5256 | H114: lindi.mzankomo@treasury.gov.za | I114: Vuyo Ngqukumba | J114: (012) 315 5760 | K114: Vuyo.Ngqukumba@treasury.gov.za | L114: 1 | M114: 1 | N114: 3A | O114: PE72 | P114: 72 | Q114: NDA | R114: 202324 | AC114: Road Traffic Infringement Agency | BB114: Workshop officer
C115: Employment and Labour | D115: National Economic, Development and Labour Council | E115: National Economic Development and Labour Council | F115: Judy Naidoo | G115: (012) 315 5269 | H115: judy.naidoo@treasury.gov.za | I115: Sihle Manqele | J115: (012) 406 9174 | K115: Sihle.Manqele@treasury.gov.za | L115: 1 | M115: 1 | N115: 3A | O115: PE74 | P115: 74 | Q115: NEDLAC | R115: 202324 | AC115: Road Traffic Management Corporation | BB115: Other: Please specify
C116: Communications and Digital Technologies | D116: National Electronic Media Institute of South Africa | E116: National Electronic Media Institute of South Africa | F116: Keitumetse Motshegwe | G116: (012) 395 6750 | H116: keitumetse.motshegwe@treasury.gov.za | I116: Mntazi Msiza | J116: (012) 315 5876 | K116: Mntazi.msiza@treasury.gov.za | L116: 1 | M116: 1 | N116: 3A | O116: PE76 | P116: 76 | Q116: NEMISA | R116: 202324 | AC116: Rural Housing Loan Fund
C117: Trade, Industry and Competition | D117: National Empowerment Fund | E117: National Empowerment Fund | F117: Isaac Kurasha | G117: (012) 315 5213 | H117: Isaac.Kurasha@treasury.gov.za | I117: Sihle Manqele | J117: (012) 406 9174 | K117: Sihle.Manqele@treasury.gov.za | L117: 3 | M117: 1 | N117: 3A | O117: PE75 | P117: 75 | Q117: NEF | R117: 202324 | AC117: SA Bureau of Standards
C118: Mineral Resources and Energy | D118: National Energy Regulator | E118: National Energy Regulator of South Africa | F118: Nomagugu Madikane | G118: (012) 315 5312 | H118: nomagugu.madikane@treasury.gov.za | I118: Sihle Manqele | J118: (012) 406 9174 | K118: Sihle.Manqele@treasury.gov.za | L118: 1 | M118: 1 | N118: 3A | O118: PE77 | P118: 77 | Q118: NERSA | R118: 202324 | AC118: Sedibeng Water
C119: Sport, Arts and Culture | D119: National Film and Video Foundation | E119: National Film and Video Foundation | F119: Judy Naidoo | G119: (012) 315 5269 | H119: judy.naidoo@treasury.gov.za | I119: Patrick Mbedzi | J119: (012) 315 5912 | K119: Patrick.Mbedzi@treasury.gov.za | L119: 1 | M119: 1 | N119: 3A | O119: PE78 | P119: 78 | Q119: NFVF | R119: 202324 | AC119: Sentech Limited
C120: Trade, Industry and Competition | D120: National Gambling Board | E120: National Gambling Board of South Africa | F120: Isaac Kurasha | G120: (012) 315 5213 | H120: Isaac.Kurasha@treasury.gov.za | I120: Sihle Manqele | J120: (012) 406 9174 | K120: Sihle.Manqele@treasury.gov.za | L120: 1 | M120: 1 | N120: 3A | O120: PE79 | P120: 79 | Q120: NGB | R120: 202324 | AC120: Small Enterprise Development Agency
C121: Health | D121: National Health Laboratory Service | E121: National Health Laboratory Service | F121: Refiloe Thokoa | G121: (012) 395 6559 | H121: refiloe.thokoa@treasury.gov.za | I121: Victor Ramphele | J121: 082 561 5029 | K121: Victor.Ramphele@treasury.gov.za | L121: 1 | M121: 1 | N121: 3A | O121: PE83 | P121: 83 | Q121: NHLS | R121: 202324 | AC121: South African Airways (Pty) Limited
C122: Sport, Arts and Culture | D122: National Heritage Council | E122: National Heritage Council | F122: Judy Naidoo | G122: (012) 315 5269 | H122: judy.naidoo@treasury.gov.za | I122: Patrick Mbedzi | J122: (012) 315 5912 | K122: Patrick.Mbedzi@treasury.gov.za | L122: 1 | M122: 1 | N122: 3A | O122: PE81 | P122: 81 | Q122: NHC | R122: 202324 | AC122: South African Civil Aviation Authority
C123: Human Settlements | D123: National Home Builders Registration Council | E123: National Home Builders Registration Council | F123: Lindiwe Ngcongwane | G123: (012) 315 5357 | H123: Lindiwe.Ngcongwane@treasury.gov.za | I123: Sihle Manqele | J123: (012) 406 9174 | K123: Sihle.Manqele@treasury.gov.za | L123: 1 | M123: 1 | N123: 3A | O123: PE80 | P123: 80 | Q123: NHBRC | R123: 202324 | AC123: South African Council for Educators
C124: Human Settlements | D124: National Housing Finance Corporation | E124: National Housing Finance Corporation Limited | F124: Lindiwe Ngcongwane | G124: (012) 315 5357 | H124: Lindiwe.Ngcongwane@treasury.gov.za | I124: Sihle Manqele | J124: (012) 406 9174 | K124: Sihle.Manqele@treasury.gov.za | L124: 3 | M124: 1 | N124: 3A | O124: PE82 | P124: 82 | Q124: NHFC | R124: 202324 | AC124: South African Diamond and Precious Metals Regulator
C125: Sport, Arts and Culture | D125: National Library of South Africa | E125: National Library of South Africa | F125: Judy Naidoo | G125: (012) 315 5269 | H125: judy.naidoo@treasury.gov.za | I125: Patrick Mbedzi | J125: (012) 315 5912 | K125: Patrick.Mbedzi@treasury.gov.za | L125: 1 | M125: 3 | N125: 3A | O125: PE189 | P125: 189 | Q125: NLSA | R125: 202324 | AC125: South African Health Products Regulatory Authority
C126: Trade, Industry and Competition | D126: National Lotteries Commission | E126: National Lotteries Commission | F126: Isaac Kurasha | G126: (012) 315 5213 | H126: Isaac.Kurasha@treasury.gov.za | I126: Sihle Manqele | J126: (012) 406 9174 | K126: Sihle.Manqele@treasury.gov.za | L126: 1 | M126: 1 | N126: 3A | O126: PE84 | P126: 84 | Q126: NLB | R126: 202324 | AC126: South African Heritage Resources Agency
C127: Trade, Industry and Competition | D127: National Lotteries Commission Distribution Trust Fund | E127: National Lotteries Commission Distribution Trust Fund | F127: Isaac Kurasha | G127: (012) 315 5213 | H127: Isaac.Kurasha@treasury.gov.za | I127: Sihle Manqele | J127: (012) 406 9174 | K127: Sihle.Manqele@treasury.gov.za | L127: 1 | M127: 1 | N127: Not listed | O127: PE227 | P127: 227 | Q127: NLBDTF | R127: 202324 | AC127: South African Local Government Association
C128: Trade, Industry and Competition | D128: National Metrology Institute of South Africa | E128: National Metrology Institute of South Africa | F128: Isaac Kurasha | G128: (012) 315 5213 | H128: Isaac.Kurasha@treasury.gov.za | I128: Sihle Manqele | J128: (012) 406 9174 | K128: Sihle.Manqele@treasury.gov.za | L128: 1 | M128: 1 | N128: 3A | O128: PE85 | P128: 85 | Q128: NMISA | R128: 202324 | AC128: South African Maritime Safety Authority
C129: Sport, Arts and Culture | D129: Naional Museum | E129: National Museum, Bloemfontein | F129: Judy Naidoo | G129: (012) 315 5269 | H129: judy.naidoo@treasury.gov.za | I129: Patrick Mbedzi | J129: (012) 315 5912 | K129: Patrick.Mbedzi@treasury.gov.za | L129: 1 | M129: 3 | N129: 3A | O129: PE190 | P129: 190 | Q129: NationalM | R129: 202324 | AC129: South African National Accreditation System
C130: Mineral Resources and Energy | D130: National Nuclear Regulator | E130: National Nuclear Regulator | F130: Nomagugu Madikane | G130: (012) 315 5312 | H130: nomagugu.madikane@treasury.gov.za | I130: Sihle Manqele | J130: (012) 406 9174 | K130: Sihle.Manqele@treasury.gov.za | L130: 1 | M130: 1 | N130: 3A | O130: PE86 | P130: 86 | Q130: NNR | R130: 202324 | AC130: South African National Biodiversity Institute
C131: Trade, Industry and Competition | D131: National Regulator for Compulsory Specifications of South Africa | E131: National Regulator for Compulsory Specifications | F131: Isaac Kurasha | G131: (012) 315 5213 | H131: Isaac.Kurasha@treasury.gov.za | I131: Sihle Manqele | J131: (012) 406 9174 | K131: Sihle.Manqele@treasury.gov.za | L131: 1 | M131: 1 | N131: 3A | O131: PE159 | P131: 159 | Q131: NRCS | R131: 202324 | AC131: South African National Energy Development Institute
C132: Science and Innovation | D132: National Research Foundation | E132: National Research Foundation | F132: Thabiso Molewa | G132: (012) 395 6780 | H132: thabiso.molewa@treasury.gov.za | I132: Vuyo Ngqukumba | J132: (012) 315 5760 | K132: Vuyo.Ngqukumba@treasury.gov.za | L132: 1 | M132: 1 | N132: 3A | O132: PE88 | P132: 88 | Q132: NRF | R132: 202324 | AC132: South African National Parks
C133: National School of Government | D133: The National School of Government Trading Account | E133: National school of government | F133: George Tembo | G133: (012) 315 5514 | H133: george.tembo@treasury.gov.za | I133: Patrick Mbedzi | J133: (012) 315 5912 | K133: Patrick.Mbedzi@treasury.gov.za | L133: 1 | M133: 1 | N133: Not listed | O133: PE115 | P133: 115 | Q133: PALAMA | R133: 202324 | AC133: South African National Space Agency
C134: Higher Education and Training | D134: National Student Financial Aid Scheme | E134: National Student Financial Aid Scheme | F134: Spencer Janari | G134: (012) 315 5436 | H134: spencer.janari@treasury.gov.za | I134: Vuyo Ngqukumba | J134: (012) 315 5760 | K134: Vuyo.Ngqukumba@treasury.gov.za | L134: 3 | M134: 1 | N134: 3A | O134: PE90 | P134: 90 | Q134: NSFAS | R134: 202324 | AC134: South African Nuclear Energy Corporation Limited
C135: Women, Youth and Persons with Disabilities | D135: National Youth Development Agency | E135: National Youth Development Agency | F135: Lindi Mzankomo | G135: (012) 315 5256 | H135: lindi.mzankomo@treasury.gov.za | I135: Patrick Mbedzi | J135: (012) 315 5912 | K135: Patrick.Mbedzi@treasury.gov.za | L135: 3 | M135: 1 | N135: 3A | O135: PE92 | P135: 92 | Q135: NYDA | R135: 202324 | AC135: South African Qualifications Authority
C136: Sport, Arts and Culture | D136: Nelson Mandela Museum | E136: Nelson Mandela National Museum | F136: Judy Naidoo | G136: (012) 315 5269 | H136: judy.naidoo@treasury.gov.za | I136: Patrick Mbedzi | J136: (012) 315 5912 | K136: Patrick.Mbedzi@treasury.gov.za | L136: 1 | M136: 3 | N136: 3A | O136: PE192 | P136: 192 | Q136: NelsonM | R136: 202324 | AC136: South African Revenue Service
C137: Health | D137: Office of Health Standards Compliance | E137: Office of Health Standards Compliance | F137: Refiloe Thokoa | G137: (012) 395 6559 | H137: refiloe.thokoa@treasury.gov.za | I137: Victor Ramphele | J137: 082 561 5029 | K137: Victor.Ramphele@treasury.gov.za | L137: 1 | M137: 1 | N137: 3A | O137: PE242 | P137: 242 | Q137: OHSC | R137: 202324 | AC137: South African Social Security Agency
C138: National Treasury | D138: Office of the Ombudsman for Financial Services Providers | E138: Office of the Ombud for Financial Service Providers | F138: Mokgatla Tema | G138: (012) 315 5948 | H138: mokgatla.tema@treasury.gov.za | I138: Patrick Mbedzi | J138: (012) 315 5912 | K138: Patrick.Mbedzi@treasury.gov.za | L138: 1 | M138: 1 | N138: 3A | O138: PE37 | P138: 37 | Q138: FAIS | R138: 202324 | AC138: South African Tourism
C139: National Treasury | D139: Office of the Pension Funds Adjudicator | E139: Office of the Pension Funds Adjudicator | F139: Mokgatla Tema | G139: (012) 315 5948 | H139: mokgatla.tema@treasury.gov.za | I139: Patrick Mbedzi | J139: (012) 315 5912 | K139: Patrick.Mbedzi@treasury.gov.za | L139: 1 | M139: 1 | N139: 3A | O139: PE232 | P139: 232 | Q139: OPFA | R139: 202324 | AC139: South African Weather Service
C140: Agriculture, Land Reform and Rural Development | D140: Office of the Valuer-General | E140: Office of the Valuer-General | F140: Humbelani Ramuedzisi | G140: (012) 315 5585 | H140: humbelani.ramuedzisi@treasury.gov.za | I140: Vuyo Ngqukumba | J140: (012) 315 5760 | K140: Vuyo.Ngqukumba@treasury.gov.za | L140: 1 | M140: 1 | N140: 3A | O140: PE248 | P140: 248 | Q140: OVG | R140: 202324 | AC140: Special Investigating Unit
C141: National Treasury | D141: Ombud Council | E141: Ombud Council | F141: Mokgatla Tema | G141: (012) 315 5948 | H141: mokgatla.tema@treasury.gov.za | I141: Patrick Mbedzi | J141: (012) 315 5912 | K141: Patrick.Mbedzi@treasury.gov.za | L141: 1 | M141: 1 | N141: Not listed | O141: PE250 | P141: 250 | Q141: OmbudCouncil | R141: 202324 | AC141: State Diamond Trader
C142: Agriculture, Land Reform and Rural Development | D142: Onderstepoort Biological Products | E142: Onderstepoort Biological Products | F142: Humbelani Ramuedzisi | G142: (012) 315 5585 | H142: humbelani.ramuedzisi@treasury.gov.za | I142: Vuyo Ngqukumba | J142: (012) 315 5760 | K142: Vuyo.Ngqukumba@treasury.gov.za | L142: 1 | M142: 1 | N142: 3B | O142: PE93 | P142: 93 | Q142: OBP | R142: 202324 | AC142: State Information Technology Agency
C143: Water and Sanitation | D143: Overberg Water Board | E143: Overberg Water | F143: Iqbal Mahomed Alli | G143: (012) 315 5809 | H143: iqbal.mahomedalli@treasury.gov.za | I143: Mntazi Msiza | J143: (012) 315 5876 | K143: Mntazi.msiza@treasury.gov.za | L143: 1 | M143: 3 | N143: 3B | O143: PE194 | P143: 194 | Q143: Overberg | R143: 202324 | AC143: Technology Innovation Agency
C144: Transport | D144: Passenger Rail Agency of South Africa | E144: Passenger Rail Agency of South Africa | F144: Luyolo Ntlangula | G144: (012) 315 5571 | H144: luyolo.ntlangula@treasury.gov.za | I144: Mntazi Msiza | J144: (012) 315 5876 | K144: Mntazi.msiza@treasury.gov.za | L144: 1 | M144: 1 | N144: 3B | O144: PE125 | P144: 125 | Q144: PRASA | R144: 202324 | AC144: The Commission for the Promotion and Protection of the Rights of Cultural, Religious and Linguistic Communities
C145: Sport, Arts and Culture | D145: Performing Arts Council of the Free State | E145: Performing Arts Council of the Free State | F145: Judy Naidoo | G145: (012) 315 5269 | H145: judy.naidoo@treasury.gov.za | I145: Patrick Mbedzi | J145: (012) 315 5912 | K145: Patrick.Mbedzi@treasury.gov.za | L145: 1 | M145: 3 | N145: 3A | O145: PE195 | P145: 195 | Q145: PACOFS | R145: 202324 | AC145: The Commission on Gender Equality
C146: Agriculture, Land Reform and Rural Development | D146: Perishable Products Export Control Board Ltd | E146: Perishable Products Export Control Board | F146: Humbelani Ramuedzisi | G146: (012) 315 5585 | H146: humbelani.ramuedzisi@treasury.gov.za | I146: Vuyo Ngqukumba | J146: (012) 315 5760 | K146: Vuyo.Ngqukumba@treasury.gov.za | L146: 1 | M146: 1 | N146: 3A | O146: PE99 | P146: 99 | Q146: PPECB | R146: 202324 | AC146: The Co-operative Banks Development Agency
C147: Transport | D147: Ports Regulator of South Africa | E147: Ports Regulator of South Africa | F147: Luyolo Ntlangula | G147: (012) 315 5571 | H147: luyolo.ntlangula@treasury.gov.za | I147: Mntazi Msiza | J147: (012) 315 5876 | K147: Mntazi.msiza@treasury.gov.za | L147: 1 | M147: 1 | N147: 3A | O147: PE10 | P147: 10 | Q147: Ports Reg | R147: 202324 | AC147: The Financial and Fiscal Commission
C148: Communications and Digital Technologies | D148: PostBank | E148: PostBank | F148: Keitumetse Motshegwe | G148: (012) 395 6750 | H148: keitumetse.motshegwe@treasury.gov.za | I148: Mntazi Msiza | J148: (012) 315 5876 | K148: Mntazi.msiza@treasury.gov.za | L148: 3 | M148: 3 | N148: Not listed | O148: PE252 | P148: 252 | Q148: PostBank | R148: 202324 | AC148: The Independent Communications Authority of South Africa
C149: Police | D149: Private Security Industry Regulatory Authority | E149: Private Security Industry Regulatory Authority | F149: Nompumelelo Radebe | G149: (012) 315 5957 | H149: nompumelelo.radebe@treasury.gov.za | I149: Mntazi Msiza | J149: (012) 315 5876 | K149: Mntazi.msiza@treasury.gov.za | L149: 1 | M149: 1 | N149: 3A | O149: PE11 | P149: 11 | Q149: PSIRA | R149: 202324 | AC149: The Independent Electoral Commission
C150: Employment and Labour | D150: Productivity South Africa | E150: Productivity SA | F150: Judy Naidoo | G150: (012) 315 5269 | H150: judy.naidoo@treasury.gov.za | I150: Sihle Manqele | J150: (012) 406 9174 | K150: Sihle.Manqele@treasury.gov.za | L150: 1 | M150: 1 | N150: 3A | O150: PE87 | P150: 87 | Q150: ProductivitySA | R150: 202324 | AC150: The Municipal Demarcation Board
C151: Public Works and Infrastructure | D151: The Property Management Trading Account | E151: Property Management Trading Entity | F151: George Tembo | G151: (012) 315 5514 | H151: george.tembo@treasury.gov.za | I151: Patrick Mbedzi | J151: (012) 315 5912 | K151: Patrick.Mbedzi@treasury.gov.za | L151: 1 | M151: 1 | N151: Not listed | O151: PE98 | P151: 98 | Q151: PMTE | R151: 202324 | AC151: The Pan South African Language Board
C152: National Treasury | D152: Public Investment Corporation | E152: Public Investment Corporation Limited | F152: Mokgatla Tema | G152: (012) 315 5948 | H152: mokgatla.tema@treasury.gov.za | I152: Patrick Mbedzi | J152: (012) 315 5912 | K152: Patrick.Mbedzi@treasury.gov.za | L152: 3 | M152: 1 | N152: 3B | O152: PE97 | P152: 97 | Q152: PIC | R152: 202324 | AC152: The Public Protector of South Africa
C153: Higher Education and Training | D153: Public Service Sector Education and Training Authority | E153: Public Service Sector Education and Training Authority | F153: Spencer Janari | G153: (012) 315 5436 | H153: spencer.janari@treasury.gov.za | I153: Vuyo Ngqukumba | J153: (012) 315 5760 | K153: Vuyo.Ngqukumba@treasury.gov.za | L153: 2 | M153: 3 | N153: 3A | O153: PE226 | P153: 226 | Q153: PSETA | R153: 202324 | AC153: The Social Housing Regulatory Authority
C154: Higher Education and Training | D154: Quality Council for Trades and Occupations | E154: Quality Council for Trades and Occupations | F154: Spencer Janari | G154: (012) 315 5436 | H154: spencer.janari@treasury.gov.za | I154: Vuyo Ngqukumba | J154: (012) 315 5760 | K154: Vuyo.Ngqukumba@treasury.gov.za | L154: 1 | M154: 1 | N154: 3A | O154: PE235 | P154: 235 | Q154: QCTO | R154: 202324 | AC154: The South African Human Rights Commission
C155: Transport | D155: Railway Safety Regulator | E155: Railway Safety Regulator | F155: Luyolo Ntlangula | G155: (012) 315 5571 | H155: luyolo.ntlangula@treasury.gov.za | I155: Mntazi Msiza | J155: (012) 315 5876 | K155: Mntazi.msiza@treasury.gov.za | L155: 1 | M155: 1 | N155: 3A | O155: PE103 | P155: 103 | Q155: RSR | R155: 202324 | AC155: The South African Institute for Drug-free Sport
C156: Water and Sanitation | D156: Rand Water Board | E156: Rand Water | F156: Iqbal Mahomed Alli | G156: (012) 315 5809 | H156: iqbal.mahomedalli@treasury.gov.za | I156: Mntazi Msiza | J156: (012) 315 5876 | K156: Mntazi.msiza@treasury.gov.za | L156: 1 | M156: 3 | N156: 3B | O156: PE199 | P156: 199 | Q156: RandWater | R156: 202324 | AC156: The South African National Roads Agency Limited
C157: Agriculture, Land Reform and Rural Development | D157: Registration of Deeds Trading Account | E157: Registration of Deeds Trading Entity | F157: Humbelani Ramuedzisi | G157: (012) 315 5585 | H157: humbelani.ramuedzisi@treasury.gov.za | I157: Vuyo Ngqukumba | J157: (012) 315 5760 | K157: Vuyo.Ngqukumba@treasury.gov.za | L157: 1 | M157: 1 | N157: Not listed | O157: PE31 | P157: 31 | Q157: DEEDS | R157: 202324 | AC157: The Water Services Trading Entity
C158: Transport | D158: Road Accident Fund | E158: Road Accident Fund | F158: Luyolo Ntlangula | G158: (012) 315 5571 | H158: luyolo.ntlangula@treasury.gov.za | I158: Mntazi Msiza | J158: (012) 315 5876 | K158: Mntazi.msiza@treasury.gov.za | L158: 4 | M158: 4 | N158: 3A | O158: PE101 | P158: 101 | Q158: RAF | R158: 202324 | AC158: Trans-Caledon Tunnel Authority
C159: Transport | D159: Road Traffic Infringement Agency | E159: Road Traffic Infringement Agency | F159: Luyolo Ntlangula | G159: (012) 315 5571 | H159: luyolo.ntlangula@treasury.gov.za | I159: Mntazi Msiza | J159: (012) 315 5876 | K159: Mntazi.msiza@treasury.gov.za | L159: 1 | M159: 1 | N159: 3A | O159: PE229 | P159: 229 | Q159: RTIA | R159: 202324 | AC159: uMalusi Council for Quality Assurance in General and Further Education and Training
C160: Transport | D160: Road Traffic Management Corporation | E160: Road Traffic Management Corporation | F160: Luyolo Ntlangula | G160: (012) 315 5571 | H160: luyolo.ntlangula@treasury.gov.za | I160: Mntazi Msiza | J160: (012) 315 5876 | K160: Mntazi.msiza@treasury.gov.za | L160: 1 | M160: 1 | N160: 3A | O160: PE104 | P160: 104 | Q160: RTMC | R160: 202324 | AC160: Umgeni Water
C161: Sport, Arts and Culture | D161: Robben Island Museum | E161: Robben Island Museum | F161: Judy Naidoo | G161: (012) 315 5269 | H161: judy.naidoo@treasury.gov.za | I161: Patrick Mbedzi | J161: (012) 315 5912 | K161: Patrick.Mbedzi@treasury.gov.za | L161: 1 | M161: 3 | N161: 3A | O161: PE200 | P161: 200 | Q161: RobbenM | R161: 202324 | AC161: Universal Service and Access Agency of South Africa
C162: Trade, Industry and Competition | D162: South African Bureau of Standards | E162: SA Bureau of Standards | F162: Isaac Kurasha | G162: (012) 315 5213 | H162: Isaac.Kurasha@treasury.gov.za | I162: Sihle Manqele | J162: (012) 406 9174 | K162: Sihle.Manqele@treasury.gov.za | L162: 1 | M162: 1 | N162: 3B | O162: PE108 | P162: 108 | Q162: SABS | R162: 202324 | AC162: Universal Service and Access Fund
C163: Sport, Arts and Culture | D163: South African Institute for Drug-Free Sport | E163: SA Institute for Drug-free Sport | F163: Judy Naidoo | G163: (012) 315 5269 | H163: judy.naidoo@treasury.gov.za | I163: Patrick Mbedzi | J163: (012) 315 5912 | K163: Patrick.Mbedzi@treasury.gov.za | L163: 1 | M163: 1 | N163: 3A | O163: PE112 | P163: 112 | Q163: SAIDS | R163: 202324 | AC163: Water Research Commission
C164: Health | D164: South African Medical Research Council | E164: SA Medical Research Council | F164: Refiloe Thokoa | G164: (012) 395 6559 | H164: refiloe.thokoa@treasury.gov.za | I164: Victor Ramphele | J164: 082 561 5029 | K164: Victor.Ramphele@treasury.gov.za | L164: 1 | M164: 1 | N164: 3A | O164: PE116 | P164: 116 | Q164: SAMRC | R164: 202324
C165: Transport | D165: South African National Roads Agency | E165: SA National Roads Agency | F165: Luyolo Ntlangula | G165: (012) 315 5571 | H165: luyolo.ntlangula@treasury.gov.za | I165: Mntazi Msiza | J165: (012) 315 5876 | K165: Mntazi.msiza@treasury.gov.za | L165: 1 | M165: 1 | N165: 3A | O165: PE121 | P165: 121 | Q165: SANRAL | R165: 202324
C166: Higher Education and Training | D166: Safety and Security Education and Training Authority | E166: Safety and Security Education and Training Authority | F166: Spencer Janari | G166: (012) 315 5436 | H166: spencer.janari@treasury.gov.za | I166: Vuyo Ngqukumba | J166: (012) 315 5760 | K166: Vuyo.Ngqukumba@treasury.gov.za | L166: 2 | M166: 3 | N166: 3A | O166: PE201 | P166: 201 | Q166: SASSETA | R166: 202324
C167: National Treasury | D167: South African Special Risks Insurance Association | E167: Sasria Limited | F167: Mokgatla Tema | G167: (012) 315 5948 | H167: mokgatla.tema@treasury.gov.za | I167: Patrick Mbedzi | J167: (012) 315 5912 | K167: Patrick.Mbedzi@treasury.gov.za | L167: 3 | M167: 3 | N167: 3B | O167: PE128 | P167: 128 | Q167: SASRIA | R167: 202324
C168: Water and Sanitation | D168: Sedibeng Water Board | E168: Sedibeng Water | F168: Iqbal Mahomed Alli | G168: (012) 315 5809 | H168: iqbal.mahomedalli@treasury.gov.za | I168: Mntazi Msiza | J168: (012) 315 5876 | K168: Mntazi.msiza@treasury.gov.za | L168: 1 | M168: 3 | N168: 3B | O168: PE202 | P168: 202 | Q168: Sedibeng | R168: 202324
C169: Communications and Digital Technologies | D169: Sentech (Pty) Ltd | E169: Sentech Limited | F169: Keitumetse Motshegwe | G169: (012) 395 6750 | H169: keitumetse.motshegwe@treasury.gov.za | I169: Mntazi Msiza | J169: (012) 315 5876 | K169: Mntazi.msiza@treasury.gov.za | L169: 1 | M169: 1 | N169: 3B | O169: PE132 | P169: 132 | Q169: SENTECH | R169: 202324
C170: Higher Education and Training | D170: Services Sector Education and Training Authority | E170: Services Sector Education and Training Authority | F170: Spencer Janari | G170: (012) 315 5436 | H170: spencer.janari@treasury.gov.za | I170: Vuyo Ngqukumba | J170: (012) 315 5760 | K170: Vuyo.Ngqukumba@treasury.gov.za | L170: 2 | M170: 3 | N170: 3A | O170: PE203 | P170: 203 | Q170: SSETA | R170: 202324
C171: Small Business Development | D171: Small Enterprise Development Agency | E171: Small Enterprise Development Agency | F171: Nico Likhethe | G171: (012) 315 5773 | H171: nico.likhethe@treasury.gov.za | I171: Sihle Manqele | J171: (012) 406 9174 | K171: Sihle.Manqele@treasury.gov.za | L171: 3 | M171: 1 | N171: 3A | O171: PE131 | P171: 131 | Q171: SEDA | R171: 202324
C172: Trade, Industry and Competition | D172: Small Enterprise Finance Agency | E172: Small Enterprise Finance Agency | F172: Isaac Kurasha | G172: (012) 315 5213 | H172: Isaac.Kurasha@treasury.gov.za | I172: Sihle Manqele | J172: (012) 406 9174 | K172: Sihle.Manqele@treasury.gov.za | L172: 3 | M172: 3 | N172: 3B | O172: PE238 | P172: 238 | Q172: SAFA | R172: 202324
C173: Public Enterprises | D173: South African Airways (Pty) Limited | E173: South African Airways (Pty) Limited | F173: Isaac Kurasha | G173: (012) 315 5213 | H173: Isaac.Kurasha@treasury.gov.za | I173: Sihle Manqele | J173: (012) 406 9174 | K173: Sihle.Manqele@treasury.gov.za | L173: 1 | M173: 3 | N173: 2 | O173: PE163 | P173: 163 | Q173: SAA | R173: 202324
C174: Communications and Digital Technologies | D174: South African Broadcasting Corporation Ltd | E174: South African Broadcasting Corporation Limited | F174: Keitumetse Motshegwe | G174: (012) 395 6750 | H174: keitumetse.motshegwe@treasury.gov.za | I174: Mntazi Msiza | J174: (012) 315 5876 | K174: Mntazi.msiza@treasury.gov.za | L174: 1 | M174: 3 | N174: 2 | O174: PE107 | P174: 107 | Q174: SABC | R174: 202324
C175: Transport | D175: South African Civil Aviation Authority | E175: South African Civil Aviation Authority | F175: Luyolo Ntlangula | G175: (012) 315 5571 | H175: luyolo.ntlangula@treasury.gov.za | I175: Mntazi Msiza | J175: (012) 315 5876 | K175: Mntazi.msiza@treasury.gov.za | L175: 1 | M175: 1 | N175: 3A | O175: PE13 | P175: 13 | Q175: CAA | R175: 202324
C176: Basic Education | D176: South African Council for Educators | E176: South African Council for Educators | F176: Spencer Janari | G176: (012) 315 5436 | H176: spencer.janari@treasury.gov.za | I176: Vuyo Ngqukumba | J176: (012) 315 5760 | K176: Vuyo.Ngqukumba@treasury.gov.za | L176: 1 | M176: 1 | N176: 3A | O176: PE109 | P176: 109 | Q176: SACE | R176: 202324
C177: Mineral Resources and Energy | D177: South African Diamond and Precious Metals Regulator | E177: South African Diamond and Precious Metals Regulator | F177: Nomagugu Madikane | G177: (012) 315 5312 | H177: nomagugu.madikane@treasury.gov.za | I177: Sihle Manqele | J177: (012) 406 9174 | K177: Sihle.Manqele@treasury.gov.za | L177: 1 | M177: 1 | N177: 3A | O177: PE105 | P177: 105 | Q177: SADPMR | R177: 202324
C178: Public Enterprises | D178: South African Express (Pty) Limited | E178: South African Express (Pty) Limited | F178: Isaac Kurasha | G178: (012) 315 5213 | H178: Isaac.Kurasha@treasury.gov.za | I178: Sihle Manqele | J178: (012) 406 9174 | K178: Sihle.Manqele@treasury.gov.za | L178: 1 | M178: 3 | N178: 2 | O178: PE160 | P178: 160 | Q178: SAX | R178: 202324
C179: Public Enterprises | D179: South African Forestry Company Limited | E179: South African Forestry Company Limited | F179: Isaac Kurasha | G179: (012) 315 5213 | H179: Isaac.Kurasha@treasury.gov.za | I179: Sihle Manqele | J179: (012) 406 9174 | K179: Sihle.Manqele@treasury.gov.za | L179: 1 | M179: 3 | N179: 2 | O179: PE110 | P179: 110 | Q179: SAFCOL | R179: 202324
C180: Health | D180: South African Health Products Regulatory Authority | E180: South African Health Products Regulatory Authority | F180: Refiloe Thokoa | G180: (012) 395 6559 | H180: refiloe.thokoa@treasury.gov.za | I180: Victor Ramphele | J180: 082 561 5029 | K180: Victor.Ramphele@treasury.gov.za | L180: 1 | M180: 1 | N180: 3A | O180: PE247 | P180: 247 | Q180: SAHPRA | R180: 202324
C181: Sport, Arts and Culture | D181: South African Heritage Resources Agency | E181: South African Heritage Resources Agency | F181: Judy Naidoo | G181: (012) 315 5269 | H181: judy.naidoo@treasury.gov.za | I181: Patrick Mbedzi | J181: (012) 315 5912 | K181: Patrick.Mbedzi@treasury.gov.za | L181: 1 | M181: 1 | N181: 3A | O181: PE111 | P181: 111 | Q181: SAHRA | R181: 202324
C182: Sport, Arts and Culture | D182: South African Library for the Blind | E182: South African Library for the Blind | F182: Judy Naidoo | G182: (012) 315 5269 | H182: judy.naidoo@treasury.gov.za | I182: Patrick Mbedzi | J182: (012) 315 5912 | K182: Patrick.Mbedzi@treasury.gov.za | L182: 1 | M182: 3 | N182: 3A | O182: PE179 | P182: 179 | Q182: SALB | R182: 202324
C183: Cooperative Governance | D183: South African Local Government Association | E183: South African Local Government Association | F183: Millicent Mulaudzi | G183: (012) 395 6576 | H183: millicent.mulaudzi@treasury.gov.za | I183: Tumi Tjale | J183: (012) 395 6561 | K183: Tumi.Tjale@treasury.gov.za | L183: 1 | M183: 1 | N183: 3A | O183: PE113 | P183: 113 | Q183: SALGA | R183: 202324
C184: Transport | D184: South African Maritime Safety Authority | E184: South African Maritime Safety Authority | F184: Luyolo Ntlangula | G184: (012) 315 5571 | H184: luyolo.ntlangula@treasury.gov.za | I184: Mntazi Msiza | J184: (012) 315 5876 | K184: Mntazi.msiza@treasury.gov.za | L184: 1 | M184: 1 | N184: 3A | O184: PE117 | P184: 117 | Q184: SAMSA | R184: 202324
C185: Trade, Industry and Competition | D185: South African National Accreditation System | E185: South African National Accreditation System | F185: Isaac Kurasha | G185: (012) 315 5213 | H185: Isaac.Kurasha@treasury.gov.za | I185: Sihle Manqele | J185: (012) 406 9174 | K185: Sihle.Manqele@treasury.gov.za | L185: 1 | M185: 1 | N185: 3A | O185: PE119 | P185: 119 | Q185: SANAS | R185: 202324
C186: Forestry, Fisheries and the Environment | D186: South African National Biodiversity Institute | E186: South African National Biodiversity Institute | F186: Ashley Ramasimu | G186: (012) 315 5166 | H186: ashley.ramasimu@treasury.gov.za | I186: Vuyo Ngqukumba | J186: (012) 315 5760 | K186: Vuyo.Ngqukumba@treasury.gov.za | L186: 1 | M186: 1 | N186: 3A | O186: PE120 | P186: 120 | Q186: SANBI | R186: 202324
C187: Mineral Resources and Energy | D187: South African National Energy Development Institute | E187: South African National Energy Development Institute | F187: Nomagugu Madikane | G187: (012) 315 5312 | H187: nomagugu.madikane@treasury.gov.za | I187: Sihle Manqele | J187: (012) 406 9174 | K187: Sihle.Manqele@treasury.gov.za | L187: 1 | M187: 1 | N187: 3B | O187: PE155 | P187: 155 | Q187: SANEDI | R187: 202324
C188: Forestry, Fisheries and the Environment | D188: South African National Parks | E188: South African National Parks | F188: Ashley Ramasimu | G188: (012) 315 5166 | H188: ashley.ramasimu@treasury.gov.za | I188: Vuyo Ngqukumba | J188: (012) 315 5760 | K188: Vuyo.Ngqukumba@treasury.gov.za | L188: 1 | M188: 1 | N188: 3A | O188: PE118 | P188: 118 | Q188: SANPARKS | R188: 202324
C189: Science and Innovation | D189: South African National Space Agency | E189: South African National Space Agency | F189: Thabiso Molewa | G189: (012) 395 6780 | H189: thabiso.molewa@treasury.gov.za | I189: Vuyo Ngqukumba | J189: (012) 315 5760 | K189: Vuyo.Ngqukumba@treasury.gov.za | L189: 1 | M189: 1 | N189: 3A | O189: PE233 | P189: 233 | Q189: SANSA | R189: 202324
C190: Mineral Resources and Energy | D190: South African Nuclear Energy Corporation Limited | E190: South African Nuclear Energy Corporation Limited | F190: Nomagugu Madikane | G190: (012) 315 5312 | H190: nomagugu.madikane@treasury.gov.za | I190: Sihle Manqele | J190: (012) 406 9174 | K190: Sihle.Manqele@treasury.gov.za | L190: 1 | M190: 1 | N190: 2 | O190: PE73 | P190: 73 | Q190: NECSA | R190: 202324
C191: Communications and Digital Technologies | D191: South African Post Office SOC Ltd | E191: South African Post Office Limited | F191: Keitumetse Motshegwe | G191: (012) 395 6750 | H191: keitumetse.motshegwe@treasury.gov.za | I191: Mntazi Msiza | J191: (012) 315 5876 | K191: Mntazi.msiza@treasury.gov.za | L191: 1 | M191: 3 | N191: 2 | O191: PE122 | P191: 122 | Q191: SAPO | R191: 202324
C192: Higher Education and Training | D192: South African Qualifications Authority | E192: South African Qualifications Authority | F192: Spencer Janari | G192: (012) 315 5436 | H192: spencer.janari@treasury.gov.za | I192: Vuyo Ngqukumba | J192: (012) 315 5760 | K192: Vuyo.Ngqukumba@treasury.gov.za | L192: 1 | M192: 1 | N192: 3A | O192: PE123 | P192: 123 | Q192: SAQA | R192: 202324
C193: National Treasury | D193: South African Revenue Service | E193: South African Revenue Service | F193: Mokgatla Tema | G193: (012) 315 5948 | H193: mokgatla.tema@treasury.gov.za | I193: Patrick Mbedzi | J193: (012) 315 5912 | K193: Patrick.Mbedzi@treasury.gov.za | L193: 1 | M193: 1 | N193: 3A | O193: PE126 | P193: 126 | Q193: SARS | R193: 202324
C194: Social Development | D194: South African Social Security Agency | E194: South African Social Security Agency | F194: Lindi Mzankomo | G194: (012) 315 5256 | H194: lindi.mzankomo@treasury.gov.za | I194: Vuyo Ngqukumba | J194: (012) 315 5760 | K194: Vuyo.Ngqukumba@treasury.gov.za | L194: 5 | M194: 1 | N194: 3A | O194: PE129 | P194: 129 | Q194: SASSA | R194: 202324
C195: Tourism | D195: South African Tourism | E195: South African Tourism | F195: Tumelo Mokgoshi | G195: (012) 395 6777 | H195: Tumelo.Mokgoshi@treasury.gov.za | I195: Sihle Manqele | J195: (012) 406 9174 | K195: Sihle.Manqele@treasury.gov.za | L195: 1 | M195: 1 | N195: 3A | O195: PE106 | P195: 106 | Q195: SA TOUR | R195: 202324
C196: Forestry, Fisheries and the Environment | D196: South African Weather Service | E196: South African Weather Service | F196: Ashley Ramasimu | G196: (012) 315 5166 | H196: ashley.ramasimu@treasury.gov.za | I196: Vuyo Ngqukumba | J196: (012) 315 5760 | K196: Vuyo.Ngqukumba@treasury.gov.za | L196: 1 | M196: 1 | N196: 3A | O196: PE130 | P196: 130 | Q196: SAWS | R196: 202324
C197: Justice and Constitutional Development | D197: Special Investigating Unit | E197: Special Investigating Unit | F197: Werner Krause | G197: (012) 315 5211 | H197: Werner.Krause@treasury.gov.za | I197: Mntazi Msiza | J197: (012) 315 5876 | K197: Mntazi.msiza@treasury.gov.za | L197: 1 | M197: 1 | N197: 3A | O197: PE136 | P197: 136 | Q197: SIU | R197: 202324
C198: Mineral Resources and Energy | D198: State Diamond Trader | E198: State Diamond Trader | F198: Nomagugu Madikane | G198: (012) 315 5312 | H198: nomagugu.madikane@treasury.gov.za | I198: Sihle Manqele | J198: (012) 406 9174 | K198: Sihle.Manqele@treasury.gov.za | L198: 1 | M198: 1 | N198: 3B | O198: PE23 | P198: 23 | Q198: SDT | R198: 202324
C199: Communications and Digital Technologies | D199: State Information Technology Agency (Pty) Ltd | E199: State Information Technology Agency | F199: Keitumetse Motshegwe | G199: (012) 395 6750 | H199: keitumetse.motshegwe@treasury.gov.za | I199: Mntazi Msiza | J199: (012) 315 5876 | K199: Mntazi.msiza@treasury.gov.za | L199: 1 | M199: 1 | N199: 3A | O199: PE135 | P199: 135 | Q199: SITA | R199: 202324
C200: Science and Innovation | D200: Technology Innovation Agency | E200: Technology Innovation Agency | F200: Thabiso Molewa | G200: (012) 395 6780 | H200: thabiso.molewa@treasury.gov.za | I200: Vuyo Ngqukumba | J200: (012) 315 5760 | K200: Vuyo.Ngqukumba@treasury.gov.za | L200: 1 | M200: 1 | N200: 3A | O200: PE234 | P200: 234 | Q200: TIA | R200: 202324
C201: Traditional Affairs | D201: The Commission for the Promotion and Protection of the Rights of Cultural, Religious and Linguistic Communities | E201: The Commission for the Promotion and Protection of the Rights of Cultural, Religious and Linguistic Communities | F201: Millicent Mulaudzi | G201: (012) 395 6576 | H201: millicent.mulaudzi@treasury.gov.za | I201: Tumi Tjale | J201: (012) 395 6561 | K201: Tumi.Tjale@treasury.gov.za | L201: 1 | M201: 1 | N201: 1 | O201: PE28 | P201: 28 | Q201: CRCCOM | R201: 202324
C202: Women, Youth and Persons with Disabilities | D202: Commission for Gender Equality | E202: The Commission on Gender Equality | F202: Lindi Mzankomo | G202: (012) 315 5256 | H202: lindi.mzankomo@treasury.gov.za | I202: Patrick Mbedzi | J202: (012) 315 5912 | K202: Patrick.Mbedzi@treasury.gov.za | L202: 1 | M202: 1 | N202: 1 | O202: PE19 | P202: 19 | Q202: CGE | R202: 202324
C203: National Treasury | D203: Cooperatives Banks Development Agency | E203: The Co-operative Banks Development Agency | F203: Mokgatla Tema | G203: (012) 315 5948 | H203: mokgatla.tema@treasury.gov.za | I203: Patrick Mbedzi | J203: (012) 315 5912 | K203: Patrick.Mbedzi@treasury.gov.za | L203: 1 | M203: 1 | N203: 3A | O203: PE157 | P203: 157 | Q203: CBDA | R203: 202324
C204: National Treasury | D204: Financial and Fiscal Commission | E204: The Financial and Fiscal Commission | F204: Mokgatla Tema | G204: (012) 315 5948 | H204: mokgatla.tema@treasury.gov.za | I204: Patrick Mbedzi | J204: (012) 315 5912 | K204: Patrick.Mbedzi@treasury.gov.za | L204: 1 | M204: 1 | N204: 1 | O204: PE38 | P204: 38 | Q204: FFC | R204: 202324
C205: Communications and Digital Technologies | D205: Independent Communications Authority of South Africa | E205: The Independent Communications Authority of South Africa | F205: Keitumetse Motshegwe | G205: (012) 395 6750 | H205: keitumetse.motshegwe@treasury.gov.za | I205: Mntazi Msiza | J205: (012) 315 5876 | K205: Mntazi.msiza@treasury.gov.za | L205: 1 | M205: 1 | N205: 1 | O205: PE47 | P205: 47 | Q205: ICASA | R205: 202324
C206: Home Affairs | D206: Electoral Commission | E206: The Independent Electoral Commission | F206: Timothy Murwa | G206: (012) 315 5002 | H206: timothy.murwa@treasury.gov.za | I206: Busi Motlhabedi | J206: (012) 395 6657 | K206: Busi.Motlhabedi@treasury.gov.za | L206: 1 | M206: 1 | N206: 1 | O206: PE50 | P206: 50 | Q206: IEC | R206: 202324
C207: Cooperative Governance | D207: Municipal Demarcation Board | E207: The Municipal Demarcation Board | F207: Millicent Mulaudzi | G207: (012) 395 6576 | H207: millicent.mulaudzi@treasury.gov.za | I207: Tumi Tjale | J207: (012) 395 6561 | K207: Tumi.Tjale@treasury.gov.za | L207: 1 | M207: 1 | N207: 1 | O207: PE154 | P207: 154 | Q207: MDB | R207: 202324
C208: Mineral Resources and Energy | D208: National Radioactive Waste Disposal Institute | E208: The National Radioactive Waste Disposal Institute | F208: Nomagugu Madikane | G208: (012) 315 5312 | H208: nomagugu.madikane@treasury.gov.za | I208: Sihle Manqele | J208: (012) 406 9174 | K208: Sihle.Manqele@treasury.gov.za | L208: 1 | M208: 1 | N208: 3A | O208: PE236 | P208: 236 | Q208: NRWDI | R208: 202324
C209: Higher Education and Training | D209: The National Skills Fund | E209: The National Skills Fund | F209: Spencer Janari | G209: (012) 315 5436 | H209: spencer.janari@treasury.gov.za | I209: Vuyo Ngqukumba | J209: (012) 315 5760 | K209: Vuyo.Ngqukumba@treasury.gov.za | L209: 2 | M209: 1 | N209: 3A | O209: PE89 | P209: 89 | Q209: NSF | R209: 202324
C210: Sport, Arts and Culture | D210: Pan South African Language Board | E210: The Pan South African Language Board | F210: Judy Naidoo | G210: (012) 315 5269 | H210: judy.naidoo@treasury.gov.za | I210: Patrick Mbedzi | J210: (012) 315 5912 | K210: Patrick.Mbedzi@treasury.gov.za | L210: 1 | M210: 1 | N210: 1 | O210: PE94 | P210: 94 | Q210: PANSALB | R210: 202324
C211: Sport, Arts and Culture | D211: The Playhouse Company | E211: The Playhouse Company | F211: Judy Naidoo | G211: (012) 315 5269 | H211: judy.naidoo@treasury.gov.za | I211: Patrick Mbedzi | J211: (012) 315 5912 | K211: Patrick.Mbedzi@treasury.gov.za | L211: 1 | M211: 3 | N211: 3A | O211: PE198 | P211: 198 | Q211: Playhouse | R211: 202324
... 23 more rows

Sheet Information
A14: ZWater Boards Consolidation
A16: =Settings!C2 -> Water and Sanitation
A18: datafilepe@treasury.gov.za
A21: Budget Examiner: | C21: Technical Assistant:
A22: =Settings!F2 -> Iqbal Mahomed Alli | C22: =Settings!I2 -> Mntazi Msiza
A23: =Settings!G2 -> (012) 315 5809 | C23: =Settings!J2 -> (012) 315 5876
A24: =Settings!H2 -> iqbal.mahomedalli@treasury.gov.za | C24: =Settings!K2 -> Mntazi.msiza@treasury.gov.za

Sheet Technical Guidelines
F4: Completing the public entities' budget template
F6: This spread sheet is intended to assist the data compilers when completing the budget template to provide background on each sheet to be completed and some relevant notes on items to consider when preparing data for the budget. Any changes effected on the template will be explained in the guidelines below:
F8: Changes effected on the template
F9: Important general notes to consider
F10: Admin and Objectives/Activities 2 to 15 contain the expenditure part of the Statement of Financial Performance as well as the Performance Indicators relating to each objective. Cells Q11-Q25 on all these Objectives/Activities contain a drop down to decide whether the performance indicators should be included in the Pub Table or not. Cells F33 - F139 contain a detailed goods and services list. The "please specify" rows have been removed from the expenditure sheets. Instead there is a list of goods and services items the entity can make use of to capture their expenditure. In the event that the entity is of the view that the provided items do not cater fully to their expenditure type, they should contact the tecnnical assistance for further guidance".
F11: Added: Please note there' conditional formatting added to monitor the completion of the outer year. If the outer year is not fully completed the total will be highlighted in Orange. The compiler is advised to fully complete the outer year.
F13: Sheets: Revenue, Objectives, Cash Flow, Financial Position and infrastructure are prepopulated with data submitted in the previous budget process.
F15: The Hide and Unhide Rows buttons are to be used to hide unused rows or unhide rows.
F17: The Do's and Don'ts
F19: ONLY the darker blue-shaded areas are to be completed.
F20: All the white areas are FORMULA-DRIVEN and should NEVER be overwritten.
F21: The light blue areas are of DROP DOWN LISTS and should be used to select the relevant items from the list. Entities should REFRAIN from copying data elsewhere and pasting it here.
F22: Column G in Financial Position, Cash Flow and Revenue sheets contain numbers that are of hyperlinks that navigate one to the definitions sheet for explanation of the specific item.
F24: Information to understand about logistics of the template
F25: All sheets should contain information from the audited history years, the budget information for the current year and the budget projections for the MTEF years.
F26: The first year of history numbers that are pre-populated (e.g. for Revenue and Financial Position etc.) will be locked and no changes will be allowed unless there has been restatement of numbers.
F27: The current year data (2022/23) and MTEF years' data may be revised where applicable and the outer year should be completed with data i.e. 2025/26.
F29: Analysis issues possible for queries if not attended to
F31: PFMA schedule 3A entities are NOT allowed to budget for deficit unless a prior approval has been granted to show deficits. This will be queried if approval was not granted.
F32: Accumulated surplus/deficit line in the current year should reflect the increment or depletion of the balance by the surplus or deficit made by the entity in the Income Statement.
F33: The Cash and cash equivalents balance in the financial position should also reflect the movements of increases or decreases in the cash and cash equivalents shown on the Cash Flow Statement.
F34: Projections of interest revenue and interest expenses should be in line with the trends shown on projections for Investments/Cash and cash equivalents and Borrowings respectively.
F35: All highlighted trends on the TrendsAnalysis sheet should be explained in column S of the same sheet, else a query will be raised.
F36: All highlighted trends on the CashFlowDiff sheet should be explained in column O of the same sheet, else a query will be raised.
F37: Chronological order of sheets on the template
F39: The Blue Tabs - reference sheets
F40: Information sheet
F42: The purpose of this sheet is for the compiler to provide National Treasury with their contact details and to verify that the entity name is correct. The contact details of compilers are used for ease of reference when there are queries in the database. Also contained on this sheet are the contact details of the Treasury's Budget Examiner who should be contacted with regards to budget allocation issues and the Technical Assistant who should be contacted with regards to complications on the template.
F44: Technical Guidelines
F46: The purpose of this sheet is to assist the data compiler with the background of each sheet to be completed and to provide some relevant notes on things to consider in preparing data for the template. This sheet should be read carefully for ease of completion of the template.
F48: Economic Definitions
F50: This sheet contains all definitions of the economic classification found on the template. The definitions are hyperlinked from the sheets being completed. These definitions assist in determining how to correctly classify each financial item .
F52: The Purple Tabs - financial data sheets
F54: To note from this part onwards is that the Statement of Financial Performance is broken down into different sheets. The sheets from Admin to sheet 15 are what is now called objectives of the entity and this is where the expenses part of the Statement of Financial Performance sheet is reflected.Performance Indicators tables are also included at the top of each sheet. Details of the split are detailed below:
F56: Revenue
F58: The Revenue sheet is the normal income part of the Statement of financial perfomance and has been separated from the expenditure part. Note the check at the bottom of the sheet that checks the surplus/deficit line of what the total revenue less the total expenditure will be against what is in the Annual Report. The blue shaded areas are still the areas to be completed and not the white ones.
F60: Admin
F61: Admin sheet is what is also called objective 1 of the entity. This sheet should be used to capture only the information relating to the Administration Objective of the entity. The Administration objective should include the following: Entity Management which includes the salary, allowances and other support costs of the Board and the CEO and the management of the CEO’s office and the Board. Corporate Services that include all costs related to staff in the Human Resources, Legal Services, Communications, Information Technology and Other support services (based on the entity’s decision). Finance Administration which are all costs related to staff in Finance including the CFO and the management of the Office of the Chief Financial Officer. Internal Audit recognising that the reporting channel for the Head of Internal Audit is not through the CFO but directly to the CEO. Office Accommodation which includes activities and costs relating to the provision of office accommodation functions for the entity. Where office accommodation functions relating to other specific objectives of the entity can be identified, they should be assigned to the relevant objective. Residential accommodation that includes activities and costs relating to the provision of housing to employees of the entity. (Note: This does not include the residential benefits of the Accounting Authority). Source: Guidelines on Budget Programmes (National Treasury. 2010.) Content has been amended to suit public entities
F63: The first table to complete on this sheet is the Performance Indicators table. The performance indicators to be completed on this table are only those that relate to the Administration Objective of the entity. The entity should select whether they would like the indicators to be included in the Pub Table or not. The second table that follows is the detail of the expenditure that relates to the Admin objective broken down into economic classification. The entity should then reflect all expenses relating to the Admin objective and the total for all other objectives should balance to the total expenditure of the objective.
F64: New performance indicators to the APPs and changes to old performance indicators must be communicated with the budget examiners before they are included for the purposes of this template.
F65: Objectives 2, 3, 4 .... 15
F66: Objective Sheets from sheet 2 to 15 are exactly the same as the Admin sheet. These should contain the objectives/activities of the entity on rows 37 of each objective, followed by the Performance Indicators. Relevant balances should be made in each.
F68: Cash Flow
F69: The Cash Flow Sheet reflects the Direct Method of the cash flow. However, this method is more detailed than as shown on the Annual Report. The sheet will be prepopulated with available data and the entity should provide a breakdown of it's operating cash flow activities and should balance to the numbers shown on the Annual Report by checking against the balances on row 11. The entity is required to provide this detail fully.
F71: Financial Position
F72: This sheet reflects the assets, liabilities and equity of the entity and the information should balance to the Annual Report in the historical numbers. The checks on row 99-100 should be used to ensure the balance.
F74: Related Party Revenue
F75: This sheet is to be used to reflect all related party revenue consisting of receipts from sales of goods and services EXCEPT transfer receipts from government institutions. This means that the entity must be doing business with the government institution and receiving payment for such goods and/or services. Transactions with municipalities have been excluded from this sheet because Local Government is not yet included in the government consolidated account. The compiler should use the drop down list to select the relevant categories in this sheet and should refrain from copying the data elsewhere and pasting it on the sheet.
F76: Please note that the Related Party Revenue sheet is meant to source cash figures. The reported figures should therefore correspond to the Sales by Market Establishment line on the Cash Flow sheet. If for example an entity shows a total of R500 000 for sales by market establishment on the cash flow sheet, the question that should be answered in order to complete this sheet is, how much of the R500 000 is received from other government units (except local government).
F77: On column H, the entity is required to indicate the exact transaction that took place resulting into the particular related party revenue. This should be done by selecting a relevant item from the drop down list provided. The question to ask here would be, what exactly did the entity sell to the other government unit that resulted in the receipt of this revenue? eg computer services.
F79: Personel
F80: The personnel sheet should be used to record all costs pertaining to employees of an entity. The guidelines for estimating this sheet are in the main budget guideline. The entity is urged to read through the main guideline as it sets out what the overall budget seeks to address and all the main issues to be considered when compiling budgets over the MTEF. For expenditure on compensation, the total should add up to the total compensation on the ENE Summary. Finance officials together with HR officials should work together to complete this sheet. All blue shaded columns should be completed and the light blue drop down lists should be used to select the relevant items required.
F82: DEFINITIONS
F83: Approved Establishment refers to the number of employment positions approved by the Entity's Executive Authority.
F84: Funded Establishment refers to the number of employment positions for which provision is made in the budget.
F85: Permanent refers to employees with work contracts of unlimited duration.
F86: Temporary/Contract refers to employees who are employed for a fixed period of time (e.g. 6 months, 2 years, etc.)
F87: Guaranteed Package refers to the total of fixed and regular income/benefit items and employer contributions (if any) to Employee Benefit Funds (Retirement, Medical and Group Life). (i.e., Fixed Pay)
F88: Performance Bonus refers to the additional compensation paid to an employee for performance that has exceeded expectations. This is typically awarded after a performance appraisal and analysis of projects completed by the employee over a specific period of time. (i.e., Variable Pay)
F89: Other (components of remuneration) refers to the Total Cost to Company less Guaranteed Package less Performance Bonus. E.g. overtime payments (i.e., Variable Pay)
F90: STEPS TO BE FOLLOWED
F91: Column F (Category) - Select the relevant option (whether permanent or temporary/contract - as per definitions above) for a certain group of employees belonging to the salary level in Column H.
F92: Column G (Salary Level) - Select the relevant salary level starting with the lowest. DO NOT ADD OR DELETE ANY INFORMATION IN THIS COLUMN.
F93: Column I (Occupation) - Select the occupation which best describes the officials in the salary level that you have selected. The intention is to see the type of skills that the organisation has and not necessarily the functional job titles of individual employees. If none is relevant, then specify the relevant occupation by typing it in.
F94: Column J (Components of Remuneration) - Select the relevant component of remuneration, starting with the Guaranteed Package followed by the Performance Bonus and then Other (as per definitions above). DO NOT ADD OR DELETE ANY INFORMATION IN THIS COLUMN.
F95: Column K (Number of posts filled on funded establishment) - Include only the number of posts that were filled and funded on the approved establishment.
F96: Column L (Expenditure on posts filled on funded establishment) - Include the expenditure on the above-mentioned posts.
F97: Column M (Unit costs) - Unit costs of the above-mentioned posts. This column is formula driven.
F98: Column N (Number of posts on approved establishment) – This includes both filled and vacant posts and may or may not be funded. This is as approved by the Entity’s Executive Authority.
F99: Column O (Number of funded posts (establishment)) – This is a projection from April 2022 to end of March 2023 and includes both filled and vacant posts which are funded.
F100: Column P (Number of posts filled on funded establishment) - This is a projection of posts that will be filled by the end of March 2020 on the funded establishment.
F101: Column Q (Expenditure on posts filled on funded establishment) - Expenditure on the above-mentioned posts.
F102: Column R (Unit costs) - Unit costs of the above-mentioned posts. This column is formula driven.
F103: Columns S to AA - Projections over the MTEF.
F105: Check line:
F106: All figures must be rounded to the nearest thousand and there should be no decimals. Ensure that the CHECK row shows a dash for each of the financial years. If not, look for errors in the captured data - there may be decimals in the figures or some other error.
F108: Expend Summary
F109: The Expenditure summary sheet is formula driven and contains all expenditures from all 10 objectives that the entity would have completed. This is where the entity can verify if its budget is allocated appropriately in the different objectives to sum the total budget allocated and also to check the status of its expenditure in total. All the red checks should balance and where they don't, reference should be made back to the individual objectives to check where the problem could be arising from.
F111: ENE Summary
F112: The ENE Summary is what is used to be called the Pub Table. This sheet summarises all inputs from different sheets in preparation for publication. The first table is where the different objectives are summarised and the check on row 28 checks that the total objectives equals the total expenditure on row 53. The second table is the Statement of Financial Performance having combined the inputs in the Revenue sheet and those in the 15 objectives to complete the statement. The next two tables are of the summary of Cash flow statement and the Financial Position statement as have been completed on their respective sheets. The final table is that which shows the financial performance of the entity by means of ratios. This indicates well how the entity is performing over the years.
F114: Perform Info Pub
F116: The Performance Information Pub sheet is formula-driven and summarises all the performance indicators reflected on the different objectives. This sheet will only reflect those indicators that the entity chose to include when completing columns Q of each objective. This is usually the table that gets published on the ENE publication and reflects the final indicators of the entity.
F118: Personnel Pub
F119: This sheet is formula-driven and summarises the personnel information that is included in the Personnel sheet for publication.
F121: Personnel Trends
F122: Personnel trends with percentage increases and decreases above 10% for headcounts and above 8% increases and decreases for Unit costs must be explained in the trends explaination column (Column O) of the same sheet.
F124: Checks
F125: This sheet should be visited once all has been completed to check and verify that all checks built on the template have been balanced. It highlights any area where a check should have been balanced in a specific sheet and in a case where a check is not balanced, the compiler needs to re-visit the relevant sheet and make corrections to clear the errors. Should an entity submit the template with any of the checks unbalanced, a query will be raised. The entity is urged to attend to all checks in the template and ensure that there are no checks and all relevant sheets are balancing.
F126: Added table: Please note there's a table added in row 49 to 55. It highlights the incomplete outer year. The compiler needs to re-visit the relevant sheet and make corrections to clear the checks.
F128: The Red Tabs - formula-driven sheets for analysis
F130: Trends Analysis
F131: The sheet contains growth trends. The entity will need to pay attention to and explain on the financial perfomance and cash flow explanation tables provided on the sheet where highlighted by a certain colour. There is a legend that explains the different colours that will be highlighted once a certain concerning trend is reflected. A trend will be concerning if, for an example, a certain goods and services item is increasing or decreasing at a rate different from the average. The entities are urged to peruse this sheet carefully to monitor the trends in their budget submissions.
F133: Cash flow differences
F134: The sheet reflects differences between the figures in the current budget process and the ones in the previous year's budget process. There is a legend that explains the different colours that will be highlighted once a certain concerning trend is reflected. There is an explanation table provided for entities to give reasons for changes.
F136: The Green Tabs - additional financial information on Infrastructure and ODA
F138: Infrastructure
F139: This sheet is to be completed only by entities that are involved in infrastructure projects. The project name, description, stage, cost and all other required information should be provided to ensure completeness. The sheet is prepopulated with last years numbers.
F141: When done completing the budget template
F143: Go to the Sign-Off sheet.
F144: Print out the sign off page, sign on the signature space, scan and email the document along with the budget planning baseline tool .
D335: Budget approved by the board.

Sheet Economic definitions
F3: Note | H3: ITEM | I3: DEFINITIONS | J3: EXAMPLES
F4: 1 | H4: Tax receipts | I4: A tax receipt is defined as compulsory, unrequited revenue collected by an entity. Taxes are compulsory because the other party is required by statutory provision to pay taxes in certain circumstances and under certain conditions. Taxes are unrequited in the sense that government does not provide anything directly in return to the party making the tax payment. Not all compulsory, unrequited receipts are recorded as taxes. Excluded are; Fines, penalties and forfeits_ also compulsory, unrequited receipts, but are recorded separately from taxes. Fines, penalties and forfeits are distinguished from taxes by that they are as a result of a volation of a law or administrative rules, while taxes are an implementation of a law. Transfers received_ also unrequited receipts by government but not considered taxes. Taxes are distinguished from transfers received because taxes are compulsory and transfers received are voluntary. [Guidelines for implementing the New Economic Reporting Format] Social (security) contributions_ payments earmarked for unfunded social security schemes, e.g. UIF, that provide benefits other than retirement benefits. These are recorded separately from taxes. | J4: *Casino taxes *Motorvehicle licences tax *Liquor licences tax *Horse racing taxes
F6: 2 | H6: Sales of goods and services: non capital assets | I6: The category consists of all sales by public entities provided that the entity has produced the good or service. It is important to note that sales of capital assets are never included under this category, but under sales of capital assets. Thus, sales of capital assets are excluded from this category even if they have been produced by a public entity. Revenue from ownership of building and fixed structures - rentals - is included in this category. This is because revenue from ownership of buildings implies the provision of a service in the form of maintenance and repair. In contrast, revenue from ownership of land is more passive and is therefore not considered a sale. To note; Revenue from ownership of buildings must be distinguished from revenue from ownership of land and sub-soil assets; the latter is classified as rent of land, which is a separate revenue category. | J6: *Sale of goods and services produced by an entity *Sales: Scrap, Waste, Other goods
F8: 3 | H8: Sale of goods and services produced by an entity | I8: This category consists of sales by entities, provided that the entity produced the goods or services. | J8: *Administrative fees *Sales by market establishments *Other sales
F10: 4 | H10: Administrative fees | I10: This item consists of revenue collected for sales of regulatory or administrative services, and is sometimes referred to as license fees. In this category, government must exercise a regulatory or administrative function. For example, it may verify the competence of a licence holder. Classification provided for under this category includes licence or permits, registration fees and inspection fees (e.g. brands, and travel documents). Note: Regarding license fees, the government should be providing a service to the remitter of this fee, e.g. the use of government-owned land by hunters; otherwise the fee is classified as a tax on goods and services | J10: *Licences/Permits Fees *Registration *Request for information *Inspection fees
F12: 5 | H12: Sales by market establishments | I12: When a public entity sells goods or services at market related prices the transactions should be recorded here. Examples are rent from buildings and equipment charged at the prevailing market prices. Example; rental of produced assets are treated as sales of services and diamond sales are treated as sales of goods. Market prices are prices economically significant enough to influence supply and demand of a good or service. The easiest benchmark is the prevailing price in the private market. | J12: *RENTAL ON BUILDINGS *Rental machinery and equipment *Ticket sales *Ressearch services *Advertising services
F14: 6 | H14: Other sales | I14: This item includes money received from the sale of all other goods and services produces or partially produced by an entity. To be part of this category, the fee charges must be below prices prevailing in the private market. User charges at below market prices are included for example hospital fees, as well as park and museum fees. Examples are rentals of buildings and machinery, as well as hospital, park and museum fees. Sales of seeds and livestock produced by public entities are considered other sales. Sales of items purchased from another economic unit and then resold should also be included under this item; an example would be a postcard sold by a museum. | J14: SERVICES RENDERED: *Health services *Exam certificates * Police service SALES OF GOODS: *Tender documents *Pharmaceutical *Water
F16: 7 | H16: Sales: Scrap, Waste, Other goods | I16: This item includes sales of all items that are not considered capital assets and not produced by entity e.g. used arms sold by the Department of Defence. | J16: *Sales: Scrap and waste *Selling arms and arms support systems
F18: 8 | H18: Transfers Received | I18: This item consists of all unrequited receipts voluntarily given by other parties. Thus, an entry should be made under this item when a public entity does not give a service or good directly in return for the transfer from the other party and the transfer is voluntary. | J18: Transfers Received This item consists of all unrequited receipts voluntarily given by other parties. Thus, an entry should be made under this item when a public entity does not give a service or good directly in return for the transfer from the other party and the transfer is voluntary. Included are; Grants (Not identified as grants in our format) which are voluntary transfers received by a government unit from either another government unit, foreign governments or an international organisation, Social contributions_ payments earmarked for social security agencies and Other transfers (not identified as other transfers in our format)_ gifts and donations from sources other than government units and international organisations. Excluded are; All payments made by government departments or other government units for services provided by the entity. These are sales of goods and services. E.g. if DTI commissions CSIR for some research project and pay for this, this should be rightly classified as Sales.
F20: 9 | H20: Other Government Units | I20: Money received from other governmental units either as a current or capital transfer. | J20: (Not identified as grants in our format) which are voluntary transfers received by a government unit from either another government unit, foreign governments or an international organisation.
F22: 10 | H22: National government units | I22: Money received from national departments either as a current or capital transfer. | J22: Voluntary transfers received by a government unit from either another government unit, foreign governments or an international organisation.
F24: 11 | H24: Departmental Transfers | J24: Voluntary transfers received by a government unit from either another government unit, foreign governments or an international organisation.
F26: 12 | H26: Other National Departments | J26: Voluntary transfers received by a government unit from either another government unit, foreign governments or an international organisation.
F28: 13 | H28: Departmental agencies and accounts | I28: Money received from departmental agencies either as a current or capital transfer.
F30: 14 | H30: Provincial governments | I30: Money received from provincial government as a current or capital transfer.
F32: 15 | H32: Local Governments | I32: Money received from local governments (municipalities or municipal entities) either as a current or capital transfer.
F34: 16 | H34: Higher education institutions | I34: Current and capital transfers received from Higher Education Institutions, deemed to be established or declared as a Technicon or University under the Higher Education Act of 1997. | J34: *(Not identified as other transfers in our format)_ gifts and donations from sources other than government units and international organisations.
F36: 17 | H36: Foreign government and international organisations | I36: Capital and current transfers received from foreign governments. | J36: *(Not identified as grants in our format) which are voluntary transfers received by a government unit from either another government unit, foreign governments or an international organisation.
F38: 18 | H38: Local non-government donors | I38: Donations received from public corporations or private enterprises. | J38: *(Not identified as other transfers in our format)_gifts and donations from sources other than government units and international organisations.
F40: 19 | H40: Fines, penalties and forfeits | I40: This item consists of all compulsory receipts imposed by a court or quasi-judicial body. Out-of-court settlements are also included in this category. As with taxes, this item consists of unrequited, compulsory transactions. Thus, the recipient public entity does not provide anything in return for these receipts. | J40: *Consumer courts fines, courts fines, traffic fines, criminal offence plea&snt fine
F42: 20 | H42: Interest and rent on land | I42: This item consist of the income associated with ownership of interest-bearing financial instruments, such as bank deposits, loans extended to others, and bills and bonds issued by others. A dividend is a sum of money paid regularly (typically annually) by a company to its shareholders out of its profits (or reserves). Rent on land consists of economic rent, interest on capital invested for improvement of land, and reward for the risk taken by the landlord in investing his or her capital. | J42: *Land, Prospecting fees, retension fees, royalties, surface rental
F44: 21 | H44: Interest | I44: This item consist of the income associated with ownership of interest-bearing financial instruments, such as bank deposits, loans extended to others, and bills and bonds issued by others. | J44: *Bank deposits, loans extended to others, and bills and bonds issued by others.
F46: 22 | H46: Dividends | I46: A dividend is a distribution of money or property paid by a corporation out of the corporation's profits to shareholders. Government units are not payers of dividends as a rule. Exceptions may be public corporations. | J46: *Shares and other equity
F48: 23 | H48: Rent on land | I48: The item consists of the money received due to ownership of land. This item also includes all revenue due to ownership of sub-soil assets and other commercially exploitable naturally occurring assets such as virgin forests, game and fisheries. | J48: *Land, Prospecting fees, retension fees, royalties, surface rental
F50: 24 | H50: Unclassified revenue | I50: All revenue items that could not be classified above. Please make sure that the items are clearly specified, i.e. we will not accept "other" as a specification. This is so that we can then classify the revenue in one of the classes given.. Out-of-court settlements are also included in this category. As with taxes, this item consists of unrequited, compulsory transactions. Thus, the recipient public entity does not provide anything in return for these receipts. | J50: *All other revenue items that could not be classified above.
F52: 25 | H52: Tax benefit | I52: A tax benefit is an allowable deduction on a tax return intended to reduce a taxpayer's burden while typically supporting certain types of commercial activity. A tax benefit allows some type of adjustment benefiting a taxpayer's tax liability. | J52: *Tax deductions, credits, and exclusions are benefits that reduce the amount taxpayers owe annually to federal and state governments. Tax shelters are another form of tax benefit that can help to lower taxes through special investments.
F54: 26 | H54: Outside Shareholder's interest | I54: Outside shareholders have no links with the company but have a financial interest in its operating performance
F56: 27 | H56: Compensation of employees | I56: Compensation of employees includes remuneration in cash, including social contributions by employers. Specifically included are basic wages and salaries, overtime, remuneration for nightshift, cost of living allowances, transport, house allowances, bonuses.
F58: 28 | H58: Salaries and wages | I58: This item includes payments to employees, except social contributions. Social contributions are recorded separately. The item, salaries and wages, includes:Salaries or wages payable at regular weekly, monthly or other intervals. Remuneration to staff members employed on a contractual basis is included, provided that these staff members are paid at regular intervals and that they are listed on the government payroll. This also includes payments by results and piecework payments; enhanced payments or special allowances for working overtime, at nights, at weekends or other unusual hours; allowances for working away from home or in disagreeable or hazardous circumstances; and expatriation allowances for working abroad; Supplementary allowances payable regularly, such as housing allowances or allowances to cover the costs of travel to and from work. Salaries or wages payable to employees away from work for short periods, for example, on holiday; Ad hoc bonuses or other exceptional payments made, for example, under incentive schemes. Salaries and wages include the values of any social contributions, income taxes, etc., payable by the employee. This applies even if they are compulsory or withheld by the employer for administrative convenience or other reasons and paid directly to social insurance funds, tax authorities, etc., on behalf of the employee. For example, employees’ contributions to pension funds and medical aid are included in salaries and wages. The item, salaries and wages, does not include: Reimbursements of costs incurred by employees on tools, equipment, uniforms and other items that are needed to enable them to carry out their work. For example, uniforms provided to police officers are not compensation of employees, but use of goods and services. Uniform allowances are classified as use of goods and services if the employee is required to use the funds to purchase a uniform that will mainly be used at work; Relocation costs reimbursement _costs incurred by employees when they take up new jobs or are required by their employers to move their homes, for example, travel and moving expense; Payments for travel and subsistence while on government duty away from duty station. Per Diem and out-of-town allowances fall under this category; Purchases of services provided by people who are not government employees, for example, consultants, architects and occasional workers. The above four items should be classified under use of goods and services Social benefits to employees. These can be in the form of allowances made for accidental injury, severance and incapacity pay. Allowances to employees’ dependants are also considered social benefits. In most cases, payments falling under this category are made from a social insurance fund. Payments to employees or former employees that are not remuneration for work The above two items should be classified under transfers to households, social benefits This item includes payments to employees, except social contributions. Social contributions are recorded separately. The item, salaries and wages, includes: Salaries or wages payable at regular weekly, monthly or other intervals. Remuneration to staff members employed on a contractual basis is included, provided that these staff members are paid at regular intervals and that they are listed on the government payroll. This also includes payments by results and piecework payments; enhanced payments or special allowances for working overtime, at nights, at weekends or other unusual hours; allowances for working away from home or in disagreeable or hazardous circumstances; and expatriation allowances for working abroad; Supplementary allowances payable regularly, such as housing allowances or allowances to cover the costs of travel to and from work. Salaries or wages payable to employees away from work for short periods, for example, on holiday; Ad hoc bonuses or other exceptional payments made, for example, under incentive schemes. Salaries and wages include the values of any social contributions, income taxes, etc., payable by the employee. This applies even if they are compulsory or withheld by the employer for administrative convenience or other reasons and paid directly to social insurance funds, tax authorities, etc., on behalf of the employee. For example, employees’ contributions to pension funds and medical aid are included in salaries and wages. The item, salaries and wages, does not include: Reimbursements of costs incurred by employees on tools, equipment, uniforms and other items that are needed to enable them to carry out their work. For example, uniforms provided to police officers are not compensation of employees, but use of goods and services. Uniform allowances are classified as use of goods and services if the employee is required to use the funds to purchase a uniform that will mainly be used at work; Relocation costs reimbursement _costs incurred by employees when they take up new jobs or are required by their employers to move their homes, for example, travel and moving expense; Payments for travel and subsistence while on government duty away from duty station. Per Diem and out-of-town allowances fall under this category; Purchases of services provided by people who are not government employees, for example, consultants, architects and occasional workers. The above four items should be classified under use of goods and services Social benefits to employees. These can be in the form of allowances made for accidental injury, severance and incapacity pay. Allowances to employees’ dependants are also considered social benefits. In most cases, payments falling under this category are made from a social insurance fund. Payments to employees or former employees that are not remuneration for work The above two items should be classified under transfers to households, social benefits
F60: 29 | H60: Social contributions | I60: This item includes the government’s contribution (but not the employees’ contribution) to social insurance schemes paid on behalf of employees.
F62: 30 | H62: Administrative fees: Payments | I62: An expense incurred in controlling and directing an organization, but not directly identifiable with financing, marketing, or production operations. | J62: *Accredition fees *Appeals fees *Bank charges and card fees *Copy right fees *Firearm handling fees *Licence agency fees *Management/ Handling fees *Personnel agency fees *Registration fees *System access & information fees *Travel agency fees
F64: 31 | H64: Advertising | I64: Costs of the specific formulation and publication of notices to attract prospective service providers and suppliers, promote government activities and/or projects or for filling of vacant positions. Advertising media includes television, radio, movies, magazines, newspapers, video games, internet, billboards. | J64: *Advertising: Auctions *Advertising: Bursaries (Non-employees) *Advertising: Marketing *Advertising: Promotional items *Advertising: Public notices *Advertising: Recruitment *Advertising: Tenders
F66: 32 | H66: Minor assets | I66: This asset category includes machinery and equipment, furniture and computer hardware costing less than R5 000/capitalisation threshold. These assets can be used continuously or repeatedly in production for at least one year. They are treated as current payments and not capitalised.
F68: 33 | H68: Audit cost: external | I68: This item refers to external/ regulatory audits, conducted by the Auditor-General or Private Auditing companies in SA, whereby the audit provides an independent opinion on published information. This is different from internal auditors who do not attest to financial reports but focus mainly on the internal controls of the organization. | J68: *Regularity *External computer audits *External environmental audits *External forensic investigation *External performance audit
F70: 34 | H70: Bursaries (Employees) | I70: Bursaries include payments made to provide direct support to employees for studying at universities or other tertiary institutions, where all the conditions and terms have been complied with in terms of the contract with the bursary holder. Direct support could include fees, text books and other aids and accommodation at the university residence.
F72: 35 | H72: Catering: Internal activities | I72: Expenditure incurred on individuals employed or contracted to the public entity or individuals outside the employ of the public entity, in connection with the activities of a entity, or division within the entity, that directly relates to the achievement of its objectives. | J72: *Catering for conferences, bosberade, workshops, indabas, courses, forums, hearings and meetings held with the intention to discuss the entity’s initiatives; *Catering for a function for the launching/roll-out of an product of the department or division within a department *Catering for interviews or training sessions; *Diner and drinks supplied at year-end functions; *Eatery provided for members of standing boards, other government bodies and official commissions or committees of enquiry.
F74: 36 | H74: Communication | I74: Payments for the usage of telephones, faxes, telegraphs and telex for communication purposes, including costs for teleconferences. Communication by telephones and faxes includes the sending of messages electronically i.e. the sending of a message, image or document via a fax machine or a telephone or cellular phone. Telex is a communications system using teleprinters that communicate via telephone lines. Teleconference is a meeting via telecommunications equipment: a meeting held among people in different places by means of telecommunications equipment. Telecommunication equipment includes phones, faxes, telegraphs and telex excluding cellular phones refer to "Communication: Cell contract (Subscription and calls). Rental of equipment defined as operating or finance leases should be allocated under the item provided for leases. | J74: *Communication: Airtime and data *Communication: Postage/stamps/franking machines *Communication: Radio and tv transmissions *Communication: Rent private bag and postal box *Communication: Satellite signals *Communication: Telephone, fax, telegraph and telex *Communication: Telephone installation
F76: 37 | H76: Computer services | I76: Expenditure for the utilisation of information technology, information systems and related services provided by an external service provider. | J76: *SITA computer services *External computer services: Data lines *External computer services: Information services *External computer services: Internet charge *External computer services: Mainframe time *External computer services: Software licences *External computer services: Specialised computer services *External computer services: System adviser *External computer services: System development *External computer services: Website design and development
F78: 38 | H78: Consultants: Business and advisory services | I78: Consulting services refer to specialist services and skills provided that are required for the achievement of a specific objective, with the aim of providing expert and professional advise on a time and material basis. It is unnecessary to maintain these skills in-house, since they are required on a once-off or temporary basis. Therefore a consultant is a professional person appointed by the department to provide technical and specialist advise or to assist with he design and implementation of specific projects/programs. The legal status of this person can be an individual, a partnership or a corporation. The fact that a consultant is defined as a professional person implies that the consultant is professionally qualified. The provision of advise or service is in line with a contractual arrangement. Remuneration is usually based on an hourly fee or a fixed fee for a product/deliverable. | J78: *Consultants: Business and advisory services: Accountants and auditors *Consultants: Business and advisory services: Audit committee (non-officials) *Consultants: Business and advisory services: Board members *Consultants: Business and advisory services: Commissions and committees of enquiry *Consultants: Business and advisory services: Communications strategy *Consultants: Business and advisory services: Business management *Consultants: Business and advisory services: Human resource *Consultants: Business and advisory services: Occupational safety and health *Consultants: Business and advisory services: Organisational *Consultants: Business and advisory services: Project management *Consultants: Business and advisory services: Quality control inspectorate *Consultants: Business and advisory services: Qualification verification *Consultants: Business and advisory services: Research and advisory services *Consultants: Business and advisory services: Translations and transcriptions *Consultants: Business and advisory services: Valuer
F80: 39 | H80: Infrastructure and planning services | I80: This group of professional service providers refers to qualified infrastructure and planning professional services. These are specialised services which require expert and professional advice on a time and material basis for the achievement of specific objectives. It is unnecessary to maintain these skills in-house, since they are required on a once-off or temporary basis. This professional person(s) is appointed by the department to provide technical and expert advice or to assist with the design and implementation of specific projects/programmes. The legal status of this person can be an individual, a partnership or a corporation. The provision of advice or service should be in line with a contractual arrangement. | J80: *Infrastructure and planning services: Engineering *Infrastructure and planning services: Agriculture services *Infrastructure and planning services: Architectural services *Infrastructure and planning services: Ecological services *Infrastructure and planning services: Geodetic and control survey services *Infrastructure and planning services: Geoinformatic services *Infrastructure and planning services: Geologist services *Infrastructure and planning services: Landscape designer services *Infrastructure and planning services: Land and quantity surveyors services *Infrastructure and planning services: Town planner services *Maintenance and repairs: buildings: consultants *Maintenance and repairs: other fixed structures: consultants
F82: 40 | H82: Maintenance and repairs: Buildings: Consultants | I82: The costs incurred to bring an asset back to an earlier condition or to keep the asset operating at its present condition (as opposed to improving the asset). For example, if a building is damaged, the cost to repair the damage is immediately debited to repairs and maintenance expense. | J82: *Maintenance and repairs: Buildings: Consultants: Architectural services *Maintenance and repairs: Buildings: Consultants: Engineering civil services *Maintenance and repairs: Buildings: Consultants: Engineering electrical services *Maintenance and repairs: Buildings: Consultants: Engineering mechanical services *Maintenance and repairs: Buildings: Consultants: Engineers structural services *Maintenance and repairs: Buildings: Consultants: Health and safety officers *Maintenance and repairs: Buildings: Consultants: Land and quantity surveyors services *Maintenance and repairs: Buildings: Consultants: Engineering structural services
F84: 41 | H84: Maintenance and repairs: Other fixed structures: Consultants | I84: The costs incurred to bring an asset back to an earlier condition or to keep the asset operating at its present condition (as opposed to improving the asset). For example, if a company truck is damaged, the cost to repair the damage is immediately debited to repairs and maintenance expense. | J84: *Maintenance and repairs: Other fixed structures: Consultants: Architectural services *Maintenance and repairs: Other fixed structures: Consultants: Engineers structural services *Maintenance and repairs: Other fixed structures: Consultants: Engineering civil services *Maintenance and repairs: Other fixed structures: Consultants: Engineering electrical services *Maintenance and repairs: Other fixed structures: Consultants: Engineering mechanical services *Maintenance and repairs: Other fixed structures: Consultants: Health and safety *Maintenance and repairs: Other fixed structures: Consultants: Land and quantity surveyors services *Maintenance and repairs: Other fixed structures: Consultants: Engineering structural services
F86: 42 | H86: Laboratory services | I86: Payments specifically related to laboratory services. This item include the cost associated with making use of professionals or professional services for laboratory services such as scientific experiments, research, manufacturing of drugs or chemicals, observation and testing. | J86: *Laboratory services: Agriculture *Laboratory services: Medical laboratory services *Laboratory services: Roads laboratory services *Laboratory services: Water laboratory services
F88: 43 | H88: Legal services | I88: Payments for any legal services to either private firms or state attorneys. This is for the service cost of attorneys. | J88: Legal cost: Private firm: Legal advice services Legal cost: Private firm: Messenger of court services Legal cost state attorney: Advice services Legal cost state attorney: Conveyancing services Legal cost state attorney: Messenger of court services
F90: 44 | H90: Science and technology services | I90: Scientific and technological services are defined as activities concerned with research and experimental development and contributing to the generation, dissemination and application of scientific and technical knowledge. | J90: *Science and technology services: Special services *Science and technology services: Research and development support services
F92: 45 | H92: Contractors | I92: Contractors are required to provide services that are not the core business of the department. It is normally not cost effective to maintain these skills within the department. Contractors includes costs associated with the use of contracted individuals or businesses on projects or tasks. This does not include amounts payable to contractors in respect of provision of services such as cleaning and security even if a staff element can be identified. Note also that it is common practice that the said contractor provides all the materials required for the project - he/she tenders for the whole project, materials included. | J92: *Contractors: Abbatoir services *Contractors: Aerial photography *Contractors: Artists and performers *Contractors: Auctioneers *Contractors: Audio-visual service *Contractors: Bore waterhole drilling *Contractors: Bottling and packaging *Contractors: Burial services *Contractors: Casual labourers *Maintenance of buildings: Casual labourers *Contractors: Curators *Contractors: Disposal services *Contractors: Editorial services *Contractors: Employee wellness *Contractors: Event promoters *Contractors: Fire fighting services. *Contractors: Forensic investigators *Contractors: Graphic designers *Contractors: Interior decorator *Contractors: Medical services *Contractors: Mint of decoration *Contractors: Photographer *Contractors: Plants, flowers and other decorations *Contractors: Preservation/restoration/dismantling/cleaning services *Contractors: Professional drivers *Contractors: Private firm: legal services *Contractors: Security services *Contractors: Sports and recreation *Contractors: Stage and sound crew *Contractors: Tour guides *Contractors:Tracing agents and debt collectors *Contractors:Transportation/relocation contractor *Contractors: South african social security agency (sassa) payment contractors *Contractors: Maintenance and repairs of other fixed structures *Contractors: Maintenance and repairs of other machinery and equipment *Contractors: Maintenance and repairs of heritage buildings *Contractors: Maintenance and repairs of other heritage fixed structures
F94: 46 | H94: Agency and support/Outsourced services | I94: Agency and support or outsourced services refers to staff appointed through an agency or staff appointed individually on contract or similar binding arrangement. An entity should have the capacity and expertise to carry out certain services, but for some reasons are not utilising their own staff. The services do not form part of Compensation of employees. The reasons might include temporary incapacity or the outsourcing of services to save costs, for example cleaning, security and recruitment. In evaluating the classification of agency/outsourced services it should be established whether the services being procured could have been provided by the entity itself. | J94: Agency and support/Outsourced services: Adjudicators Agency and support/Outsourced services: Administration and support staff Agency and support/Outsourced services: Agricultural services Agency and support/Outsourced services: Biocontrol services Agency and support/Outsourced services: Burial services Agency and support/Outsourced services: Census field staff Agency and support/Outsourced services: Covid cleaners and screeners Agency and support/Outsourced services: Editorial services Agency and support/Outsourced services: Education / General assistants Agency and support/Outsourced services: EPWP workers Agency and support/Outsourced services: Facilitators Agency and support/Outsourced services: Financial management Agency and support/Outsourced services: Fire services Agency and support/Outsourced services: Health professional allied Agency and support/Outsourced services: International institute of communications Agency and support/Outsourced services: Inmates recovery fee Agency and support/Outsourced services: Investigation services Agency and support/Outsourced services: Land claim verification Agency and support/Outsourced services: Lectures Agency and support/Outsourced services: Legal services Agency and support/Outsourced services: Medical and chemical waste removal Agency and support/Outsourced services: Medical doctor Agency and support/Outsourced services: Medical services Agency and support/Outsourced services: Nursing staff Agency and support/Outsourced services: Nutritional services Agency and support/Outsourced services: Personnel and labour Agency and support/Outsourced services: Pharmacy professionals Agency and support/Outsourced services: Photographers Agency and support/Outsourced services: Porter services Agency and support/Outsourced services: Postmortem Agency and support/Outsourced services: Researcher Agency and support/Outsourced services: Security services Agency and support/Outsourced services: Social care services Agency and support/Outsourced services: Statisticians Agency and support/Outsourced services: Steam provision Agency and support/Outsourced services: Universities certification Agency and support/Outsourced services: Universities Agency and support/Outsourced services: Veterinary services Agency and support/Outsourced services: Waste services
F96: 47 | H96: Entertainment | I96: This item includes entertainment expenditure incurred by members of the Senior Management Service (SMS) as well as Ministers and his/her office bearers in performance of their duties. | J96: *Luncheon meetings held with colleagues, foreign delegations and/or other individuals in and outside the public sector; *Purchase of dinner during authorised overtime, if no compensation in the form of time off or additional pay is approved, provided that the closing time is later than 20h00.
F98: 48 | H98: Fleet services(Fleet/Services) | I98: Cost relating to operation and maintenance of fleet services including entity owned vehicles, leased or rented vehicles. The lease amount will be classified accordingly under the Lease payments category. This item caters for charges over and above the lease payment (flat rate). | J98: Fleet services: Computer time-license Fleet services: Development fees Fleet services: Tracking (physical cs) Fleet services: Batteries Fleet services: Car valet and washing services Fleet services: Depreciation Fleet services: Depreciation equipment Fleet services: Fuel, oil and grease Fleet services: Kilometres Fleet services: Licence plates Fleet services: Repairs Fleet services: Spares and accessories Fleet services: Toll fees Fleet services: Towing costs Fleet services: Transaction costs Fleet services: Tyres and tubes Maintenance: Fleet services: Operating payments Maintenance: Machinery and equipment: Operating payments Fleet services: Loss sale equipment Fleet services: Loss sale fleet
F100: 49 | H100: Housing | I100: Department of Housing - specific accounts for interfacing accounts. | J100: *Housing: Capital adjustments *Housing: Devolution of debtors *Housing: Devolution of proper *Housing: Rebate R75 *Housing: Subsidy
F102: 50 | H102: Inventory: Clothing material and accessories | I102: The category includes corporate gear, Uniforms and Protective Clothing and Needlework's Accessories | J102: *Inventory: Clothing material and accessories: Corporate gear *Inventory: Clothing material and accessories: Uniform and protective clothing *Inventory: Clothing material and accessories: Needlework accessories
F104: 51 | H104: Inventory: Farming supplies | I104: This item includes farming animal supplements, plastic bags for seedlings, packaging for produce, labels & tags for identification and marking of animals and plants, etc. excluding items specifically identified such as fertilizer, gardening supplies, insecticides, animal fodder and feed, seed and seedlings and irrigation material. | J104: *Inventory: Farming supplies: Farming supplies *Inventory: Farming supplies: Fertilizer *Inventory: Farming supplies: Gardening supplies *Inventory: Farming supplies: Insecticides *Inventory: Farming supplies: Livestock and plant consumption *Inventory: Farming supplies: Livestock food and animal feed *Inventory: Farming supplies: Seeds and seedlings
F106: 52 | H106: Inventory: Food and food supplies | I106: Food and food supplies includes items like baby and special foods, bread and confectionary, eggs and egg products, fruits (fresh and frozen), groceries, meat, poultry and fish and milk and milk products. Limited for use by DOH, DCS, DSD. This category will not be distributed for use by other departments. Similar expenses incurred by other departments will be allocated under Consumable Supplies; Household Supplies; Groceries | J106: *Inventory: Food and food supplies: Baby and special foods *Inventory: Food and food supplies: Bread and baked confectionery *Inventory: Food and food supplies: Eggs and egg products *Inventory: Food and food supplies: Fruit and vegetables *Inventory: Food and food supplies: Groceries *Inventory: Food and food supplies: Meat, poultry, fish
F108: 53 | H108: Inventory: Chemicals, fuel, oil, gas, wood and coal | I108: Items under this category caters for chemicals, fuel, oil, gas, wood and coal | J108: *Inventory: Chemicals, fuel, oil, gas, wood and coal: Chemicals *Inventory: Chemicals, fuel, oil, gas, wood and coal: Fuel, oil and lubricants *Inventory: Chemicals, fuel, oil, gas, wood and coal: Gas *Inventory: Chemicals, fuel, oil, gas, wood and coal: Wood and coal
F110: 54 | H110: Inventory: Learning and teaching supplies material | I110: This category is created for Education Sector, it caters for Media Collections and Learning and Teaching Support Materials purchased by the Department of Education (DoE) for distribution to the schools | J110: *Inventory: Learning and teaching supplies material: Media collections (library material; school library/media/films; school books/magazines) *Inventory: Learning and teaching supplies material: Learning supporting material (school material subjects; school stationery; school textbook/prescribed)
F112: 55 | H112: Inventory: Materials and supplies | I112: Materials and supplies include items such as building materials, hardware, painting materials and workshop accessories, etc. | J112: *Inventory: Materials and supplies: Building and construction material *Inventory: Materials and supplies: Camping material *Inventory: Materials and supplies: Disposable testing material non medical *Inventory: Materials and supplies: Electrical supplies *Inventory: Materials and supplies: Fencing material *Inventory: Materials and supplies: Hardware *Inventory: Materials and supplies: Irrigation material *Inventory: Materials and supplies: Notice boards and signs *Inventory: Materials and supplies: Operational health&safety kit *Inventory: Materials and supplies: road construction and supplies *Inventory: Materials and supplies: road signs *Inventory: Materials and supplies: sport and recreational consumables *Inventory: Materials and supplies: tents, flags and accessories *Inventory: Materials and supplies: workshop materials and supplies *Inventory: Materials and supplies: workshop testing material and supplies
F114: 56 | H114: Inventory: Medical supplies | I114: Medical supplies includes all medical related inventory items. Limited for use DOH AND DOD. This category will not be distributed for use by other departments. Similar expenses incurred by other departments will be allocated under Consumable Supplies: First Aid Kid or Contraceptives | J114: *Inventory: Medical supplies: Artificial aids *Inventory: Medical supplies: Application sets *Inventory: Medical supplies: Bandages and dressing *Inventory: Medical supplies: Blood-product and plasma *Inventory: Medical supplies: Catheters, tubes and urine bag *Inventory: Medical supplies: Contraceptives *Inventory: Medical supplies: Crutches *Inventory: Medical supplies: Dental consumables *Inventory: Medical supplies: Disposable nappies *Inventory: Medical supplies: First aid kit *Inventory: Medical supplies: Gloves, disposable sundries *Inventory: Medical supplies: Heart valves and pacemakers *Inventory: Medical supplies: HIV/aids test kits *Inventory: Medical supplies: Implantable sets *Inventory: Medical supplies: In-vitro diagnostic testing strips *Inventory: Medical supplies: Medical gas *Inventory: Medical supplies: Occupational therapy consumables *Inventory: Medical supplies: Optical items and hearing aids *Inventory: Medical supplies: Orthopaedic artificial limbs *Inventory: Medical supplies: Patient clothing *Inventory: Medical supplies: Radio-isotopes *Inventory: Medical supplies: Renal dialysis *Inventory: Medical supplies: Stoma therapy reqs *Inventory: Medical supplies: Surgical consumables *Inventory: Medical supplies: Surgical, implants prosthesis *Inventory: Medical supplies: Surgical/medical supplies *Inventory: Medical supplies: Sutures, ligature and skin staples *Inventory: Medical supplies: Syringes, needles *Inventory: Medical supplies: Therapeutic requisitions *Inventory: Medical supplies: Vinyl body bag *Inventory: Medical supplies: Wheelchair consumables *Inventory: Medical supplies: X-ray consumables
F116: 57 | H116: Inventory: Medicine | I116: A drug or other preparation used for the treatment or prevention of disease. Limited for use by DOH AND DOD. This category will not be distributed for use by other departments. | J116: *Inventory: Medicine: Animal medicine *Inventory: Medicine: Animal vaccines *Inventory: Medicine: Antiretroviral drugs *Inventory: Medicine: Anti-tuberculosis medicines *Inventory: Medicine: Contraceptives *Inventory: Medicine: Large volume parenterals *Inventory: Medicine:Medicine medical depot *Inventory: Medicine: Other medicine *Inventory: Medicine: Vaccines
F118: 58 | H118: Medsas inventory interface | I118: MEDSAS is a system used for the procurement, and management of pharmaceutical products, including medicines etc. This system is mainly used by the National and Provincial Departments of Health. | J118: *Medsas inventory interface: Miscellaneous variance *Medsas inventory interface: Price variance *Medsas inventory interface: Purchase variance *Medsas inventory interface: Stock issues *Medsas inventory interface: Stock purchase general *Medsas inventory interface: Stock purchase system *Medsas inventory interfaceS: Stores surpluses
F120: 59 | H120: Inventory: Other supplies | I120: Included in this category is Laboratory Chemical and Supplies, Military Stores, Ammunition and Security Supplies and Assets Held for Distribution | J120: *Inventory: Other supplies: Laboratory chemicals and supplies *Inventory: Other supplies: Military stores *Inventory: Other supplies: Assets for distribution *Inventory: Other supplies: Print supplies *Inventory: Other supplies: Household supplies
F122: 60 | H122: Consumables supplies | I122: This category caters for all consumable supplies | J122: *Consumables supplies: Animal food and medical supplies *Consumables supplies: Gifts and awards *Consumables supplies: Saddlery and other tackle *Consumables supplies: Uniform and clothing *Consumables supplies: Medical supplies *Consumables supplies: Household supplies *Maintenance of machinery and equipment: fuel and gas supplies *Consumables supplies: Fuel supplies *Consumables supplies: Materials and supplies *Consumables supplies: Contraceptives *Consumables supplies: Bags and accessories *Consumables supplies: Communication accessories *Consumables supplies: IT consumables *Consumables supplies: Laboratories consumables *Consumables supplies: Medical kit *Consumables supplies: Name tags *Consumables supplies: Occupational health safety kit *Consumables supplies: Photographic consumables *Consumables supplies: Security accessories consumables *Consumables supplies: Tent, flag and accessories *Consumables supplies: Stationery, printing and office supplies
F124: 61 | H124: Consumables: Stationery, printing and office supplies | I124: Included in this item is stationery and office consumables. Also included in this category is Audio Visual Consumables, Government Printers, Mag/News/Journals, Stationery, ART AND Drawings, Media Collections, PRINTER Cartridges, and PRINTING Paper | J124: *Consumables: Stationery, printing and office supplies: Audio visual consumables *Consumables: Stationery, printing and office supplies: Art and drawings *Consumables: Stationery, printing and office supplies: External printers *Consumables: Stationery, printing and office supplies: Magazines/Newspapers/Journals *Consumables: Stationery, printing and office supplies: Media collections *Consumables: Stationery, printing and office supplies: Printing cartridge *Consumables: Stationery, printing and office supplies: Printing paper *Consumables: Stationery, printing and office supplies: Stationery
F126: 62 | H126: Operating leases | I126: Operating leasing is a productive activity that involves renting capital assets for terms less than the expected service lives of the assets. It is a form of production in which the lessor normally lets the use of a capital equipment / asset in exchange for the lease payments. Operating leasing can be identified by the following characteristics: (a) the lessor normally maintains a stock of equipment in good working order which can be hired on demand or at short notice, (b) the equipment may be rented out for varying periods of time, and (c) the lessor is frequently responsible for the maintenance and repair of the equipment as part of the service provided to the lessee. | J126: Operating lease: Buildings Operating lease: Other fixed structures Operating lease: Other machinery and equipment Operating lease: Transport equipment Maintenance: Operating leases machinery
F128: 63 | H128: Rental and hiring | I128: Rental and hiring includes transactions that involves a once-off payment for the temporary use of an item which is owned by an external party. This is not the same as Lease payments as "Lease Payments" refer to series of payments made.
F130: 64 | H130: Property payments | I130: This category provides for all payments related to contractual obligations contributing to the functionality of, for example, building or land. for example, gardening services, cleaning services, municipal services, deeds, electricity compliance certificate, fire protection, etc. municipalities. | J130: *Property payments: Cleaning services *Property payments: Commission on municipal services *Property payments: Contracted maintenance property *Property payments: Deeds *Property payments: Electrical compliance certificate *Property payments: Fire protection *Property payments: First aid *Property payments: Gardening services *Property payments: Gas *Property payments: Laundry services *Property payments: Management fee *Property payments: Pest control/fumigation services *Property payments: Safeguard and security *Property payments: Municipal services (Electricity, Sewerage, Waste/Refuse removal, Water)
F132: 65 | H132: Transport provided as part of internal activities | I132: Expenses associated with transport provided by the entity itself in transporting people during the execution of its mandate. | J132: *Transport for excursions *Transport for public events *Transport: illegal immigrants deportation *Transport: land reform/restitution beneficiaries *Transport of children vagrants *Transport of patients & corps *Transport of scholars
F134: 66 | H134: Travel and subsistence | I134: Travel and subsistence includes all domestic and foreign travel related expenditure paid for employees and non-employees. This item specifically covers expenditure on accommodation cost, food and beverage, incidental cost, and car rental paid for official travelling purposes. The amount could also be paid by the entity directly to the travel agency responsible for making the travel arrangements or the service provider. | J134: *Travel and subsistence: Per diem out of town allowance *Travel and subsistence: Accommodation *Travel and subsistence: Daily allowance *Travel and subsistence: Food and beverage *Travel and subsistence: Incidental cost *Travel and subsistence: Transport *Travel and subsistence: Transport-shuttle services
F136: 67 | H136: Training and development | I136: Training and development provided to employees and non-employees as well as training materials not provided for separately under goods and services. | J136: *Training and development: Employees *Training and development: Material&manuals *Training and development: Non-employees
F138: 68 | H138: Operating payments | I138: Operating payments category caters for services that are related to the operations of the entity | J138: *Operating payments: Achievements and awards *Operating payments: Air charter services and landing rights *Operating payments: Cash discount (temporary) *Operating payments: Competency certificates / licences / permits *Operating payments: Courier and delivery services *Operating payments: Freight services transport goods *Operating payments: Harbour services, docking fees *Operating payments: Honoraria (voluntarily workers) *Operating payments: Laundry services *Operating payments: Non-life insurance premiums *Operating payments: Printing and publications *Operating payments: Professional bodies, membership and subscriptions *Operating payments: Resettlement cost *Operating payments: Road worthy tests *Operating payments: School boarding/tuition cost *Operating payments: Storage services *Operating payments: Warrantees and guarantees *Operating payments: Taking over contractual obligations *Operating payments: Witness and related cost
F140: 69 | H140: Venues and facilities | I140: Venue costs are those cost which are associated with obtaining a right to use that place/ site/location at that particular time. Facilities is anything that helps someone to perform their duties at an optimal level e.g. maintenance of computers and or making sure that all air-conditions are working. Included are the cost incurred from using venues and/or facilities not available within the normal business premises of the entity, normally specialist in nature. Facilities includes all the individual items e.g. chairs, tables, equipment, etc. that comes with the venue.
F142: 70 | H142: Interest | I142: This item includes the total value of interest payments. These are payments associated with debt, for example interest on borrowing and overdraft facilities. Interest payments on bills and bonds issued by other government units are also included here.
F144: 71 | H144: Dividends | I144: A dividend is a distribution of money or property paid by a corporation out of the corporation's profits to shareholders. Government units are not payers of dividends as a rule. Exceptions may be public corporations.
F146: 72 | H146: Rent on land | I146: Rent relates payments in respect of certain leases of land, subsoil assets, and other naturally occurring assets. Includes only rent of land, and royalties, exploration and rights of use. Rent of buildings are included in operating leases.
F148: 73 | H148: Transfers and subsidies | I148: This item consists of all unrequited, voluntary payments to other parties. Thus, an entry should be made under this item when government does not receive anything directly in return for the transfer to the other party and the transfer is voluntary. Both current and capital transfers are included in this item. An example of a capital transfer is a cash payment, which the unit is required to use toward the acquisition of a capital asset. All other transfers are current, for example, donations and grants, which the recipient is not obliged to use to acquire capital assets. The transfers paid are further categorised as; Subsidies Subsidies on production comprise all current, unrequited payments to businesses – both government and privately owned – on the basis of their level of production or quantity, or values of products produced, sold, imported or exported. Subsidies influence the level of production and / or pricing policies of the recipient. To be classified as a subsidy on production, the transfer must be current. Subsidies can be payable on specific products or on production in general. A subsidy on a product is a subsidy payable per unit of a good or service. The subsidy may be a specific amount of money per unit of quantity of a good or service, or it may be calculated ad valorem as a specified percentage of the price per unit. A subsidy may also be calculated as the difference between a specified target price and the market price actually paid by a buyer. A subsidy on a product usually becomes payable when the good or service is produced, sold, exported, or imported. But it may also be payable in other circumstances, such as when a good is transferred, leased, delivered, or used for own consumption or own capital formation. Subsidies on production consist of subsidies that enterprises receive for engaging in production but that are not related to specific products. Included are subsidies on payroll or workforce, which are payable on the total wage or salary bill, the size of the total workforce, or the employment of particular types of person; subsidies to reduce pollution; and payments of interest on behalf of corporations. Subsidies also include transfers to public corporations to compensate for losses they incur on their productive activities as a result of charging prices that are lower than their average costs of production because of deliberate government economic and social policy. If such losses have been accumulated over two or more years, however, the transfer is considered of a capital nature and classified as other transfers to public corporations and private enterprises.
F150: 74 | H150: Public and private corporations | I150: Public corporations are resident corporations and quasi-corporations that are subject to control by government units, Private corporations are all resident corporations and quasi-corporations that are not controlled by government.
F152: 75 | H152: Transfers to households: Social benefits | I152: These are transfers to protect the entire population or specific segments of the population against certain social risks: events that may adversely affect the welfare of the households concerned such as, loss of employment, poverty etc. Other government units can also pay social benefits, like the Unemployment Insurance Fund.
F154: 76 | H154: Other transfers to households | I154: This item includes all other unrequited payments made to individuals and households that are not for social benefits. To note is the inclusion of bursaries awarded to persons who are not employed by the public entity for the purpose of assisting them with tuition and other education and training related costs. They are transfers since the recipient has no obligation towards the benefactor
F156: 77 | H156: Technical reserves (social security funds only) | I156: Technical reserves are as a result of an actuarial evaluation. They consist of net equity of households in insurance reserves, prepaid premiums and reserves against outstanding claims.
F158: 78 | H158: Tax payments | I158: Tax payments include personal income tax, employer-paid payroll tax, real estate property tax, other personal property taxes, unemployment tax, business income tax, and sales and use tax.
F160: 79 | H160: Surplus/(deficit) for the year/ net cash and cash equivalents/assets-liabilities | I160: The formula checks if the above balances in the template are in accordance with the published audited financial statements
F162: 80 | H162: Other movements | I162: Any other non-cash movement not classified in the "Adjust surplus / (deficit) for accrual transactions" adjustments.
F164: 81 | H164: Other flows from Investing Activities | I164: Inflows and outflows of cash arising from acquisition and disposal of long-term financial assets and other investments not included in cash equivalents. Reason for disclosure of cash flows arising from investing activities The separate disclosure of cash flows arising from investing activities is important because the cash flows represent the extent to which cash outflows have been made for resources which are intended to contribute to the entity’s future service delivery. | J164: • Cash payments to acquire equity or debt instruments of other entities and interests in joint ventures (other than payments for those instruments considered to be cash equivalents or those held for dealing or trading purposes); • Cash receipts from sales of equity or debt instruments of other entities and interests in joint ventures (other than receipts for those instruments considered to be cash equivalents and those held for dealing or trading purposes); • Cash advances and loans made to other parties (other than advances and loans made by a public financial institution); • Cash receipts from the repayment of advances and loans made to other parties (other than advances and loans of a public financial institution); • Cash payments for futures contracts, forward contracts, option contracts and swap contracts except when the contracts are held for dealing or trading purposes, or the payments are classified as financing activities; and • Cash receipts from futures contracts, forward contracts, option contracts and swap contracts except when the contracts are held for dealing or trading purposes, or the receipts are classified as financing activities.
F166: 82 | H166: Buildings: residential | I166: Dwellings or residential are buildings that are used entirely or primarily as residences, including garages and other associated structures. Houseboats, barges, mobile homes, caravans and military personnel dwellings that are used as principal residences
F168: 83 | H168: Buildings: non-residential | I168: Non-residential buildings are all buildings other than dwellings. Examples of types of Buildings included in this category are office buildings, schools, hospitals, buildings for public entertainment, warehouse and industrial buildings, commercial building
F170: 84 | H170: Other fixed structures | I170: Other fixed structures consists of all fixed structures other than buildings. For example, roads, bridges and dams.
F172: 85 | H172: Transport equipment | I172: Transport equipment consists of equipment for moving people and objects. For example, aircrafts, aircraft engines, airport transport equipment, buses, cycles, emergency vehicles, mobile clinics, motor vehicles, railway rolling stock, ships and boats and engines, trailers and accessories and trucks. Furniture, Machinery, Computer and Office equipment i) Furniture and Office equipment This group of items provides for furniture and office equipment including items such as advertising boards, air conditioners, crockery and cutlery, domestic furniture, linen and soft furnishing, office equipment/furniture, paintings, sculptures, ornaments and school furniture. ii) Other Machinery and Equipment Consists of other machinery and equipment other than transport equipment. They are general and special purpose machinery i.e. electrical machinery, radio, television and communication equipment, furniture, watches and sports goods. iii) Computer Equipment This includes costs for desktop computers and terminals. Also included in this item are the once-off cost if separately identified for the operating system purchased with the hardware (e.g. Windows XP Professional, etc).
F174: 86 | H174: Heritage assets | I174: Heritage assets are assets of significant value that government intends to preserve indefinitely because they have unique history, cultural, educational, artistic or architectural significance. Examples are; archives, areas/land of historic significance, library materials, antiques and collectables, sculpture, paintings, sculptures, state jewellery, works of art, etc.
F176: 87 | H176: Biological assets | I176: Biological and cultivated assets are animals and plants that are used repeatedly or continuously for more than one year to produce other goods or services. Examples of animals to be included in this category are dairy cattle, draft animals, wool-producing, breeding stocks, game and animals used for transportation and entertainment. Examples of plants are trees, vines and shrubs cultivated for production of fruits, nuts, sap, resin, bark and leaf products. Slaughter animals are not cultivated assets, because they can only be used once.
F178: 88 | H178: Land and Subsoil assets | I178: Land is the ground itself, including the soil covering, associated surface water, and major improvements that cannot be physically separated from the land but not buildings on it and cultivated plantations etc. Subsoil assets consist of proven reserves of oil, gas, coal, metallic mineral reserves and nonmetallic mineral reserves, minerals and ores. Mine shafts, wells and other subsoil extraction facilities are fixed assets, rather than subsoil assets.
F180: 89 | H180: Investment Property | I180: Investment property is property (land or a building or part of a building or both) held (by the owner or by the lessee under a finance lease) to earn rentals or for capital appreciation or both. [IAS 40.5] Examples of investment property: [IAS 40.8], land held for long-term capital appreciation, land held for undetermined future use, building leased out under an operating lease, vacant building held to be leased out under an operating lease, property that is being constructed or developed for future use as investment property
F182: 90 | H182: Software and other intangible assets | I182: An intangible is an identifiable non-monetary asset without any physical substance. Examples of intangible fixed assets are mineral exploration rights; computer software; literary and artistic originals; and miscellaneous other intangible fixed assets. To qualify as a fixed asset, the item must be intended for use in production for more that one year and its use must be restricted to the units that have established ownership rights over it or to units licensed by the owner.
F184: 91 | H184: Domestic long term investments | I184: Net flows of cash made within the borders of South Africa arising from acquisition and/ disposal of assets that an entity intends to hold for more than a year.
F186: 92 | H186: Foreign long term investments | I186: Net flows of cash made from outside the borders of South Africa arising from acquisition and/ disposal of assets that an entity intends to hold for more than a year.
F188: 93 | H188: Interest | I188: Income associated with ownership of interest-bearing financial instruments, such as and bills and bonds issued by third parties. | J188: *Interest from financial derivatives
F190: 94 | H190: Dividends | I190: These are profit distributions receivable by public entities on equity participation in private and public sector entities. Dividends come in the form of revenue from shares and distribution of profits to the owner. Gains/losses associated with valuation changes should not be included in the amount reported here, these are recorded under the transactions in financial assets and liabilities category. | J190: *Dividends from shares and other equity
F192: 95 | H192: Outside shareholders interest | I192: Outside shareholders have no links with the company but have a financial Interest in its operating performance.
F194: 96 | H194: Deferred income | I194: Deferred income is the converse of accruals. It is income received during an accounting period, but which is not yet reported as earned. For example, a business may receive payment for a service or a product that has not yet been supplied. Thus cannot be recognised as income up until such time the condition is fulfilled.(from the template)
F196: 97 | H196: Borrowing activities | I196: in a cash flow environment is the lending of money by one institution to the next and this amounts to loans. A loan is an arrangement in which a lender gives money to a borrower, and the borrower agrees to repay the money, usually along with interest, at some future point(s) in time. There is usually a predetermined time for repaying a loan, and mostly the lender has to bear the risk that the borrower may not repay a loan. The loan could be obtained from either: (a)One of the local government institutions (Domestic loan denominated in Rand value) or (b)Through the market (searching for the most economical deal in the market. The market includes both local and foreign) i.One of the local financial services providers (Local or domestic loan denominated in Rand value) or ii.One of the international financial services providers (Foreign loan denominated in a foreign currency which comes with the risk of foreign exchange currency fluctuations). The agreed-upon loan repayment period determines further classification between long-term and short-term loans. Short term loans are loans payable within 12 months and long term loans are payable beyond 12 months period.
F198: 98 | H198: Repayment of finance leases | I198: A finance lease is a lease that transfers substantially all the risks and rewards of ownership of an asset. Title may or may not eventually be transferred. In substance, the lessee purchases an asset by way of a financing arrangement between itself (the lessee) and the lessor. This payment should be classified as a payment for capital assets in the budget format. The interest portion is classified as current interest, dividends and rent on land, interest paid finance leases in the budget format. Refer to Practice Note 5 of 2006/07 issued by the Office of the Accountant- General for specific rules regarding this type of transaction.
F200: 99 | H200: Other (e.g. issuance of shares, revaluations)
F202: 100 | H202: Interest and dividends or similar distributions | I202: Interest and dividends or similar distributions received and paid should be disclosed separately. The total amount of interest paid during a period is disclosed in the cash flow statement. Interest paid and interest and dividends (or similar distributions) received may be classified as either operating, investing, or financing activities. The classification of interest paid, and interest and dividends (or similar distributions) received should be driven by the source.
H203: STATEMENT OF FINANCIAL POSITION
F204: 101 | H204: Current investments | I204: Current investment is a purchase of an asset or item with the hope that it will generate income or appreciate and/sold at the higher price or that will expire within one year , such as bonds, stock, collectible annuities and real property.
F206: 102 | H206: Inventory | I206: Inventories are assets/ goods and services held for sale in the ordinary course of business (finshed goods), in the process of production for such sale (working in process), or in the form of materials or supplies to be consumed in the production process or in the rendering of service.Goods" in question will however have an aspect of service which was provided in the form of labour that went into the manufacture of whatever item is being produced
F208: 103 | H208: Short term loans | I208: Short term loans are non-derivative financial assets with fixed or determinable payments that are not quoted in an active market. Loans to other enterprises expected to be recovered within twelve months period are examples of assets falling into the loans and receivables category.
F210: 104 | H210: Accrued Investment Interest/Accrued interest | I210: A term used to describe an accrual accounting method when interest that is receivable has been recognized, but not yet received
F212: 105 | H212: Trade and other receivables from exchange transactions | I212: These are current asset representing money due for services performed or merchandise sold on credit after adjusting provision for doubtful debts. The provision for doubtful debts is subtracted from Accounts Receivable to arrive at what is called "net realizable receivables."
F214: 106 | H214: Other receivables from non-exchange transactions, including taxes, fines and transfers | I214: These are current asset representing money due from non-exchange activities such as fines. The provision for doubtful debts is subtracted from Accounts Receivable to arrive at what is called "net realizable receivables."
F216: 107 | H216: Prepayments | I216: The satisfaction of a debt or installment payment before its official due date. A prepayment can be for the entire balance or for any upcoming payment that is paid in advance of the date for which the borrower is contractually obligated to pay it. Examples of a prepayment come in the form of rent or early loan repayments.
F218: 108 | H218: Cash and cash equivalents | I218: Cash and cash equivalents are the most liquid assets found within the asset portion of a company's balance sheet. Cash equivalents are assets that are readily convertible into cash, such as money market holdings, short-term government bonds or Treasury bills, marketable securities and commercial paper.
F220: 109 | H220: Non Current Assets Held for Sale | I220: Non-current assets are reclassiﬁed as current assets when they are held for sale. A non-current asset is regarded as ‘held for sale’ if its carrying amount will be recovered principally through a sale transaction, rather than through continuing use. To be classiﬁed as a non-current asset held for sale: the asset must be available for immediate sale; and the sale must be highly probable. This requires management commitment to sell, active marketing at a reasonable price, and the expectation of a completed sale within one year.Non-current assets classified as held for sale shall not be depreciated. But Impairment must be considered both at the time of classification as held for sale and after classification as held for sale.
F222: 110 | H222: Other current financial assets | I222: A current financial assets is any asset that is cash, equity instrument of another entity e.g. investment in the ordinary shares of another entity; a contractual right to receive cash or another financial asset from another entity (e.g. bonds); a contractual right to exchange financial instruments with another entity under conditions that are potentially favourable (e.g. an option to acquire shares in another company); a contract that will or may be settled in the entity's own equity instrument (Derivative or Non- derivative). These are expected to be realised in a period of less than twelve months.
F224: 111 | H224: VAT receivable | I224: VAT Receivables is the carrying amount due within one year of one operating cycle from tax authorities as of the balance sheet date representing VAT refunds of overpayment e.g. Input tax vs Output tax.
F226: 112 | H226: Construction contracts and receivables | I226: These are construction contracts monies receivable over a short period.
F228: 113 | H228: Income tax receivable | I228: Its carrying amount due within one year of one operating cycle from tax authorities as of the balance sheet date representing refunds of overpayments or recoveries based on agreed-upon resolutions of disputes.
F230: 114 | H230: Derivatives financial instruments | I230: A derivative is a financial instrument whose value changes in relation to changes in a variable, such as an interest rate, commodity price, credit rating, or foreign exchange rate. It also requires either a small or no initial investment, and it is settled at a future date. It allows an entity to speculate on or hedge against future changes in market factors at minimal initial cost. Examples of derivatives are call options, put options, forwards, futures, and swaps.
F232: 115 | H232: Property, plant and equipment | I232: This is a term used in accounting for assets and property which cannot easily be converted into cash. These are items of value which the organization has bought and will use for an extended period of time; this normally include items such as land and buildings, motor vehicles, furniture, office equipment, computers, fixtures and fittings, and plant and machinery
F234: 116 | H234: Intangible assets | I234: An intangible asset is an identifiable non-monetary asset without any physical substance. Examples of intangible assets are mineral exploration rights; computer software; literary and artistic originals; patents, copyrights, trademarks, trade names, licenses, goodwill and miscellaneous other items that lack physical substance but provide long term benefits to the company. To qualify as a fixed asset, the item must be intended for use in production for more that one year and its use must be restricted to the units that have established ownership rights over it or to units licensed by the owner.
F236: 117 | H236: Biological assets | I236: Biological and cultivated assets are animals and plants that are used repeatedly or continuously for more than one year to produce other goods or services. Examples of animals to be included in this category are dairy cattle, draft animals, wool-producing, breeding stocks, game and animals used for transportation and entertainment. Examples of plants are trees, vines and shrubs cultivated for production of fruits, nuts, sap, resin, bark and leaf products. Slaughter animals are not cultivated assets, because they can only be used once.
F238: 118 | H238: Heritage assets | I238: A heritage assets is an item that has value because of its contribution to a nation’s society, knowledge and/or culture. They are of such significant value that government intends to preserve indefinitely because they have unique history, cultural, educational, artistic or architectural significance. South African examples are archives, areas/land of historic significance and culture.
F240: 119 | H240: Non-Current Investments | I240: Investments are long term shares such as real property, stocks, bonds, collectible annuities, mutual fund shares, etc., held by an entity in another company. An entity acquires these shares with the expectation of realizing income or capital gain, or both, in the long term future
F242: 120 | H242: Investments in Subsidiary / Municipal entity | I242: This is an investment in a subsidiary which is a company that is partly or completely owned by another company that holds a controlling interest in the subsidiary company
F244: 121 | H244: Investments in Joint Ventures | I244: This is an investment in a joint venture which is a business agreement in which parties agree to develop, for a finite time, a new entity and new assets by contributing equity. They exercise control over the enterprise and consequently share revenues, expenses and assets.
F246: 122 | H246: Investments in Associates | I246: This is an investment in an associate which is an entity over which an investor has significant influence, being the power to participate in the financial and operating policy decisions of the investee (but not control or joint control).
F248: 123 | H248: Investment property | I248: These are properties not occupied by the owner held to earn rentals or for capital appreciation or both.
F250: 124 | H250: Long term loan | I250: Long term loans and receivables are non-derivative financial assets with fixed or determinable payments that are not quoted in an active market. These are loans to other enterprises expected to be recoverd over twelve months period.
F252: 125 | H252: Non-current receivables from non-exchange transactions | I252: These are accounts or promissory notes due for payment to an entity other than from its normal operations that is not expected to be collected within one year of the balance sheet date. Examples of non-trade receivables are amounts owed to a company by its employees for loans or wage advances, tax refunds owed to it by taxing authorities, or insurance claims owed to it by an insurance company
F254: 126 | H254: Non-current receivables from exchange transactions | I254: These are accounts or promissory notes due for payment to an entity other than from its normal operations that is not expected to be collected within one year of the balance sheet date. Examples of non-trade receivables are amounts owed to a company by its employees for loans or wage advances, tax refunds owed to it by taxing authorities, or insurance claims owed to it by an insurance company
F256: 127 | H256: Defined Benefit Plan Assets | I256: Defined Benefit Plans are plans in which the employer’s obligation is not limited to contribution toward a benefit, but rather based on the benefit promised to the employees. The amount could be determined with reference to a plan benefit formula, which stipulates the value of the benefit, a guarantee of a specified return on contribution, or informal practices that give rise to constructive obligation. Many defined benefit plans include early retirement provisions to encourage employees to retire early, before the attainment of normal retirement age (usually age 65). Companies would rather hire younger employees at lower wages.
F258: 128 | H258: Other non-current financial assets | I258: A non curent financial assets is any asset that is cash, equity instrument of another entity e.g. investment in the ordinary shares of another entity; a contractual right to receive cash or another financial asset from another entity (e.g. bonds); a contractual right to exchange financial instruments with another entity under conditions that are potentially favourable (e.g. an option to acquire shares in another company); a contract that will or may be settled in the entity's own equity instrument (Derivative or Non- derivative). These are expected to be realised in a period of over twelve months.
F260: 129 | H260: Taxation | I260: A means by which governments finance their expenditure by imposing charges on citizens and corporate entities. Governments use taxation to encourage or discourage certain economic decisions. For example, reduction in taxable personal (or household) income by the amount paid as interest on home mortgage loans results in greater construction activity, and generates more jobs. See also taxation principles.
F262: 130 | H262: Deferred Tax Assets | I262: Deferred tax assets are amounts of income taxes recoverable in future periods in respect of deductible temporary differences; the carry forward of unused tax losses; and the carry forward of unused tax credits
F264: 131 | H264: Payments received in advance | I264: The satisfaction of a debt or installment payment before its official due date. A prepayment can be for the entire balance or for any upcoming payment that is paid in advance of the date for which the borrower is contractually obligated to pay it. Examples of a prepayment come in the form of rent or early loan repayments.
F266: 132 | H266: Trade and other payables from exchange transactions | I266: Accounts payable is an entity's short-term obligation to pay suppliers for products and services, which the entity purchased on credit. If accounts payable are not paid within the payment terms agreed to with the supplier, the payables are considered to be in default, which may trigger a penalty or interest payment, or the revocation or curtailment of additional credit from the supplier.
F268: 133 | H268: Benefits payable (for UIF only) | I268: This account group is used to record amounts due to eligible third party claimants within the current operating period. It consists of benefits to be paid to authorized or designated retirees within the current fiscal year.
F270: 134 | H270: Accrued interest | I270: Accrued interest is the amount of loan interest that has already occurred, but has not yet been paid to the lender by the borrower
F272: 135 | H272: VAT payable | I272: VAT registered businesses collect VAT on behalf of the government. Businesses add a certain percentage of the sales price as VAT and charge the full amount to the customer. For example, if a VAT registered dealer sells a car for R10, 000 and the VAT rate is 14 per cent, then the dealer charges the customer R11, 400. The dealer then forwards the R1, 400 to the government. The amount that the dealer is required to forward to the government is called VAT payable.
F274: 136 | H274: Income Tax Payable | I274: Income tax is a liability showing the income taxes now due, this includes the current portion (due) of any deferred taxes. It is paid by employees and people who are self-employed. It may also be payable if you aren't working if, for example, you have an income from a pension or savings.
F276: 137 | H276: Taxes and transfers payable | I276: Taxes and transfers payables are unrequited payments to other government units, corporations and households.Taxes are compulsory and there have no direct quid pro quo. Transfers can either be compulsory or voluntary
F278: 138 | H278: Current provisions(Other) | I278: Provision, generally, is to prepare in advance for an event that is projected to take place in the future. In accounting, it is an amount charged against profits for a specific liability (for example: bad debts, depreciation or taxes). A liability may be known, but the amount is often uncertain. This uncertainty may lead to an adjustment in a later income statement once the final amount of the liability is ascertained.
F280: 139 | H280: Bank overdraft | I280: A credit agreement made with a financial institution that permits an account holder to use or withdraw more than they have in their account, without exceeding a specified maximum negative balance. Establishing an overdraft facility with a bank can help an individual or small business with short term cash flowproblems, although the negative balance typically needs to be repaid within a month.
F282: 140 | H282: Current portion of unspent conditional grants and receipts | I282: A conditional grant is an allocation of money from one sphere of government to another, conditional on certain services being delivered or on compliance with specified requirements. It is payable within a specific period of time of less than a year.
F284: 141 | H284: Short-term loans | I284: Short-term loans are generally loans in which borrowers can receive cash quickly from a lender, typically a bank or a paycheck loan business. Usually, short-term loans are processed fast and the minimum amount of time for a short-term loan is about 3 months, and in some cases, short-term loans can extend to up to 1 year.
F286: 142 | H286: Deferred income | I286: Deferred income is the converse of accruals. It is income received during an accounting period, but which is not yet reported as earned. For example, a business may receive payment for a service or a product that has not yet been supplied. Thus cannot be recognised as income up until such time the condition is fulfilled.
F288: 143 | H288: Other current financial liabilities | I288: A financial liability is a contractual obligation to deliver cash or similar to another entity or a potentially unfavourable exchange of financial assets or liabilities with another entity over a period of less than twelve months.
F290: 144 | H290: Consumer deposits | I290: Consumer deposits are refundable deposits paid by consumer on securing a contract for services. Examples are deposits for electricity and water.
F292: 145 | H292: Current portion of finance lease liability | I292: A finance lease is a lease that is primarily a method of raising finance to pay for assets. It is also termed a capital lease. At the end of the lease, the ownership of the assets reverts to the lease. This is an estimated figure payable within twelve months period
F294: 146 | H294: Managed funds | I294: These are funds instituted by the fiscus to run activities across various government institutions to deliver on a particular national priority, e.g. poverty alleviation fund. Allocations are typically disbursed from those particular funds and are monitored from one central point. It is payable within a specific period of time of less than twelve months.
F296: 147 | H296: Derivatives financial instruments | I296: A derivative is a financial instrument whose value changes in relation to changes in a variable, such as an interest rate, commodity price, credit rating, or foreign exchange rate. It also requires either a small or no initial investment, and it is settled at a future date. It allows an entity to speculate on or hedge against future changes in market factors at minimal initial cost. Examples of derivatives are call options, put options, forwards, futures, and swaps. Examples of derivatives are call options, put options, forwards, futures, and swaps.
F298: 148 | H298: Unspent conditional grants and receipts | I298: A conditional grant is an allocation of money from one sphere of government to another. The grant is only recognised as revenue to the extent that the recipient/spending agency has complied with all of the criteria, conditions or obligations embodied in the agreement. The unspent conditional grants therefore represent the unspent portion of government grants, subsidies and contributions from the other spheres of government.
F300: 149 | H300: Benefits payable (UIF only) | I300: This account group is used to record amounts due to eligible third party claimants within the current operating period. It consists of benefits to be paid to authorized or designated retirees within the current fiscal year. The Non-current portion of this item represents the part recognised by the Fund in the year under review but only to be paid in future.
F302: 150 | H302: Long-term borrowings | I302: Borrowings comprise obligations under bank overdrafts, loans due to other group companies, redeemable debentures, bonds, commercial paper, bills of exchange and any other form of borrowing. These borrowings are payable over a period of twelve months. Accrued interest on borrowings should not be included here. Finance leases, although are borrowings too, should not be classified under this line.
F304: 151 | H304: Finance lease liability | I304: A finance lease is a lease that transfers substantially all the risks and rewards incidental to the ownership of an asset. The title may (through a bargain purchase option) or may not eventually be transferred to the lessee.
F306: 152 | H306: Operating Lease Liability | I306: An operating lease is the rental of an asset from a lessor, but not under the terms that would classify it as a capital lease. An operating lease tends to have a shorter duration than a capital lease, and the lessee does not have the option to acquire the asset through a bargain purchase option. The liability is the amount owed under the contract. Operating lease liability is the amount of money that a customer owes under the terms of a lease contract.
F308: 153 | H308: Other non-current financial liabilities | I308: A financial liability is any liability that is a contractual obligation to deliver cash or another financial asset to another entity or to exchange financial instruments with another entity under conditions that are potentially unfavourable. It is also a contract that will or may be settled in the entity's own equity instruments (could be a non-derivative for which the entity is/may be obliged to deliver a variable number of its own equity instruments or a derivative that will/may be settled other than by the exchange of fixed amount of cash for a fixed number of the entity's own equity instruments)
F310: 154 | H310: Non-current provisions(Post retirement benefits) | I310: Benefits provided by a company to retirees. Typical examples of potential benefits are pensions, life insurance, and health insurance.
F312: 155 | H312: Defined benefit plan obligations | I312: A defined benefit plan is a retirement benefit plan under which payments to former employees are fixed based on a formula that typically incorporates employee earnings and/or years of service. It has no direct relationship to the funding entity's payments to the fund from which payments are made
F314: 156 | H314: Deferred income | I314: Deferred income is the converse of accruals. It is income received during an accounting period, but which is not yet reported as earned. For example, a business may receive payment for a service or a product that has not yet been supplied. Thus cannot be recognised as income up until such time the condition is fulfilled.
F316: 157 | H316: Deferred tax liabilities | I316: Deferred tax liability is the amount of income tax payable in future periods in respect of the taxable temporary differences. A deferred tax liability records the fact that the company will, in the future, pay more income tax because of a transaction that took place during the current period, such as an instalment sale receivable.
F318: 158 | H318: Managed funds | I318: These are funds instituted by the fiscus to run activities across various government institutions to deliver on a particular national priority, e.g. poverty alleviation fund. Allocations are typically disbursed from those particular funds and are monitored from one central point. It is payable over a specific period of more than twelve months.
F320: 159 | H320: Derivatives financial instruments | I320: A derivative is a financial instrument whose value changes in relation to changes in a variable, such as an interest rate, commodity price, credit rating, or foreign exchange rate. It also requires either a small or no initial investment, and it is settled at a future date. It allows an entity to speculate on or hedge against future changes in market factors at minimal initial cost. Examples of derivatives include structured debt obligations and deposits, swaps, futures, options, caps, floors, collars, forwards, and other various combinations.
F322: 160 | H322: Accumulated surplus / (deficit) | I322: Accumulated surplus refers to the portion of net income which is retained by the organization rather than distributed to its owners as dividends. Similarly, if the organization makes a loss, then that loss is retained and called variously accumulated losses or accumulated deficit. Accumulated surpluses and deficits are cumulative from year to year with losses offsetting earnings.
F324: 161 | H324: Reserves | I324: Capital, in economics, can mean: factories, machines, and other man-made inputs into a production process. In finance, capital is money and other property of a corporation or other enterprise used in transacting the business. Reserves are generally those accounts where retained earnings are set aside to satisfy dividends, improvements, contingencies, retirement of preferred stock, etc., thereby cannot be distributed for other uses. Included are Non-distributable reserves (other than share capital and share premium). It will include Capital Redemption reserves, contingency reserves and other capital reserves. Amounts attributable to minority interests (if applicable) should also be included in this category
F326: 162 | H326: Capital Fund/ Deferred government grant | I326: This is a special fund that a municipality or public entity accumulates from either capital grants, depreciation funding or any other revenue from operations, specifically for the acquisitions or construction on capital assets. These funds may not be used for anything else.
F328: 163 | H328: Capitalised value of pensions (for Comp Fund only) | I328: Whenever a compensation claim has been approved and registered as a permanent disability, the total amount payable will be calculated and capitalised, and the monthly pension payments will be made from that capitalised value amount up to the last month of pension ( normally is up to 68 years or when the beneficiary pass on, whichever comes first).

Sheet Revenue
F6: PE No | G6: =Settings!$O$2 -> PE153
F7: Entity name | G7: =Settings!$E$2 -> ZWater Boards Consolidation | U7: =IF(U65<T65/2,"Complete outer year budget","") -> 
G9: Notes | I9: =MyYearM3 -> 2019/20 | J9: =MyYearM3 -> 2019/20 | K9: =MyYearM2 -> 2020/21 | L9: =MyYearM2 -> 2020/21 | M9: =MyYearM1 -> 2021/22 | O9: =MyYear0 -> 2022/23 | Q9: =MyYearP1 -> 2023/24 | S9: =MyYearP2 -> 2024/25 | U9: =MyYearP3 -> 2025/26
A10: ItemCat | B10: Item code | F10: Revenue | I10: =Hist_year3Audited -> Budget | J10: =Hist_year3RestatedAudited -> Audited outcome | K10: =Hist_year2Audited -> Budget | L10: =Hist_year2RestatedAudited -> Audited outcome | M10: =Hist_year1Budget -> Budget | N10: =Hist_year1Audited -> Audited outcome | O10: =Cur_YearBudgEst -> Budget estimate | P10: =Cur_YearApprovedBudg -> Approved budget | Q10: =MTEF1BudgEst -> Budget estimate | R10: =MTEF1RevBudgEst -> Revised budget estimate | S10: =MTEF2BudgEst -> Budget estimate | T10: =MTEF2RevBudgEst -> Revised budget estimate | U10: =MTEF3PlanBudgetEst -> Planning budget estimate
A11: 1 | F11: R Thousand
A12: 1 | B12: RE1 | F12: Revenue
A13: 1 | B13: RE11 | F13: Tax revenue | G13: 1 | I13: 0 | J13: 0 | K13: 0 | L13: 0 | M13: 0 | N13: 0 | O13: 0 | P13: 0 | Q13: 0 | R13: 0 | S13: 0 | T13: 0 | U13: 0
A14: 1 | B14: RE12 | F14: Sales of goods and services other than capital assets | G14: 3 | I14: =SUM(I15,I29,I30) -> 27132087.19 | J14: =SUM(J15,J29,J30) -> 26821820.14 | K14: 27616868.49 | L14: 27813954.16 | M14: 29148036.6 | N14: 29516207.26 | O14: 32188831.7 | P14: 31234563.36 | Q14: 35697695.42 | R14: 33854120.33 | S14: 39340143.39 | T14: 37024465.9 | U14: 40427608.36
A15: 1 | B15: RE121 | F15: Sales of goods and services produced by entity | G15: 3 | I15: =SUM(I16,I21,I26) -> 26410416.1 | J15: =SUM(J16,J21,J26) -> 25646559.68 | K15: 26286815.26 | L15: 25972463.65 | M15: 28196779.9 | N15: 28256019.69 | O15: 31277473.58 | P15: 30066902.74 | Q15: 34928003.05 | R15: 32621213.1 | S15: 38654139.79 | T15: 35870125.97 | U15: 39485772.92
A16: 1 | B16: RE1211 | F16: Administration fees | G16: 4 | I16: =SUM(I17:I20) -> 42544.71872 | J16: =SUM(J17:J20) -> 54936.02999 | K16: 37798.37331 | L16: 34640.38819 | M16: 60904.8503 | N16: 60904.8503 | O16: 61732.62986 | P16: 61732.62986 | Q16: =SUM(Q17:Q20) -> 64995.42721 | R16: =SUM(R17:R20) -> 64995.42721 | S16: =SUM(S17:S20) -> 68514.57881 | T16: =SUM(T17:T20) -> 68514.57881 | U16: =SUM(U17:U20) -> 71584.03194
A17: 1 | B17: RE12111 | F17: Please specify | I17: 21188.04534 | J17: 16793.37749 | K17: 15245.40851 | L17: 14376.2571 | M17: 22319.11456 | N17: 22319.11456 | O17: 21575.49108 | P17: 21575.49108 | Q17: 23168.18316 | R17: 23168.18316 | S17: 24911.73108 | T17: 24911.73108 | U17: 26027.77663
A18: 1 | B18: RE12112 | F18: Please specify | I18: 16378.74472 | J18: 21584.6525 | K18: 17525.25685 | L18: 0 | M18: 19759.09467 | N18: 19759.09467 | O18: 21142.2313 | P18: 21142.2313 | Q18: 22622.18749 | R18: 22622.18749 | S18: 24205.74062 | T18: 24205.74062 | U18: 25290.1578
A19: 1 | B19: RE12113 | F19: Please specify | I19: 4977.928662 | J19: 16558 | K19: 5027.707949 | L19: 20264.13109 | M19: 18826.64107 | N19: 18826.64107 | O19: 19014.90748 | P19: 19014.90748 | Q19: 19205.05655 | R19: 19205.05655 | S19: 19397.10712 | T19: 19397.10712 | U19: 20266.09752
A20: 1 | B20: RE12114 | F20: Please specify | I20: 0 | J20: 0 | K20: 0 | L20: 0 | M20: 0 | N20: 0 | O20: 0 | P20: 0 | Q20: 0 | R20: 0 | S20: 0 | T20: 0 | U20: 0
A21: 1 | B21: RE1212 | F21: Sales by market establishments | G21: 5 | I21: =SUM(I22:I25) -> 26367871.38 | J21: =SUM(J22:J25) -> 25585079.65 | K21: 26242640.89 | L21: 25933134.26 | M21: 28128218.05 | N21: 28187676.84 | O21: 31207640.95 | P21: 29997624.11 | Q21: =SUM(Q22:Q25) -> 34854480.63 | R21: =SUM(R22:R25) -> 32548512.67 | S21: =SUM(S22:S25) -> 38576644.22 | T21: =SUM(T22:T25) -> 35793725.39 | U21: =SUM(U22:U25) -> 39406112.88
A22: 1 | B22: RE12121 | F22: Water sales | I22: 25209561.76 | J22: 24523358.26 | K22: 24960699.01 | L22: 24922676.7 | M22: 26851660.62 | N22: 27013034.41 | O22: 29956998.63 | P22: 28690061.43 | Q22: 33499499.75 | R22: 31225212.87 | S22: 37126164.58 | T22: 34369958.56 | U22: 37910015.58
A23: 1 | B23: RE12122 | F23: Wastewater | I23: 618405.113 | J23: 564651.6249 | K23: 615727.9599 | L23: 580398.7751 | M23: 621443.6807 | N23: 635174.6807 | O23: 677595.36 | P23: 705750.2108 | Q23: 747338.9149 | R23: 747997.834 | S23: 799599.0758 | T23: 810187.2749 | U23: 858150.6513
A24: 1 | B24: RE12123 | F24: Other activities | I24: 539904.5082 | J24: 497069.7644 | K24: 666213.9204 | L24: 430058.7833 | M24: 655113.7524 | N24: 539467.7524 | O24: 573046.9624 | P24: 601812.4624 | Q24: 607641.9625 | R24: 575301.9625 | S24: 650880.5556 | T24: 613579.5556 | U24: 637946.6493
A25: 1 | B25: RE12124 | F25: Please specify | I25: 0 | J25: 0 | K25: 0 | L25: 0 | M25: 0 | N25: 0 | O25: 0 | P25: 0 | Q25: 0 | R25: 0 | S25: 0 | T25: 0 | U25: 0
A26: 1 | B26: RE1213 | F26: Other sales | G26: 6 | I26: =SUM(I27:I28) -> 0 | J26: =SUM(J27:J28) -> 6544 | K26: 6376 | L26: =SUM(L27:L28) -> 4689 | M26: 7657 | N26: =SUM(N27:N28) -> 7438 | O26: 8100 | P26: =SUM(P27:P28) -> 7546 | Q26: 8527 | R26: =SUM(R27:R28) -> 7705 | S26: 8981 | T26: =SUM(T27:T28) -> 7886 | U26: =SUM(U27:U28) -> 8076
A27: 1 | B27: RE12131 | F27: User charges | I27: 0 | J27: 5411 | K27: 6376 | L27: 3614 | M27: 6360 | N27: 6360 | O27: 6710 | P27: 6360 | Q27: 7079 | R27: 6462 | S27: 7468 | T27: 6591 | U27: 6723
A28: 1 | B28: RE12132 | F28: Sales other than user charges | I28: 0 | J28: 1133 | K28: 0 | L28: 1075 | M28: 1297 | N28: 1078 | O28: 1390 | P28: 1186 | Q28: 1448 | R28: 1243 | S28: 1513 | T28: 1295 | U28: 1353
B29: RE1214 | F29: Sales of scrap, waste, arms and other used current goods | G29: 7 | I29: 0 | J29: 0 | K29: 0 | L29: 0 | M29: 0 | N29: 0 | O29: 0 | P29: 0 | Q29: 0 | R29: 0 | S29: 0 | T29: 0 | U29: 0
A30: 1 | B30: RE122 | F30: Entity revenue other than sales | I30: =SUM(I31,I32,I36,I40) -> 721671.0936 | J30: 1175260.457 | K30: 1330053.223 | L30: 1841490.519 | M30: 951256.7003 | N30: 1260187.567 | O30: 911358.1195 | P30: 1167660.627 | Q30: 769692.37 | R30: 1232907.23 | S30: 686003.5936 | T30: 1154339.932 | U30: 941835.4471
A31: 1 | B31: RE1221 | F31: Fines penalties and forfeits | G31: 19 | I31: 0 | J31: 0 | K31: 0 | L31: 0 | M31: 0 | N31: 0 | O31: 0 | P31: 0 | Q31: 0 | R31: 0 | S31: 0 | T31: 0 | U31: 0
A32: 1 | B32: RE1222 | F32: Gains from | I32: =SUM(I33:I35) -> 4166.99313 | J32: =SUM(J33:J35) -> 23033 | K32: 4265 | L32: 6939.65047 | M32: 3169.99462 | N32: 3169.99462 | O32: 3440.130181 | P32: 2849.610851 | Q32: 3581.887431 | R32: 3589.887431 | S32: 3729.981648 | T32: 2970.925272 | U32: 3351.775782
A33: 1 | B33: RE12221 | F33: Sale of fixed assets | I33: 0 | J33: 0 | K33: 0 | L33: 0 | M33: 0 | N33: 0 | O33: 0 | P33: 0 | Q33: 0 | R33: 0 | S33: 0 | T33: 0 | U33: 0
A34: 1 | B34: RE12222 | F34: Adjustments to fair value of assets | I34: 0 | J34: 1824 | K34: 0 | L34: 1481 | M34: 0 | N34: 0 | O34: 0 | P34: 0 | Q34: 0 | R34: 0 | S34: 0 | T34: 0 | U34: 0
A35: 1 | B35: RE12223 | F35: Other | I35: 4166.99313 | J35: 21209 | K35: 4265 | L35: 5458.65047 | M35: 3169.99462 | N35: 3169.99462 | O35: 3440.130181 | P35: 2849.610851 | Q35: 3581.887431 | R35: 3589.887431 | S35: 3729.981648 | T35: 2970.925272 | U35: 3351.775782
A36: 1 | B36: RE1223 | F36: Interest, dividends and rent on land | G36: 20 | I36: =SUM(I37:I39) -> 450186.2739 | J36: =SUM(J37:J39) -> 975001.4566 | K36: 830912.2912 | L36: 857959.4825 | M36: 529988.3318 | N36: 868675.576 | O36: 479357.4586 | P36: 764025.1103 | Q36: 445168.5992 | R36: 861084.7221 | S36: 334328.1507 | T36: 836453.4904 | U36: 610378.24
A37: 1 | B37: RE12231 | F37: Interest | G37: 21 | I37: 450186.2739 | J37: 975001.4566 | K37: 830912.2912 | L37: 857959.4825 | M37: 529988.3318 | N37: 868675.576 | O37: 479357.4586 | P37: 764025.1103 | Q37: 445168.5992 | R37: 861084.7221 | S37: 334328.1507 | T37: 836453.4904 | U37: 610378.24
A38: 1 | B38: RE12232 | F38: Dividends | G38: 22 | I38: 0 | J38: 0 | K38: 0 | L38: 0 | M38: 0 | N38: 0 | O38: 0 | P38: 0 | Q38: 0 | R38: 0 | S38: 0 | T38: 0 | U38: 0
A39: 1 | B39: RE12233 | F39: Rent on land | G39: 23 | I39: 0 | J39: 0 | K39: 0 | L39: 0 | M39: 0 | N39: 0 | O39: 0 | P39: 0 | Q39: 0 | R39: 0 | S39: 0 | T39: 0 | U39: 0
A40: 1 | B40: RE1224 | F40: Unclassified revenue | G40: 24 | I40: =SUM(I41:I43) -> 267317.8265 | J40: 177226 | K40: 494875.9319 | L40: =SUM(L41:L43) -> 976591.3858 | M40: 418098.3739 | N40: =SUM(N41:N43) -> 388341.9968 | O40: 428560.5308 | P40: =SUM(P41:P43) -> 400785.9057 | Q40: 320941.8834 | R40: =SUM(R41:R43) -> 368232.6201 | S40: 347945.4613 | T40: =SUM(T41:T43) -> 314915.516 | U40: =SUM(U41:U43) -> 328105.4313
A41: 1 | B41: RE12241 | F41: Realisation of deferred income (other than transfers) | I41: 0 | J41: 0 | K41: 0 | L41: 0 | M41: 217063.9448 | N41: 217063.9448 | O41: 217063.9448 | P41: 217063.9448 | Q41: 65872.11047 | R41: 65872.11047 | S41: 0 | T41: 0 | U41: 0
A42: 1 | B42: RE12242 | F42: Acturial Surplus | I42: 116609.0072 | J42: 86192 | K42: 71767.9915 | L42: 139826 | M42: 77237.87245 | N42: 64628.46162 | O42: 79381.844 | P42: 59637.249 | Q42: 117406.7248 | R42: 173516.4783 | S42: 203955.3025 | T42: 180535.107 | U42: 187888.2776
A43: 1 | B43: RE12243 | F43: Other income | I43: 150708.8193 | J43: 91034 | K43: 423107.9404 | L43: 836765.3858 | M43: 123796.5567 | N43: 106649.5905 | O43: 132114.742 | P43: 124084.7119 | Q43: 137663.0481 | R43: 128844.0313 | S43: 143990.1588 | T43: 134380.409 | U43: 140217.1538
A44: 1 | B44: RE13 | F44: Transfers received | G44: 8 | I44: =SUM(I45:I46,I54,I60:I62) -> 185000 | J44: 490005.7143 | K44: 0 | L44: 446151.6694 | M44: 0 | N44: 0 | O44: 782578 | P44: 0 | Q44: 1173866 | R44: 0 | S44: 652148 | T44: 0 | U44: 0
A45: 4 | B45: RE131 | F45: Social contributions received (social security funds only) | I45: 0 | J45: 0 | K45: 0 | L45: 0 | M45: 0 | N45: 0 | O45: 0 | P45: 0 | Q45: 0 | R45: 0 | S45: 0 | T45: 0 | U45: 0
A46: 1 | B46: RE132 | F46: Other government units | G46: 9 | I46: =SUM(I47,I51:I53) -> 185000 | J46: =SUM(J47,J51:J53) -> 490005.7143 | K46: 0 | L46: =SUM(L47,L51:L53) -> 446151.6694 | M46: =SUM(M47,M51:M53) -> 0 | N46: =SUM(N47,N51:N53) -> 0 | O46: 782578 | P46: =SUM(P47,P51:P53) -> 0 | Q46: 1173866 | R46: =SUM(R47,R51:R53) -> 0 | S46: 652148 | T46: =SUM(T47,T51:T53) -> 0 | U46: =SUM(U47,U51:U53) -> 0
A47: 1 | B47: RE1321 | F47: National government | G47: 10 | I47: =SUM(I48:I50) -> 185000 | J47: =SUM(J48:J50) -> 490005.7143 | K47: 0 | L47: =SUM(L48:L50) -> 446151.6694 | M47: 0 | N47: =SUM(N48:N50) -> 0 | O47: 782578 | P47: =SUM(P48:P50) -> 0 | Q47: 1173866 | R47: =SUM(R48:R50) -> 0 | S47: 652148 | T47: =SUM(T48:T50) -> 0 | U47: =SUM(U48:U50) -> 0
A48: 1 | B48: RE13211 | F48: Departmental transfers | I48: 185000 | J48: 107860 | K48: 0 | L48: 255139.7826 | M48: 0 | N48: 0 | O48: 782578 | P48: 0 | Q48: 1173866 | R48: 0 | S48: 652148 | T48: 0 | U48: 0
A49: 1 | B49: RE13212 | F49: Realisation of deferred transfers | I49: 0 | J49: 382145.7143 | K49: 0 | L49: 191011.8868 | M49: 0 | N49: 0 | O49: 0 | P49: 0 | Q49: 0 | R49: 0 | S49: 0 | T49: 0 | U49: 0
A50: 1 | B50: RE13213 | F50: Other government units | I50: 0 | J50: 0 | K50: 0 | L50: 0 | M50: 0 | N50: 0 | O50: 0 | P50: 0 | Q50: 0 | R50: 0 | S50: 0 | T50: 0 | U50: 0
A51: 1 | B51: RE1322 | F51: Departmental agencies and accounts | G51: 13 | I51: 0 | J51: 0 | K51: 0 | L51: 0 | M51: 0 | N51: 0 | O51: 0 | P51: 0 | Q51: 0 | R51: 0 | S51: 0 | T51: 0 | U51: 0
A52: 1 | B52: RE1323 | F52: Provincial governments | G52: 14 | I52: 0 | J52: 0 | K52: 0 | L52: 0 | M52: 0 | N52: 0 | O52: 0 | P52: 0 | Q52: 0 | R52: 0 | S52: 0 | T52: 0 | U52: 0
A53: 1 | B53: RE1324 | F53: Local governments | G53: 15 | I53: 0 | J53: 0 | K53: 0 | L53: 0 | M53: 0 | N53: 0 | O53: 0 | P53: 0 | Q53: 0 | R53: 0 | S53: 0 | T53: 0 | U53: 0
A54: 2 | B54: RE133 | F54: Skills development (SETAS only) | I54: =SUM(I55,I59) -> 0 | J54: =SUM(J55,J59) -> 0 | K54: 0 | L54: 0 | M54: 0 | N54: 0 | O54: 0 | P54: 0 | Q54: 0 | R54: 0 | S54: 0 | T54: 0 | U54: 0
A55: 2 | B55: RE1331 | F55: Skills development levies | I55: =SUM(I56:I58) -> 0 | J55: =SUM(J56:J58) -> 0 | K55: 0 | L55: 0 | M55: 0 | N55: 0 | O55: 0 | P55: 0 | Q55: 0 | R55: 0 | S55: 0 | T55: 0 | U55: 0
A56: 2 | B56: RE13311 | F56: Admin - 10.5% | I56: 0 | J56: 0 | K56: 0 | L56: 0 | M56: 0 | N56: 0 | O56: 0 | P56: 0 | Q56: 0 | R56: 0 | S56: 0 | T56: 0 | U56: 0
A57: 2 | B57: RE13312 | F57: Employer grant fund levy - 20% | I57: 0 | J57: 0 | K57: 0 | L57: 0 | M57: 0 | N57: 0 | O57: 0 | P57: 0 | Q57: 0 | R57: 0 | S57: 0 | T57: 0 | U57: 0
A58: 2 | B58: RE13313 | F58: Discretionary grants - 49.5% | I58: 0 | J58: 0 | K58: 0 | L58: 0 | M58: 0 | N58: 0 | O58: 0 | P58: 0 | Q58: 0 | R58: 0 | S58: 0 | T58: 0 | U58: 0
A59: 2 | B59: RE1332 | F59: National skills fund | I59: 0 | J59: 0 | K59: 0 | L59: 0 | M59: 0 | N59: 0 | O59: 0 | P59: 0 | Q59: 0 | R59: 0 | S59: 0 | T59: 0 | U59: 0
A60: 1 | B60: RE134 | F60: Higher education institutions | G60: 16 | I60: 0 | J60: 0 | K60: 0 | L60: 0 | M60: 0 | N60: 0 | O60: 0 | P60: 0 | Q60: 0 | R60: 0 | S60: 0 | T60: 0 | U60: 0
A61: 1 | B61: RE136 | F61: Foreign governments and international organisations | G61: 17 | I61: 0 | J61: 0 | K61: 0 | L61: 0 | M61: 0 | N61: 0 | O61: 0 | P61: 0 | Q61: 0 | R61: 0 | S61: 0 | T61: 0 | U61: 0
A62: 1 | B62: RE135 | F62: Local non-government donors | G62: 18 | I62: 0 | J62: 0 | K62: 0 | L62: 0 | M62: 0 | N62: 0 | O62: 0 | P62: 0 | Q62: 0 | R62: 0 | S62: 0 | T62: 0 | U62: 0
A63: 1 | B63: RE14 | F63: Tax benefit | G63: 25 | I63: 0 | J63: 0 | K63: 0 | L63: 0 | M63: 0 | N63: 0 | O63: 0 | P63: 0 | Q63: 0 | R63: 0 | S63: 0 | T63: 0 | U63: 0
A64: 1 | B64: RE15 | F64: Outside shareholders interest | G64: 26 | I64: 0 | J64: 0 | K64: 0 | L64: 0 | M64: 0 | N64: 0 | O64: 0 | P64: 0 | Q64: 0 | R64: 0 | S64: 0 | T64: 0 | U64: 0
A65: 1 | B65: RE16 | F65: Total revenue | I65: =SUM(I13:I14,I44,I63:I64) -> 27317087.19 | J65: 27311825.85 | K65: 27616868.49 | L65: 28260105.83 | M65: 29148036.6 | N65: 29516207.26 | O65: 32971409.7 | P65: 31234563.36 | Q65: 36871561.42 | R65: 33854120.33 | S65: 39992291.39 | T65: 37024465.9 | U65: 40427608.36 | W65: =IF(U65<T65/2,"Complete outer year budget","") -> 
A66: 1
A67: 1 | F67: Check
A68: 1 | F68: Total revenue | I68: =I65 -> 27317087.19 | J68: 27311825.85 | K68: 27616868.49 | L68: 28260105.83 | M68: 29148036.6 | N68: 29516207.26 | O68: =O65 -> 32971409.7 | P68: 31234563.36 | Q68: =Q65 -> 36871561.42 | R68: 33854120.33 | S68: 39992291.39 | T68: 37024465.9 | U68: 40427608.36
A69: 1 | F69: Total expenses | I69: ='Expend summary'!I140 -> 813264 | J69: ='Expend summary'!J140 -> 22234940.18 | K69: ='Expend summary'!K140 -> 770072 | L69: ='Expend summary'!L140 -> 23007229.29 | M69: ='Expend summary'!M140 -> 24627720.4 | N69: ='Expend summary'!N140 -> 24252575.5 | O69: ='Expend summary'!O140 -> 26787993.45 | P69: ='Expend summary'!P140 -> 26500456.36 | Q69: ='Expend summary'!R140 -> 29196407.01 | R69: ='Expend summary'!S140 -> 28328860.89 | S69: ='Expend summary'!U140 -> 31734084.66 | T69: ='Expend summary'!V140 -> 30736338.49 | U69: ='Expend summary'!X140 -> 33285249.08
A70: 1 | F70: Surplus / (Deficit) | I70: =I68-I69 -> 26503823.19 | J70: =J68-J69 -> 5076885.669 | K70: =K68-K69 -> 26846796.49 | L70: =L68-L69 -> 5252876.547 | M70: =M68-M69 -> 4520316.199 | N70: =N68-N69 -> 5263631.758 | O70: 6183416.25 | P70: 4734107.005 | Q70: =Q68-Q69 -> 7675154.411 | R70: 5525259.435 | S70: 8258206.729 | T70: 6288127.414 | U70: 7142359.285
A71: 1 | F71: Annual report Surplus / (Deficit) | J71: 5076885 | L71: 5256420.911 | N71: 5248568.461
A72: 1 | F72: Differences | J72: =ROUND(IF(J70-J71>0,IF(J70-J71<1,0,J70-J71),J70-J71),0) -> 0 | L72: =ROUND(IF(L70-L71>0,IF(L70-L71<1,0,L70-L71),L70-L71),0) -> -3544 | N72: =ROUND(IF(N70-N71>0,IF(N70-N71<1,0,N70-N71),N70-N71),0) -> 15063
A73: 1

Sheet Admin
F6: PE No | G6: =Settings!O2 -> PE153
F7: Entity name | G7: =Settings!$E$2 -> ZWater Boards Consolidation
F9: Performance and operations information
A10: ItemCat | B10: Item code | C10: Hide/unhide | F10: Activity/Output/Outcome/Efficiency Indicator | G10: Priorities | I10: =MyYearM3 -> 2019/20 | J10: =MyYearM2 -> 2020/21 | K10: =MyYearM1 -> 2021/22 | L10: =MyYear0 -> 2022/23 | M10: =MyYearP1 -> 2023/24 | N10: =MyYearP2 -> 2024/25 | O10: =MyYearP3 -> 2025/26 | P10: Related Objectives | Q10: Add to 'Performance Indicators' Sheet | R10: Comments
A11: 1 | F11: 0 | G11: 0 | H11: 0 | I11: 0 | J11: 0 | K11: 0 | L11: 0 | M11: 0 | N11: 0 | O11: 0 | P11: 0 | Q11: 0 | R11: 0 | S11: 0 | T11: 0
A12: 1 | F12: 0 | G12: 0 | H12: 0 | I12: 0 | J12: 0 | K12: 0 | L12: 0 | M12: 0 | N12: 0 | O12: 0 | P12: 0 | Q12: 0 | R12: 0 | S12: 0 | T12: 0
A13: 1 | F13: 0 | G13: 0 | H13: 0 | I13: 0 | J13: 0 | K13: 0 | L13: 0 | M13: 0 | N13: 0 | O13: 0 | P13: 0 | Q13: 0 | R13: 0 | S13: 0 | T13: 0
A14: 1 | F14: 0 | G14: 0 | H14: 0 | I14: 0 | J14: 0 | K14: 0 | L14: 0 | M14: 0 | N14: 0 | O14: 0 | P14: 0 | Q14: 0 | R14: 0 | S14: 0 | T14: 0
A15: 1 | F15: 0 | G15: 0 | H15: 0 | I15: 0 | J15: 0 | K15: 0 | L15: 0 | M15: 0 | N15: 0 | O15: 0 | P15: 0 | Q15: 0 | R15: 0 | S15: 0 | T15: 0
A16: 1 | F16: 0 | G16: 0 | H16: 0 | I16: 0 | J16: 0 | K16: 0 | L16: 0 | M16: 0 | N16: 0 | O16: 0 | P16: 0 | Q16: 0 | R16: 0 | S16: 0 | T16: 0
A17: 1 | F17: 0 | G17: 0 | H17: 0 | I17: 0 | J17: 0 | K17: 0 | L17: 0 | M17: 0 | N17: 0 | O17: 0 | P17: 0 | Q17: 0 | R17: 0 | S17: 0 | T17: 0
A18: 1 | F18: 0 | G18: 0 | H18: 0 | I18: 0 | J18: 0 | K18: 0 | L18: 0 | M18: 0 | N18: 0 | O18: 0 | P18: 0 | Q18: 0 | R18: 0 | S18: 0 | T18: 0
A19: 1 | F19: 0 | G19: 0 | H19: 0 | I19: 0 | J19: 0 | K19: 0 | L19: 0 | M19: 0 | N19: 0 | O19: 0 | P19: 0 | Q19: 0 | R19: 0 | S19: 0 | T19: 0
A20: 1 | F20: 0 | G20: 0 | H20: 0 | I20: 0 | J20: 0 | K20: 0 | L20: 0 | M20: 0 | N20: 0 | O20: 0 | P20: 0 | Q20: 0 | R20: 0 | S20: 0 | T20: 0
A21: 1 | F21: 0 | G21: 0 | H21: 0 | I21: 0 | J21: 0 | K21: 0 | L21: 0 | M21: 0 | N21: 0 | O21: 0 | P21: 0 | Q21: 0 | R21: 0 | S21: 0 | T21: 0
A22: 1 | F22: 0 | G22: 0 | H22: 0 | I22: 0 | J22: 0 | K22: 0 | L22: 0 | M22: 0 | N22: 0 | O22: 0 | P22: 0 | Q22: 0 | R22: 0 | S22: 0 | T22: 0
A23: 1 | F23: 0 | G23: 0 | H23: 0 | I23: 0 | J23: 0 | K23: 0 | L23: 0 | M23: 0 | N23: 0 | O23: 0 | P23: 0 | Q23: 0 | R23: 0 | S23: 0 | T23: 0
A24: 1 | F24: 0 | G24: 0 | H24: 0 | I24: 0 | J24: 0 | K24: 0 | L24: 0 | M24: 0 | N24: 0 | O24: 0 | P24: 0 | Q24: 0 | R24: 0 | S24: 0 | T24: 0
A25: 1 | F25: 0 | G25: 0 | H25: 0 | I25: 0 | J25: 0 | K25: 0 | L25: 0 | M25: 0 | N25: 0 | O25: 0 | P25: 0 | Q25: 0 | R25: 0 | S25: 0 | T25: 0
A26: 1 | F26: Notes:
A27: 1 | F27: Performance indicators are an explanation of objectives performance.
A28: 1 | F28: 1. They are specific measurements that track progress towards achieving the goals and objectives of an institution.
A29: 1 | F29: 2. Institutions should use performance indicators in the 2021/22 Annual Performance Plans and those in the 2022 ENE.
A30: 1 | F30: 3. Institutions should also indicate instances where targets are not affected by budget baseline reprioritisation.
A31: 1
A32: 1 | I32: =MyYearM3 -> 2019/20 | J32: =MyYearM2 -> 2020/21 | K32: =MyYearM1 -> 2021/22 | L32: =MyYear0 -> 2022/23 | O32: =MyYearP1 -> 2023/24 | R32: =MyYearP2 -> 2024/25 | U32: =MyYearP3 -> 2025/26
A33: 1 | F33: Expenses | I33: =Hist_year3RestatedAudited -> Audited outcome | J33: =Hist_year2RestatedAudited -> Audited outcome | K33: =Hist_year1Audited -> Audited outcome | L33: =Cur_YearBudgEst -> Budget estimate | M33: =Cur_YearApprovedBudg -> Approved budget | N33: =Cur_YearChangeFrRevBudg -> Changes from budget estimate | O33: =MTEF1BudgEst -> Budget estimate | P33: =MTEF1RevBudgEst -> Revised budget estimate | Q33: =MTEF1_ChangeFrBudgEst -> Changes from budget estimate | R33: =MTEF2BudgEst -> Budget estimate | S33: =MTEF2RevBudgEst -> Revised budget estimate | T33: =MTEF2_ChangeFrBudgEst -> Changes from budget estimate | U33: =MTEF3PlanBudgetEst -> Planning budget estimate
A34: 1
A35: 1 | F35: Rand thousand
A36: 1 | F36: Objective/Activity
A37: 1 | F37: Administration | I37: 5286695.959 | J37: 5726157.525 | K37: 5254094.414 | L37: 6083450.748 | M37: 6366844.354 | N37: =SUM(M37-L37) -> 283393.6057 | O37: 6421261.715 | P37: 6405782.048 | Q37: =SUM(P37-O37) -> -15479.66689 | R37: 6707893.749 | S37: 6128841.038 | T37: =SUM(S37-R37) -> -579052.7115 | U37: 6128532.929
A38: 1 | F38: Economic classification
A39: 1 | B39: EX11 | F39: Current payments | I39: =SUM(I40,I43,I98:I99,I105) -> 5286695.824 | J39: =SUM(J40,J43,J98:J99,J105) -> 5726156.661 | K39: =SUM(K40,K43,K98:K99,K105) -> 5254093.825 | L39: =SUM(L40,L43,L98:L99,L105) -> 6083450.85 | M39: =SUM(M40,M43,M98:M99,M105) -> 6366845.222 | N39: =SUM(M39-L39) -> 283394.3713 | O39: =SUM(O40,O43,O98:O99,O105) -> 6421261.804 | P39: 6405781.855 | Q39: =SUM(P39-O39) -> -15479.94851 | R39: =SUM(R40,R43,R98:R99,R105) -> 6707893.591 | S39: 6128840.666 | T39: =SUM(S39-R39) -> -579052.9246 | U39: =SUM(U40,U43,U98:U99,U105) -> 6128531.256
A40: 1 | B40: EX111 | F40: Compensation of employees | I40: =SUM(I41:I42) -> 1905757.368 | J40: =SUM(J41:J42) -> 2532166.631 | K40: =SUM(K41:K42) -> 2684740.535 | L40: =SUM(L41:L42) -> 2643064.285 | M40: =SUM(M41:M42) -> 2843655.617 | N40: =SUM(M40-L40) -> 200591.3326 | O40: =SUM(O41:O42) -> 2807220.716 | P40: 3209851.342 | Q40: =SUM(P40-O40) -> 402630.6257 | R40: =SUM(R41:R42) -> 3101266.564 | S40: 3394125.771 | T40: =SUM(S40-R40) -> 292859.2074 | U40: =SUM(U41:U42) -> 3716140.971
A41: 1 | B41: EX1111 | F41: Salaries and wages | I41: 1862150.128 | J41: 2489251.011 | K41: 2640719.206 | L41: 2585419.405 | M41: 2792716.917 | N41: =SUM(M41-L41) -> 207297.5126 | O41: 2745055.706 | P41: 3149988.832 | Q41: =SUM(P41-O41) -> 404933.1257 | R41: 3034707.984 | S41: 3330601.891 | T41: =SUM(S41-R41) -> 295893.9074 | U41: 3648615.081
A42: 1 | B42: EX1112 | F42: Social contributions | I42: 43607.24 | J42: 42915.62 | K42: 44021.32911 | L42: 57644.88 | M42: 50938.7 | N42: =SUM(M42-L42) -> -6706.18 | O42: 62165.01 | P42: 59862.51 | Q42: =SUM(P42-O42) -> -2302.5 | R42: 66558.58 | S42: 63523.88 | T42: =SUM(S42-R42) -> -3034.7 | U42: 67525.89
A43: 1 | B43: EX112 | F43: Goods and services | I43: =SUM(I45:I54,I58:I61,I73,I75:I97) -> 2542363.279 | J43: =SUM(J45:J54,J58:J61,J73,J75:J97) -> 2693455.826 | K43: 2086624.452 | L43: 2823965.877 | M43: 2898536.855 | N43: 74570.97789 | O43: =SUM(O45:O54,O58:O61,O73,O75:O97) -> 3026904.904 | P43: 2468768.444 | Q43: =SUM(Q45:Q54,Q58:Q61,Q73,Q75:Q97) -> -558136.4601 | R43: 2993830.954 | S43: 1886759.838 | T43: -1107071.116 | U43: 1744434.61 | V43: 0
A44: 1 | B44: EX000 | F44: Of which 1
A45: 1 | B45: EX1133 | F45: Administrative fees | I45: 6153.49277 | J45: 4803.458308 | K45: 4486.745301 | L45: 5198.679843 | M45: 4667.866444 | N45: =SUM(M45-L45) -> -530.8133985 | O45: 5367.707498 | P45: 4929.256363 | Q45: =SUM(P45-O45) -> -438.4511348 | R45: 5657.5629 | S45: 5415.898936 | T45: =SUM(S45-R45) -> -241.6639642 | U45: 5648.784641
A46: 1 | B46: EX1134 | F46: Advertising | I46: 9413.48778 | J46: 13563.68714 | K46: 31000.17168 | L46: 17960.82872 | M46: 32428.62741 | N46: 14467.79869 | O46: 18363.91058 | P46: 33888.82738 | Q46: 15524.91681 | R46: 19211.17731 | S46: 35199.36939 | T46: 15988.19208 | U46: 36580.0015
A47: 1 | B47: EX1135 | F47: Minor assets | I47: 1303 | J47: 1145 | K47: 2711 | L47: 2867.9123 | M47: 3714 | N47: 846.0877 | O47: 3044.002115 | P47: 3913.2 | Q47: 869.1978848 | R47: 3212.335432 | S47: 4116.170403 | T47: 903.8349708 | U47: 4329.848101
A48: 1 | B48: EX1136 | F48: Audit costs: External | I48: 43537.80872 | J48: 45154.32923 | K48: 37627.76746 | L48: 33850.82802 | M48: 39266.92522 | N48: 5416.097202 | O48: 34219.21455 | P48: 41036.88497 | Q48: 6817.670412 | R48: 35903.05216 | S48: 42931.04403 | T48: 7027.991868 | U48: 44927.49625
A49: 1 | B49: EX1139 | F49: Bursaries: Employees | I49: 3512.77174 | J49: 1074 | K49: 9224.76425 | L49: 156.75 | M49: 9513.306234 | N49: 9356.556234 | O49: 163.961 | P49: 9837.668646 | Q49: 9673.707646 | R49: 171.83 | S49: 10182.90729 | T49: 10011.07729 | U49: 10540.32415
A50: 1 | B50: EX1140 | F50: Catering: Internal activities | I50: 23473.67694 | J50: 6095.144745 | K50: 14845.15372 | L50: 10081.92537 | M50: 15861.20694 | N50: 5779.281568 | O50: 10602.79349 | P50: 16535.47105 | Q50: 5932.67756 | R50: 11121.67366 | S50: 17236.07723 | T50: 6114.403567 | U50: 17967.71032
A51: 1 | B51: EX1122 | F51: Communication (G&S) | I51: 29148.48145 | J51: 19934.17836 | K51: 30388.27351 | L51: 31269.76595 | M51: 31980.35955 | N51: 710.593603 | O51: 31234.15692 | P51: 33442.43927 | Q51: 2208.282354 | R51: 32826.7148 | S51: 34979.50269 | T51: 2152.787886 | U51: 36623.93421
A52: 1 | B52: EX1123 | F52: Computer services | I52: 26532.33775 | J52: 26810.8222 | K52: 25958.58316 | L52: 31755.91303 | M52: 62113.28962 | N52: 30357.37659 | O52: 30569.64975 | P52: 65398.96445 | Q52: 34829.3147 | R52: 32154.49686 | S52: 68551.22663 | T52: 36396.72977 | U52: 71983.41951
A53: 1 | B53: EX1124 | F53: Consultants: Business and advisory services | I53: 128611.9704 | J53: 227991.8689 | K53: 69114.79502 | L53: 163320.5315 | M53: 120273.1911 | N53: -43047.34044 | O53: 170549.1588 | P53: 125629.0424 | Q53: -44920.11634 | R53: 178380.6163 | S53: 131965.6552 | T53: -46414.96112 | U53: 138632.274
A54: 1 | B54: EX1180 | F54: Infrastructure and planning services | I54: =SUM(I55:I57) -> 0 | J54: =SUM(J55:J57) -> 0 | K54: =SUM(K55:K57) -> 0 | L54: =SUM(L55:L57) -> 0 | M54: =SUM(M55:M57) -> 0 | N54: =SUM(M54-L54) -> 0 | O54: =SUM(O55:O57) -> 0 | P54: 0 | Q54: =SUM(P54-O54) -> 0 | R54: =SUM(R55:R57) -> 3603 | S54: 0 | T54: =SUM(S54-R54) -> -3603 | U54: =SUM(U55:U57) -> 0
A55: 1 | B55: EX11801 | F55: Maintenance and repairs: Buildings: Consultants | I55: 0 | J55: 0 | K55: 0 | L55: 0 | M55: 0 | N55: =SUM(M55-L55) -> 0 | O55: 0 | P55: 0 | Q55: =SUM(P55-O55) -> 0 | R55: 3603 | S55: 0 | T55: -3603 | U55: 0
A56: 1 | B56: EX11802 | F56: Maintenance and repairs: Other fixed structures: Consultants | I56: 0 | J56: 0 | K56: 0 | L56: 0 | M56: 0 | N56: 0 | O56: 0 | P56: 0 | Q56: 0 | R56: 0 | S56: 0 | T56: 0 | U56: 0
A57: 1 | B57: EX11803 | F57: Other | I57: 0 | J57: 0 | K57: 0 | L57: 0 | M57: 0 | N57: 0 | O57: 0 | P57: 0 | Q57: 0 | R57: 0 | S57: 0 | T57: 0 | U57: 0
A58: 1 | B58: EX1164 | F58: Laboratory services | I58: 7036 | J58: 4346 | K58: 6000 | L58: 7271.7909 | M58: 8000 | N58: 728.2091 | O58: 7718.278861 | P58: 8460 | Q58: 741.7211387 | R58: 8145.099682 | S58: 8924.454 | T58: 779.3543177 | U58: 9413.514079
A59: 1 | B59: EX1162 | F59: Legal services (G&S) | I59: 78734.87454 | J59: 84320.16101 | K59: 68756.49435 | L59: 89115.82102 | M59: 94836.86063 | N59: 5721.039606 | O59: 91351.00718 | P59: 99432.41651 | Q59: 8081.40933 | R59: 95797.1992 | S59: 104220.5139 | T59: 8423.314653 | U59: 68018.54898
A60: 1 | B60: EX1165 | F60: Science and technological services | I60: 6022.89894 | J60: 12981.14158 | K60: 979.40159 | L60: 14894.62064 | M60: 935.8212441 | N60: -13958.7994 | O60: 15506.84113 | P60: 976.4251664 | Q60: -14530.41596 | R60: 16148.54723 | S60: 1021.390047 | T60: -15127.15718 | U60: 1075.563699
A61: 1 | B61: EX1125 | F61: Contractors | I61: =SUM(I62:I66,I72) -> 248108.155 | J61: =SUM(J62:J66,J72) -> 369582.6433 | K61: =SUM(K62:K66,K72) -> 218742.1465 | L61: =SUM(L62:L66,L72) -> 330787.026 | M61: =SUM(M62:M66,M72) -> 316588.2218 | N61: =SUM(M61-L61) -> -14198.80421 | O61: =SUM(O62:O66,O72) -> 348622.507 | P61: 294579.3761 | Q61: =SUM(P61-O61) -> -54043.13096 | R61: =SUM(R62:R66,R72) -> 366638.0087 | S61: 346985.1067 | T61: -19652.90199 | U61: =SUM(U62:U66,U72) -> 365133.4457
A62: 1 | B62: EX11251 | F62: Maintenance and repairs of other fixed structures | I62: 146381.155 | J62: 190529.1668 | K62: 66469.45373 | L62: 178677.8739 | M62: 108261.0868 | N62: -70416.78717 | O62: 187216.6752 | P62: 111539.3931 | Q62: -75677.28211 | R62: 196327.2881 | S62: 118200.0193 | T62: -78127.26878 | U62: 125463.7434
A63: 1 | B63: EX11252 | F63: Maintenance and repairs of other machinery and equipment | I63: 0 | J63: 48753.47656 | K63: 2642.732 | L63: 2770.875297 | M63: 8560.008 | N63: 5789.132703 | O63: 2898.289407 | P63: 8910.968328 | Q63: 6012.678921 | R63: 3037.338941 | S63: 9283.446804 | T63: 6246.107863 | U63: 9675.208259
A64: 1 | B64: EX11253 | F64: Maintenance and repairs of heritage buildings | I64: 0 | J64: 0 | K64: 0 | L64: 0 | M64: 0 | N64: 0 | O64: 0 | P64: 0 | Q64: 0 | R64: 0 | S64: 0 | T64: 0 | U64: 0
A65: 1 | B65: EX11254 | F65: Maintenance and repairs of other heritage fixed structures | I65: 0 | J65: 0 | K65: 0 | L65: 0 | M65: 0 | N65: 0 | O65: 0 | P65: 0 | Q65: 0 | R65: 0 | S65: 0 | T65: 0 | U65: 0
A66: 5 | B66: EX11255 | F66: South african social security agency payment contractors | I66: =SUM(I67:I71) -> 0 | J66: =SUM(J67:J71) -> 0 | K66: =SUM(K67:K71) -> 0 | L66: =SUM(L67:L71) -> 0 | M66: =SUM(M67:M71) -> 0 | N66: 0 | O66: =SUM(O67:O71) -> 0 | P66: 0 | Q66: 0 | R66: =SUM(R67:R71) -> 0 | S66: 0 | T66: 0 | U66: =SUM(U67:U71) -> 0
A67: 5 | B67: EX112551 | F67: SASSA Admin fees | I67: 0 | J67: 0 | K67: 0 | L67: 0 | M67: 0 | N67: =SUM(M67-L67) -> 0 | O67: 0 | P67: 0 | Q67: =SUM(P67-O67) -> 0 | R67: 0 | S67: 0 | T67: =SUM(S67-R67) -> 0 | U67: 0
A68: 5 | B68: EX112552 | F68: SASSA Bankcard fees | I68: 0 | J68: 0 | K68: 0 | L68: 0 | M68: 0 | N68: 0 | O68: 0 | P68: 0 | Q68: 0 | R68: 0 | S68: 0 | T68: 0 | U68: 0
A69: 5 | B69: EX112553 | F69: SASSA registration fees | I69: 0 | J69: 0 | K69: 0 | L69: 0 | M69: 0 | N69: 0 | O69: 0 | P69: 0 | Q69: 0 | R69: 0 | S69: 0 | T69: 0 | U69: 0
A70: 5 | B70: EX112554 | F70: SASSA beneficiary fees | I70: 0 | J70: 0 | K70: 0 | L70: 0 | M70: 0 | N70: 0 | O70: 0 | P70: 0 | Q70: 0 | R70: 0 | S70: 0 | T70: 0 | U70: 0
A71: 5 | B71: EX112555 | F71: SASSA help desk fees | I71: 0 | J71: 0 | K71: 0 | L71: 0 | M71: 0 | N71: 0 | O71: 0 | P71: 0 | Q71: 0 | R71: 0 | S71: 0 | T71: 0 | U71: 0
A72: 1 | B72: EX11256 | F72: Other | I72: 101727 | J72: 130300 | K72: 149629.9607 | L72: 149338.2768 | M72: 199767.1271 | N72: 50428.85026 | O72: 158507.5424 | P72: 174129.0146 | Q72: 15621.47223 | R72: 167273.3817 | S72: 219501.6406 | T72: 52228.25893 | U72: 229994.494
A73: 1 | B73: EX1121 | F73: Agency and support/outsourced services | I73: 43515.81243 | J73: 58970.99895 | K73: 58915.78583 | L73: 62734.15478 | M73: 60436.57501 | N73: -2297.579773 | O73: 65307.13954 | P73: 62498.858 | Q73: -2808.281548 | R73: 67985.70296 | S73: 64692.6648 | T73: -3293.038165 | U73: 66963.55948
A74: 5 | B74: EX11211 | F74: Of Which: Medical assessments | I74: 0 | J74: 168 | K74: 49863.90625 | L74: 49863.90625 | M74: 49863.90625 | N74: 0 | O74: 49863.90625 | P74: 49863.90625 | Q74: 0 | R74: 0 | S74: 0 | T74: 0 | U74: 0
A75: 1 | B75: EX1161 | F75: Entertainment | I75: 172.438 | J75: 37 | K75: 259 | L75: 227.8197 | M75: 264.0278599 | N75: 36.20815995 | O75: 244.2552296 | P75: 277.9379619 | Q75: 33.68273232 | R75: 257.6029438 | S75: 303.145956 | T75: 45.54301223 | U75: 318.1747544
A76: 1 | B76: EX1166 | F76: Fleet services (including government motor transport) | I76: 15921 | J76: 14290 | K76: 18807 | L76: 19397.785 | M76: 21886 | N76: 2488.215 | O76: 20588.809 | P76: 23144.445 | Q76: 2555.636001 | R76: 21727.37014 | S76: 24415.07503 | T76: 2687.704894 | U76: 25753.02114
A77: 1 | B77: EX1167 | F77: Housing | I77: 0 | J77: 0 | K77: 0 | L77: 0 | M77: 0 | N77: 0 | O77: 0 | P77: 0 | Q77: 0 | R77: 0 | S77: 0 | T77: 0 | U77: 0
A78: 1 | B78: EX1168 | F78: Inventory: Clothing material and accessories | I78: 0 | J78: 0 | K78: 0 | L78: 0 | M78: 0 | N78: 0 | O78: 0 | P78: 0 | Q78: 0 | R78: 0 | S78: 0 | T78: 0 | U78: 0
A79: 1 | B79: EX1169 | F79: Inventory: Farming supplies | I79: 0 | J79: 0 | K79: 0 | L79: 0 | M79: 0 | N79: 0 | O79: 0 | P79: 0 | Q79: 0 | R79: 0 | S79: 0 | T79: 0 | U79: 0
A80: 1 | B80: EX1170 | F80: Inventory: Food and food supplies | I80: 0 | J80: 0 | K80: 0 | L80: 0 | M80: 0 | N80: 0 | O80: 0 | P80: 0 | Q80: 0 | R80: 0 | S80: 0 | T80: 0 | U80: 0
A81: 1 | B81: EX1171 | F81: Inventory: Fuel, oil and gas | I81: 6606 | J81: 5677 | K81: 6026 | L81: 17441.4997 | M81: 7422 | N81: -10019.4997 | O81: 18194.85998 | P81: 7788.3075 | Q81: -10406.55248 | R81: 19025.34124 | S81: 8170.227982 | T81: -10855.11326 | U81: 8570.534875
A82: 1 | B82: EX1172 | F82: Inventory: Learner and teacher support material | I82: 0 | J82: 0 | K82: 0 | L82: 0 | M82: 0 | N82: 0 | O82: 0 | P82: 0 | Q82: 0 | R82: 0 | S82: 0 | T82: 0 | U82: 0
A83: 1 | B83: EX1126 | F83: Inventory: Materials and supplies | I83: 23.72235 | J83: -7.6605 | K83: 18574.15204 | L83: 220.080064 | M83: 19657.21434 | N83: 19437.13428 | O83: 230.6439061 | P83: 12079.66977 | Q83: 11849.02586 | R83: 241.7147927 | S83: 175312.5686 | T83: 175070.8538 | U83: 258467.7972
A84: 1 | B84: EX1173 | F84: Inventory: Medical supplies | I84: 0 | J84: 0 | K84: 0 | L84: 0 | M84: 0 | N84: 0 | O84: 0 | P84: 0 | Q84: 0 | R84: 0 | S84: 0 | T84: 0 | U84: 0
A85: 1 | B85: EX1174 | F85: Inventory: Medicine | I85: 0 | J85: 0 | K85: 0 | L85: 0 | M85: 0 | N85: 0 | O85: 0 | P85: 0 | Q85: 0 | R85: 0 | S85: 0 | T85: 0 | U85: 0
A86: 1 | B86: EX1175 | F86: Medsas inventory interface | I86: 0 | J86: 0 | K86: 0 | L86: 0 | M86: 0 | N86: 0 | O86: 0 | P86: 0 | Q86: 0 | R86: 0 | S86: 0 | T86: 0 | U86: 0
A87: 1 | B87: EX1176 | F87: Inventory: Other supplies | I87: 0 | J87: 0 | K87: 0 | L87: 0 | M87: 0 | N87: 0 | O87: 0 | P87: 0 | Q87: 0 | R87: 0 | S87: 0 | T87: 0 | U87: 0
A88: 1 | B88: EX1177 | F88: Consumable supplies | I88: 64399.10312 | J88: 25775.24326 | K88: 39754.51452 | L88: 29574.49997 | M88: 41456.49601 | N88: 11881.99605 | O88: 30859.12547 | P88: 43075.00838 | Q88: 12215.88291 | R88: 32196.59188 | S88: 44786.27714 | T88: 12589.68526 | U88: 46827.46556
A89: 1 | B89: EX1144 | F89: Consumables: Stationery, printing and office supplies | I89: 5285.14323 | J89: 4090.815363 | K89: 5881.830401 | L89: 6786.303964 | M89: 5692.628628 | N89: -1093.675336 | O89: 6742.019322 | P89: 5959.576002 | Q89: -782.4433203 | R89: 7078.747128 | S89: 6244.477115 | T89: -834.2700133 | U89: 6598.881292
A90: 1 | B90: EX1127 | F90: Operating leases | I90: 17122.91623 | J90: 13782.7354 | K90: 11375.03228 | L90: 11838.76251 | M90: 15747.97356 | N90: 3909.211051 | O90: 12404.33399 | P90: 15797.18161 | Q90: 3392.847617 | R90: 12994.94742 | S90: 16527.60295 | T90: 3532.655532 | U90: 17580.27218
A91: 1 | B91: EX1178 | F91: Rental and hiring | I91: 3067.56627 | J91: 590.5073782 | K91: 4264.92938 | L91: 4028.308759 | M91: 12520.47508 | N91: 8492.166318 | O91: 4238.993755 | P91: 13201.00543 | Q91: 8962.011676 | R91: 4452.646918 | S91: 13891.32032 | T91: 9438.6734 | U91: 14617.15403
A92: 1 | B92: EX1145 | F92: Property payments | I92: 58611.40995 | J92: 77738 | K92: 82650.87454 | L92: 86818.05174 | M92: 87112.11827 | N92: 294.0665368 | O92: 92141.23886 | P92: 92120.53387 | Q92: -20.70498789 | R92: 97236.24923 | S92: 97181.86505 | T92: -54.38417872 | U92: 102492.3515
A93: 1 | B93: EX1179 | F93: Transport provided: Internal activities | I93: 0 | J93: 0 | K93: 0 | L93: 0 | M93: 0 | N93: 0 | O93: 0 | P93: 0 | Q93: 0 | R93: 0 | S93: 0 | T93: 0 | U93: 0
A94: 1 | B94: EX1131 | F94: Travel and subsistence | I94: 29716.06137 | J94: 18912.05967 | K94: 39695.16628 | L94: 38483.48733 | M94: 42649.37634 | N94: 4165.889016 | O94: 37494.78737 | P94: 44947.67274 | Q94: 7452.885377 | R94: 39686.66938 | S94: 47367.04941 | T94: 7680.380033 | U94: 49980.05607
A95: 1 | B95: EX1130 | F95: Training and development | I95: 67255.61981 | J95: 48172.78091 | K95: 77379.30598 | L95: 71497.4504 | M95: 82875.69548 | N95: 11378.24508 | O95: 74639.39302 | P95: 86841.46965 | Q95: 12202.07664 | R95: 78479.22134 | S95: 90918.90451 | T95: 12439.68317 | U95: 95219.15223
A96: 1 | B96: EX1132 | F96: Operating payments | I96: 1615378.961 | J96: 1607200.712 | K96: 1202518.335 | L96: 1735084.092 | M96: 1759206.327 | N96: 24122.23473 | O96: 1895146.751 | P96: 1321487.913 | Q96: -573658.8375 | R96: 1802074.753 | S96: 483665.6944 | T96: -1318409.059 | U96: 238550.2633
A97: 1 | B97: EX1146 | F97: Venues and facilities | I97: 3698.56877 | J97: 423.1990949 | K97: 687.22959 | L97: 1301.187752 | M97: 1430.271396 | N97: 129.0836444 | O97: 1359.365231 | P97: 1488.892624 | Q97: 129.5273928 | R97: 1422.081669 | S97: 1553.648865 | T97: 131.5671967 | U97: 1621.061576
A98: 1 | B98: EX113 | F98: Depreciation | I98: 205427.3038 | J98: 196306.3305 | K98: 224179.3456 | L98: 275965.463 | M98: 275539.1142 | N98: -426.3488367 | O98: 271685.5771 | P98: 262558.6374 | Q98: -9126.939664 | R98: 265845.1389 | S98: 401602.9292 | T98: 135757.7903 | U98: 255099.0086
A99: 1 | B99: EX114 | F99: Losses from | I99: =SUM(I100:I101,I104) -> 198223 | J99: =SUM(J100:J101,J104) -> 194319 | K99: =SUM(K100:K101,K104) -> 175923 | L99: =SUM(L100:L101,L104) -> 176320 | M99: =SUM(M100:M101,M104) -> 245291.7229 | N99: =SUM(M99-L99) -> 68971.72292 | O99: =SUM(O100:O101,O104) -> 110263 | P99: 319097 | Q99: =SUM(P99-O99) -> 208834 | R99: =SUM(R100:R101,R104) -> 121486 | S99: 258283 | T99: =SUM(S99-R99) -> 136797 | U99: =SUM(U100:U101,U104) -> 198426
A100: 1 | B100: EX1141 | F100: Sale of fixed assets | I100: 0 | J100: 4083 | K100: 0 | L100: 0 | M100: 0 | N100: 0 | O100: 0 | P100: 0 | Q100: 0 | R100: 0 | S100: 0 | T100: 0 | U100: 0
A101: 1 | B101: EX1142 | F101: Impairments and adjustments to fair value | I101: =SUM(I102:I103) -> 198223 | J101: =SUM(J102:J103) -> 190236 | K101: =SUM(K102:K103) -> 175923 | L101: =SUM(L102:L103) -> 176320 | M101: =SUM(M102:M103) -> 245291.7229 | N101: 68971.72292 | O101: =SUM(O102:O103) -> 110263 | P101: 319097 | Q101: 208834 | R101: =SUM(R102:R103) -> 121486 | S101: 258283 | T101: 136797 | U101: =SUM(U102:U103) -> 198426
A102: 1 | B102: EX11421 | F102: Adjustments to fair value of assets | I102: 3449 | J102: 1657 | K102: 0 | L102: 0 | M102: 0 | N102: 0 | O102: 0 | P102: 0 | Q102: 0 | R102: 0 | S102: 0 | T102: 0 | U102: 0
A103: 1 | B103: EX11422 | F103: Impairments to assets | I103: 194774 | J103: 188579 | K103: 175923 | L103: 176320 | M103: 245291.7229 | N103: 68971.72292 | O103: 110263 | P103: 319097 | Q103: 208834 | R103: 121486 | S103: 258283 | T103: 136797 | U103: 198426
A104: 1 | B104: EX1143 | F104: Other | I104: 0 | J104: 0 | K104: 0 | L104: 0 | M104: 0 | N104: 0 | O104: 0 | P104: 0 | Q104: 0 | R104: 0 | S104: 0 | T104: 0 | U104: 0
A105: 1 | B105: EX115 | F105: Interest, dividends and rent on land | I105: =SUM(I106:I108) -> 434924.8731 | J105: =SUM(J106:J108) -> 109908.8731 | K105: =SUM(K106:K108) -> 82626.4915 | L105: =SUM(L106:L108) -> 164135.2254 | M105: =SUM(M106:M108) -> 103821.9122 | N105: -60313.31324 | O105: =SUM(O106:O108) -> 205187.6064 | P105: 145506.4321 | Q105: -59681.17439 | R105: =SUM(R106:R108) -> 225464.9338 | S105: 188069.1274 | T105: -37395.8064 | U105: =SUM(U106:U108) -> 214430.6664
A106: 1 | B106: EX1151 | F106: Interest | I106: 434924.8731 | J106: 109908.8731 | K106: 82626.4915 | L106: 164135.2254 | M106: 103821.9122 | N106: -60313.31324 | O106: 205187.6064 | P106: 145506.4321 | Q106: -59681.17439 | R106: 225464.9338 | S106: 188069.1274 | T106: -37395.8064 | U106: 214430.6664
A107: 1 | B107: EX1152 | F107: Dividends | I107: 0 | J107: 0 | K107: 0 | L107: 0 | M107: 0 | N107: 0 | O107: 0 | P107: 0 | Q107: 0 | R107: 0 | S107: 0 | T107: 0 | U107: 0
A108: 1 | B108: EX1153 | F108: Rent on land | I108: 0 | J108: 0 | K108: 0 | L108: 0 | M108: 0 | N108: 0 | O108: 0 | P108: 0 | Q108: 0 | R108: 0 | S108: 0 | T108: 0 | U108: 0
A109: 1 | B109: EX12 | F109: Transfers and subsidies | I109: =SUM(I110,I121,I132:I135) -> 0 | J109: =SUM(J110,J121,J132:J135) -> 0 | K109: =SUM(K110,K121,K132:K135) -> 0 | L109: =SUM(L110,L121,L132:L135) -> 0 | M109: =SUM(M110,M121,M132:M135) -> 0 | N109: 0 | O109: =SUM(O110,O121,O132:O135) -> 0 | P109: 0 | Q109: 0 | R109: =SUM(R110,R121,R132:R135) -> 0 | S109: 0 | T109: 0 | U109: =SUM(U110,U121,U132:U135) -> 0
A110: 2 | B110: EX121 | F110: Employer Grant (SETAs only) | I110: =SUM(I111,I117,I120) -> 0 | J110: =SUM(J111,J117,J120) -> 0 | K110: =SUM(K111,K117,K120) -> 0 | L110: =SUM(L111,L117,L120) -> 0 | M110: =SUM(M111,M117,M120) -> 0 | N110: 0 | O110: =SUM(O111,O117,O120) -> 0 | P110: 0 | Q110: 0 | R110: =SUM(R111,R117,R120) -> 0 | S110: 0 | T110: 0 | U110: =SUM(U111,U117,U120) -> 0
A111: 1 | B111: EX122 | F111: Other government units | I111: =SUM(I112:I116) -> 0 | J111: =SUM(J112:J116) -> 0 | K111: =SUM(K112:K116) -> 0 | L111: =SUM(L112:L116) -> 0 | M111: =SUM(M112:M116) -> 0 | N111: 0 | O111: =SUM(O112:O116) -> 0 | P111: 0 | Q111: 0 | R111: =SUM(R112:R116) -> 0 | S111: 0 | T111: 0 | U111: =SUM(U112:U116) -> 0
A112: 1 | B112: EX1221 | F112: National government | I112: 0 | J112: 0 | K112: 0 | L112: 0 | M112: 0 | N112: 0 | O112: 0 | P112: 0 | Q112: 0 | R112: 0 | S112: 0 | T112: 0 | U112: 0
A113: 1 | B113: EX1222 | F113: Departmental agencies and accounts | I113: 0 | J113: 0 | K113: 0 | L113: 0 | M113: 0 | N113: 0 | O113: 0 | P113: 0 | Q113: 0 | R113: 0 | S113: 0 | T113: 0 | U113: 0
A114: 1 | B114: EX1223 | F114: Provinces | I114: 0 | J114: 0 | K114: 0 | L114: 0 | M114: 0 | N114: 0 | O114: 0 | P114: 0 | Q114: 0 | R114: 0 | S114: 0 | T114: 0 | U114: 0
A115: 1 | B115: EX1224 | F115: Municipalities | I115: 0 | J115: 0 | K115: 0 | L115: 0 | M115: 0 | N115: 0 | O115: 0 | P115: 0 | Q115: 0 | R115: 0 | S115: 0 | T115: 0 | U115: 0
A116: 2 | B116: EX1225 | F116: National Skills Fund | I116: 0 | J116: 0 | K116: 0 | L116: 0 | M116: 0 | N116: 0 | O116: 0 | P116: 0 | Q116: 0 | R116: 0 | S116: 0 | T116: 0 | U116: 0
A117: 1 | B117: EX123 | F117: Public corporations and private enterprises (subsidies and other transfers) | I117: =SUM(I118:I119) -> 0 | J117: =SUM(J118:J119) -> 0 | K117: =SUM(K118:K119) -> 0 | L117: =SUM(L118:L119) -> 0 | M117: =SUM(M118:M119) -> 0 | N117: 0 | O117: =SUM(O118:O119) -> 0 | P117: 0 | Q117: 0 | R117: =SUM(R118:R119) -> 0 | S117: 0 | T117: 0 | U117: =SUM(U118:U119) -> 0
A118: 1 | B118: EX1231 | F118: Public corporations | I118: 0 | J118: 0 | K118: 0 | L118: 0 | M118: 0 | N118: 0 | O118: 0 | P118: 0 | Q118: 0 | R118: 0 | S118: 0 | T118: 0 | U118: 0
A119: 1 | B119: EX1232 | F119: Private enterprises | I119: 0 | J119: 0 | K119: 0 | L119: 0 | M119: 0 | N119: 0 | O119: 0 | P119: 0 | Q119: 0 | R119: 0 | S119: 0 | T119: 0 | U119: 0
A120: 2 | B120: EX124 | F120: Households and non government units | I120: 0 | J120: 0 | K120: 0 | L120: 0 | M120: 0 | N120: 0 | O120: 0 | P120: 0 | Q120: 0 | R120: 0 | S120: 0 | T120: 0 | U120: 0
A121: 2 | B121: EX125 | F121: Discretionary Grant (SETAs only) | I121: =SUM(I122,I128,I131) -> 0 | J121: =SUM(J122,J128,J131) -> 0 | K121: =SUM(K122,K128,K131) -> 0 | L121: =SUM(L122,L128,L131) -> 0 | M121: =SUM(M122,M128,M131) -> 0 | N121: 0 | O121: =SUM(O122,O128,O131) -> 0 | P121: 0 | Q121: 0 | R121: =SUM(R122,R128,R131) -> 0 | S121: 0 | T121: 0 | U121: =SUM(U122,U128,U131) -> 0
A122: 2 | B122: EX126 | F122: Other government units | I122: =SUM(I123:I127) -> 0 | J122: =SUM(J123:J127) -> 0 | K122: =SUM(K123:K127) -> 0 | L122: =SUM(L123:L127) -> 0 | M122: =SUM(M123:M127) -> 0 | N122: 0 | O122: =SUM(O123:O127) -> 0 | P122: 0 | Q122: 0 | R122: =SUM(R123:R127) -> 0 | S122: 0 | T122: 0 | U122: =SUM(U123:U127) -> 0
A123: 2 | B123: EX1261 | F123: National government | I123: 0 | J123: 0 | K123: 0 | L123: 0 | M123: 0 | N123: 0 | O123: 0 | P123: 0 | Q123: 0 | R123: 0 | S123: 0 | T123: 0 | U123: 0
A124: 2 | B124: EX1262 | F124: Departmental agencies and accounts | I124: 0 | J124: 0 | K124: 0 | L124: 0 | M124: 0 | N124: 0 | O124: 0 | P124: 0 | Q124: 0 | R124: 0 | S124: 0 | T124: 0 | U124: 0
A125: 2 | B125: EX1263 | F125: Provinces | I125: 0 | J125: 0 | K125: 0 | L125: 0 | M125: 0 | N125: 0 | O125: 0 | P125: 0 | Q125: 0 | R125: 0 | S125: 0 | T125: 0 | U125: 0
A126: 2 | B126: EX1264 | F126: Municipalities | I126: 0 | J126: 0 | K126: 0 | L126: 0 | M126: 0 | N126: 0 | O126: 0 | P126: 0 | Q126: 0 | R126: 0 | S126: 0 | T126: 0 | U126: 0
A127: 2 | B127: EX1265 | F127: National Skills Fund | I127: 0 | J127: 0 | K127: 0 | L127: 0 | M127: 0 | N127: 0 | O127: 0 | P127: 0 | Q127: 0 | R127: 0 | S127: 0 | T127: 0 | U127: 0
A128: 2 | B128: EX127 | F128: Public corporations and private enterprises (subsidies and other transfers) | I128: =SUM(I129:I130) -> 0 | J128: =SUM(J129:J130) -> 0 | K128: =SUM(K129:K130) -> 0 | L128: =SUM(L129:L130) -> 0 | M128: =SUM(M129:M130) -> 0 | N128: 0 | O128: =SUM(O129:O130) -> 0 | P128: 0 | Q128: 0 | R128: =SUM(R129:R130) -> 0 | S128: 0 | T128: 0 | U128: =SUM(U129:U130) -> 0
A129: 2 | B129: EX1271 | F129: Public corporations | I129: 0 | J129: 0 | K129: 0 | L129: 0 | M129: 0 | N129: =SUM(M129-L129) -> 0 | O129: 0 | P129: 0 | Q129: =SUM(P129-O129) -> 0 | R129: 0 | S129: 0 | T129: =SUM(S129-R129) -> 0 | U129: 0
A130: 2 | B130: EX1272 | F130: Private enterprises | I130: 0 | J130: 0 | K130: 0 | L130: 0 | M130: 0 | N130: 0 | O130: 0 | P130: 0 | Q130: 0 | R130: 0 | S130: 0 | T130: 0 | U130: 0
A131: 2 | B131: EX128 | F131: Households and non government units | I131: 0 | J131: 0 | K131: 0 | L131: 0 | M131: 0 | N131: 0 | O131: 0 | P131: 0 | Q131: 0 | R131: 0 | S131: 0 | T131: 0 | U131: 0
A132: 1 | B132: EX129 | F132: Higher education institutions | I132: 0 | J132: 0 | K132: 0 | L132: 0 | M132: 0 | N132: 0 | O132: 0 | P132: 0 | Q132: 0 | R132: 0 | S132: 0 | T132: 0 | U132: 0
A133: 1 | B133: EX130 | F133: Foreign governments and international organisations | I133: 0 | J133: 0 | K133: 0 | L133: 0 | M133: 0 | N133: 0 | O133: 0 | P133: 0 | Q133: 0 | R133: 0 | S133: 0 | T133: 0 | U133: 0
A134: 1 | B134: EX131 | F134: Non-profit institutions | I134: 0 | J134: 0 | K134: 0 | L134: 0 | M134: 0 | N134: 0 | O134: 0 | P134: 0 | Q134: 0 | R134: 0 | S134: 0 | T134: 0 | U134: 0
A135: 1 | B135: EX132 | F135: Households | I135: =SUM(I136:I137) -> 0 | J135: =SUM(J136:J137) -> 0 | K135: =SUM(K136:K137) -> 0 | L135: =SUM(L136:L137) -> 0 | M135: =SUM(M136:M137) -> 0 | N135: =SUM(M135-L135) -> 0 | O135: =SUM(O136:O137) -> 0 | P135: 0 | Q135: =SUM(P135-O135) -> 0 | R135: =SUM(R136:R137) -> 0 | S135: 0 | T135: =SUM(S135-R135) -> 0 | U135: =SUM(U136:U137) -> 0
A136: 1 | B136: EX1301 | F136: Social benefits | I136: 0 | J136: 0 | K136: 0 | L136: 0 | M136: 0 | N136: 0 | O136: 0 | P136: 0 | Q136: 0 | R136: 0 | S136: 0 | T136: 0 | U136: 0
A137: 1 | B137: EX1302 | F137: Other transfers to households | I137: 0 | J137: 0 | K137: 0 | L137: 0 | M137: 0 | N137: 0 | O137: 0 | P137: 0 | Q137: 0 | R137: 0 | S137: 0 | T137: 0 | U137: 0
A138: 1 | B138: EX13 | F138: Tax payment | I138: 0 | J138: 0 | K138: 0 | L138: 0 | M138: 0 | N138: 0 | O138: 0 | P138: 0 | Q138: 0 | R138: 0 | S138: 0 | T138: 0 | U138: 0
A139: 1 | B139: EX14 | F139: Outside shareholders Interest | I139: 0 | J139: 0 | K139: 0 | L139: 0 | M139: 0 | N139: 0 | O139: 0 | P139: 0 | Q139: 0 | R139: 0 | S139: 0 | T139: 0 | U139: 0
A140: 1 | B140: EX15 | F140: Total Expenditure | I140: =SUM(I39,I109,I138:I139) -> 5286695.824 | J140: =SUM(J39,J109,J138:J139) -> 5726156.661 | K140: =SUM(K39,K109,K138:K139) -> 5254093.825 | L140: =SUM(L39,L109,L138:L139) -> 6083450.85 | M140: =SUM(M39,M109,M138:M139) -> 6366845.222 | N140: 283394.3713 | O140: =SUM(O39,O109,O138:O139) -> 6421261.804 | P140: =SUM(P39,P109,P138:P139) -> 6405781.855 | Q140: -15479.94851 | R140: =SUM(R39,R109,R138:R139) -> 6707893.591 | S140: =SUM(S39,S109,S138:S139) -> 6128840.666 | T140: -579052.9246 | U140: =SUM(U39,U109,U138:U139) -> 6128531.256
A141: 1
A142: 1 | F142: Objective less Expenditure | I142: =ROUND(IF(I37-I140>0,IF(I37-I140<1,0,I37-I140),I37-I140),0) -> 0 | J142: 0 | K142: 0 | L142: 0 | M142: -1 | N142: =ROUND(IF(N37-N140>0,IF(N37-N140<1,0,N37-N140),N37-N140),0) -> -1 | O142: 0 | P142: 0 | Q142: 0 | R142: 0 | S142: 0 | T142: 0 | U142: 2
A143: 1

Sheet 2
F6: PE No | G6: =Settings!O2 -> PE153
F7: Entity name | G7: =Settings!$E$2 -> ZWater Boards Consolidation
F9: Performance and operations information
A10: ItemCat | B10: Item code | C10: Hide/unhide | F10: Activity/Output/Outcome/Efficiency Indicator | G10: Priorities | I10: =MyYearM3 -> 2019/20 | J10: =MyYearM2 -> 2020/21 | K10: =MyYearM1 -> 2021/22 | L10: =MyYear0 -> 2022/23 | M10: =MyYearP1 -> 2023/24 | N10: =MyYearP2 -> 2024/25 | O10: =MyYearP3 -> 2025/26 | P10: Related Objectives | Q10: Add to 'Performance Indicators' Sheet | R10: Comments
A11: 1 | F11: Water Board Activities | G11: 0 | H11: 0 | I11: 0 | J11: 0 | K11: 0 | L11: 0 | M11: 0 | N11: 0 | O11: 0 | P11: 0 | Q11: 0 | R11: 0 | S11: 0 | T11: 0
A12: 1 | F12: 0 | G12: 0 | H12: 0 | I12: 0 | J12: 0 | K12: 0 | L12: 0 | M12: 0 | N12: 0 | O12: 0 | P12: 0 | Q12: 0 | R12: 0 | S12: 0 | T12: 0
A13: 1 | F13: 0 | G13: 0 | H13: 0 | I13: 0 | J13: 0 | K13: 0 | L13: 0 | M13: 0 | N13: 0 | O13: 0 | P13: 0 | Q13: 0 | R13: 0 | S13: 0 | T13: 0
A14: 1 | F14: 0 | G14: 0 | H14: 0 | I14: 0 | J14: 0 | K14: 0 | L14: 0 | M14: 0 | N14: 0 | O14: 0 | P14: 0 | Q14: 0 | R14: 0 | S14: 0 | T14: 0
A15: 1 | F15: 0 | G15: 0 | H15: 0 | I15: 0 | J15: 0 | K15: 0 | L15: 0 | M15: 0 | N15: 0 | O15: 0 | P15: 0 | Q15: 0 | R15: 0 | S15: 0 | T15: 0
A16: 1 | F16: 0 | G16: 0 | H16: 0 | I16: 0 | J16: 0 | K16: 0 | L16: 0 | M16: 0 | N16: 0 | O16: 0 | P16: 0 | Q16: 0 | R16: 0 | S16: 0 | T16: 0
A17: 1 | F17: 0 | G17: 0 | H17: 0 | I17: 0 | J17: 0 | K17: 0 | L17: 0 | M17: 0 | N17: 0 | O17: 0 | P17: 0 | Q17: 0 | R17: 0 | S17: 0 | T17: 0
A18: 1 | F18: 0 | G18: 0 | H18: 0 | I18: 0 | J18: 0 | K18: 0 | L18: 0 | M18: 0 | N18: 0 | O18: 0 | P18: 0 | Q18: 0 | R18: 0 | S18: 0 | T18: 0
A19: 1 | F19: 0 | G19: 0 | H19: 0 | I19: 0 | J19: 0 | K19: 0 | L19: 0 | M19: 0 | N19: 0 | O19: 0 | P19: 0 | Q19: 0 | R19: 0 | S19: 0 | T19: 0
A20: 1 | F20: 0 | G20: 0 | H20: 0 | I20: 0 | J20: 0 | K20: 0 | L20: 0 | M20: 0 | N20: 0 | O20: 0 | P20: 0 | Q20: 0 | R20: 0 | S20: 0 | T20: 0
A21: 1 | F21: 0 | G21: 0 | H21: 0 | I21: 0 | J21: 0 | K21: 0 | L21: 0 | M21: 0 | N21: 0 | O21: 0 | P21: 0 | Q21: 0 | R21: 0 | S21: 0 | T21: 0
A22: 1 | F22: 0 | G22: 0 | H22: 0 | I22: 0 | J22: 0 | K22: 0 | L22: 0 | M22: 0 | N22: 0 | O22: 0 | P22: 0 | Q22: 0 | R22: 0 | S22: 0 | T22: 0
A23: 1 | F23: 0 | G23: 0 | H23: 0 | I23: 0 | J23: 0 | K23: 0 | L23: 0 | M23: 0 | N23: 0 | O23: 0 | P23: 0 | Q23: 0 | R23: 0 | S23: 0 | T23: 0
A24: 1 | F24: 0 | G24: 0 | H24: 0 | I24: 0 | J24: 0 | K24: 0 | L24: 0 | M24: 0 | N24: 0 | O24: 0 | P24: 0 | Q24: 0 | R24: 0 | S24: 0 | T24: 0
A25: 1 | F25: 0 | G25: 0 | H25: 0 | I25: 0 | J25: 0 | K25: 0 | L25: 0 | M25: 0 | N25: 0 | O25: 0 | P25: 0 | Q25: 0 | R25: 0 | S25: 0 | T25: 0
A26: 1 | F26: Notes:
A27: 1 | F27: Performance indicators are an explanation of objectives performance.
A28: 1 | F28: 1. They are specific measurements that track progress towards achieving the goals and objectives of an institution.
A29: 1 | F29: 2. Institutions should use performance indicators in the 2021/22 Annual Performance Plans and those in the 2022 ENE.
A30: 1 | F30: 3. Institutions should also indicate instances where targets are not affected by budget baseline reprioritisation.
A31: 1
A32: 1 | I32: =MyYearM3 -> 2019/20 | J32: =MyYearM2 -> 2020/21 | K32: =MyYearM1 -> 2021/22 | L32: =MyYear0 -> 2022/23 | O32: =MyYearP1 -> 2023/24 | R32: =MyYearP2 -> 2024/25 | U32: =MyYearP3 -> 2025/26
A33: 1 | F33: Expenses | I33: =Hist_year3RestatedAudited -> Audited outcome | J33: =Hist_year2RestatedAudited -> Audited outcome | K33: =Hist_year1Audited -> Audited outcome | L33: =Cur_YearBudgEst -> Budget estimate | M33: =Cur_YearApprovedBudg -> Approved budget | N33: =Cur_YearChangeFrRevBudg -> Changes from budget estimate | O33: =MTEF1BudgEst -> Budget estimate | P33: =MTEF1RevBudgEst -> Revised budget estimate | Q33: =MTEF1_ChangeFrBudgEst -> Changes from budget estimate | R33: =MTEF2BudgEst -> Budget estimate | S33: =MTEF2RevBudgEst -> Revised budget estimate | T33: =MTEF2_ChangeFrBudgEst -> Changes from budget estimate | U33: =MTEF3PlanBudgetEst -> Planning budget estimate
A34: 1
A35: 1 | F35: Rand thousand
A36: 1 | F36: Objective/Activity
A37: 1 | F37: Bulk activities | I37: 14676328.68 | J37: 14827153.49 | K37: 16160502.33 | L37: 17619258.82 | M37: 17109963.43 | N37: =SUM(M37-L37) -> -509295.3904 | O37: 19420777.11 | P37: 18616541.96 | Q37: =SUM(P37-O37) -> -804235.1468 | R37: 21404658.38 | S37: 21139906.44 | T37: =SUM(S37-R37) -> -264751.9391 | U37: 23520745.63
A38: 1 | F38: Economic classification
A39: 1 | B39: EX11 | F39: Current payments | I39: =SUM(I40,I43,I98:I99,I105) -> 14676328.31 | J39: =SUM(J40,J43,J98:J99,J105) -> 14827153.37 | K39: =SUM(K40,K43,K98:K99,K105) -> 16160502.94 | L39: =SUM(L40,L43,L98:L99,L105) -> 17619259.38 | M39: =SUM(M40,M43,M98:M99,M105) -> 17109962.67 | N39: =SUM(M39-L39) -> -509296.7026 | O39: =SUM(O40,O43,O98:O99,O105) -> 19420777.99 | P39: 18616543.04 | Q39: =SUM(P39-O39) -> -804234.9548 | R39: =SUM(R40,R43,R98:R99,R105) -> 21404659.4 | S39: 21139907.05 | T39: =SUM(S39-R39) -> -264752.3429 | U39: =SUM(U40,U43,U98:U99,U105) -> 23520744.67
A40: 1 | B40: EX111 | F40: Compensation of employees | I40: =SUM(I41:I42) -> 1794548.805 | J40: =SUM(J41:J42) -> 1697604.045 | K40: =SUM(K41:K42) -> 1738886.877 | L40: =SUM(L41:L42) -> 2234430.835 | M40: =SUM(M41:M42) -> 2028895.916 | N40: =SUM(M40-L40) -> -205534.9195 | O40: =SUM(O41:O42) -> 2407021.942 | P40: 2159357.889 | Q40: =SUM(P40-O40) -> -247664.0524 | R40: =SUM(R41:R42) -> 2580788.388 | S40: 2368549.27 | T40: =SUM(S40-R40) -> -212239.118 | U40: =SUM(U41:U42) -> 2449525.93
A41: 1 | B41: EX1111 | F41: Salaries and wages | I41: 1776379.045 | J41: 1676928.285 | K41: 1718153.277 | L41: 2204723.395 | M41: 2008162.316 | N41: =SUM(M41-L41) -> -196561.0795 | O41: 2374384.582 | P41: 2128360.689 | Q41: =SUM(P41-O41) -> -246023.8924 | R41: 2545982.788 | S41: 2335847.99 | T41: =SUM(S41-R41) -> -210134.798 | U41: 2415048.97
A42: 1 | B42: EX1112 | F42: Social contributions | I42: 18169.76 | J42: 20675.76 | K42: 20733.6 | L42: 29707.44 | M42: 20733.6 | N42: =SUM(M42-L42) -> -8973.84 | O42: 32637.36 | P42: 30997.2 | Q42: =SUM(P42-O42) -> -1640.16 | R42: 34805.6 | S42: 32701.28 | T42: =SUM(S42-R42) -> -2104.32 | U42: 34476.96
A43: 1 | B43: EX112 | F43: Goods and services | I43: =SUM(I45:I54,I58:I61,I73,I75:I97) -> 11117396.84 | J43: =SUM(J45:J54,J58:J61,J73,J75:J97) -> 11771042.86 | K43: 13359173.81 | L43: 14182221.74 | M43: 13890741.86 | N43: -291479.8788 | O43: 15650123.53 | P43: 15162101.9 | Q43: -488021.6233 | R43: 17277907.27 | S43: 17331819.27 | T43: 53912.00218 | U43: 19432581.77 | V43: =SUM(V45:V54,V58:V61,V73,V75:V97) -> 0
A44: 1 | B44: EX000 | F44: Of which 1
A45: 1 | B45: EX1133 | F45: Administrative fees | I45: 1447.26555 | J45: 2379.401552 | K45: 2952.680197 | L45: 4493.467354 | M45: 3074.690524 | N45: =SUM(M45-L45) -> -1418.77683 | O45: 4712.109786 | P45: 3216.117763 | Q45: =SUM(P45-O45) -> -1495.992022 | R45: 4950.466526 | S45: 3366.279026 | T45: =SUM(S45-R45) -> -1584.187499 | U45: 3499.721157
A46: 1 | B46: EX1134 | F46: Advertising | I46: 0 | J46: 424.88955 | K46: 444.0095797 | L46: 466.2100587 | M46: 466.2100587 | N46: 0 | O46: 494.1826623 | P46: 494.1826623 | Q46: 0 | R46: 523.833622 | S46: 523.833622 | T46: 0 | U46: 547.3013683
A47: 1 | B47: EX1135 | F47: Minor assets | I47: 0 | J47: 0 | K47: 0 | L47: 0 | M47: 0 | N47: 0 | O47: 0 | P47: 0 | Q47: 0 | R47: 0 | S47: 0 | T47: 0 | U47: 0
A48: 1 | B48: EX1136 | F48: Audit costs: External | I48: 0 | J48: 932.02739 | K48: 0 | L48: 0 | M48: 0 | N48: 0 | O48: 0 | P48: 0 | Q48: 0 | R48: 0 | S48: 0 | T48: 0 | U48: 0
A49: 1 | B49: EX1139 | F49: Bursaries: Employees | I49: 858 | J49: 912.14206 | K49: 953.1884527 | L49: 1000.847875 | M49: 1000.847875 | N49: 0 | O49: 1060.898748 | P49: 1060.898748 | Q49: 0 | R49: 1124.552673 | S49: 1124.552673 | T49: 0 | U49: 1174.932632
A50: 1 | B50: EX1140 | F50: Catering: Internal activities | I50: 59.17598 | J50: 2.6633915 | K50: 70.99282488 | L50: 54.18571227 | M50: 18.91478093 | N50: -35.27093135 | O50: 60.7037379 | P50: 19.55788348 | Q50: -41.14585443 | R50: 59.42659078 | S50: 20.2424094 | T50: -39.18418139 | U50: 20.95089373
A51: 1 | B51: EX1122 | F51: Communication (G&S) | I51: 1.6475 | J51: 14.2457744 | K51: 49.19242542 | L51: 56.44059377 | M51: 1130.253508 | N51: 1073.812914 | O51: 58.45572276 | P51: 1186.584655 | Q51: 1128.128933 | R51: 61.51507814 | S51: 1243.388213 | T51: 1181.873135 | U51: 1302.913003
A52: 1 | B52: EX1123 | F52: Computer services | I52: 62 | J52: 33 | K52: 400 | L52: 440.16 | M52: 400 | N52: -40.16 | O52: 461.28768 | P52: 420 | Q52: -41.28768 | R52: 483.4294886 | S52: 440.16 | T52: -43.26948864 | U52: 461.28768
A53: 1 | B53: EX1124 | F53: Consultants: Business and advisory services | I53: 521 | J53: 861 | K53: 2732.995 | L53: 2909.73975 | M53: 2987.11975 | N53: 77.38 | O53: 3073.222295 | P53: 3156.346935 | Q53: 83.12464 | R53: 3246.055728 | S53: 3333.127751 | T53: 87.07202272 | U53: 3485.973154
A54: 1 | B54: EX1180 | F54: Infrastructure and planning services | I54: =SUM(I55:I57) -> 0 | J54: =SUM(J55:J57) -> 0 | K54: =SUM(K55:K57) -> 0 | L54: =SUM(L55:L57) -> 0 | M54: =SUM(M55:M57) -> 0 | N54: =SUM(M54-L54) -> 0 | O54: =SUM(O55:O57) -> 0 | P54: 0 | Q54: =SUM(P54-O54) -> 0 | R54: =SUM(R55:R57) -> 0 | S54: 0 | T54: 0 | U54: =SUM(U55:U57) -> 0
A55: 1 | B55: EX11801 | F55: Maintenance and repairs: Buildings: Consultants | I55: 0 | J55: 0 | K55: 0 | L55: 0 | M55: 0 | N55: =SUM(M55-L55) -> 0 | O55: 0 | P55: 0 | Q55: =SUM(P55-O55) -> 0 | R55: 0 | S55: 0 | T55: 0 | U55: 0
A56: 1 | B56: EX11802 | F56: Maintenance and repairs: Other fixed structures: Consultants | I56: 0 | J56: 0 | K56: 0 | L56: 0 | M56: 0 | N56: 0 | O56: 0 | P56: 0 | Q56: 0 | R56: 0 | S56: 0 | T56: 0 | U56: 0
A57: 1 | B57: EX11803 | F57: Other | I57: 0 | J57: 0 | K57: 0 | L57: 0 | M57: 0 | N57: 0 | O57: 0 | P57: 0 | Q57: 0 | R57: 0 | S57: 0 | T57: 0 | U57: 0
A58: 1 | B58: EX1164 | F58: Laboratory services | I58: 0 | J58: 0 | K58: 32.46 | L58: 33.921 | M58: 0 | N58: -33.921 | O58: 35.481 | P58: 0 | Q58: -35.481 | R58: 37.184 | S58: 0 | T58: -37.184 | U58: 0
A59: 1 | B59: EX1162 | F59: Legal services (G&S) | I59: 0 | J59: 0 | K59: 0 | L59: 0 | M59: 0 | N59: 0 | O59: 0 | P59: 0 | Q59: 0 | R59: 0 | S59: 0 | T59: 0 | U59: 0
A60: 1 | B60: EX1165 | F60: Science and technological services | I60: 0 | J60: 0 | K60: 0 | L60: 0 | M60: 0 | N60: 0 | O60: 0 | P60: 0 | Q60: 0 | R60: 0 | S60: 0 | T60: 0 | U60: 0
A61: 1 | B61: EX1125 | F61: Contractors | I61: =SUM(I62:I66,I72) -> 438635.1628 | J61: =SUM(J62:J66,J72) -> 304670.1079 | K61: =SUM(K62:K66,K72) -> 408022.4388 | L61: =SUM(L62:L66,L72) -> 430352.9381 | M61: =SUM(M62:M66,M72) -> 400268.7154 | N61: =SUM(M61-L61) -> -30084.22268 | O61: =SUM(O62:O66,O72) -> 462018.9186 | P61: 427675.8287 | Q61: =SUM(P61-O61) -> -34343.08985 | R61: =SUM(R62:R66,R72) -> 496330.958 | S61: 457197.2818 | T61: -39133.67616 | U61: =SUM(U62:U66,U72) -> 489205.0544
A62: 1 | B62: EX11251 | F62: Maintenance and repairs of other fixed structures | I62: 438635.1628 | J62: 303393.8895 | K62: 329863.3772 | L62: 416493.8637 | M62: 332371.541 | N62: -84122.32274 | O62: 447524.4555 | P62: 357467.4878 | Q62: -90056.96771 | R62: 481144.621 | S62: 384528.9352 | T62: -96615.68578 | U62: 413992.1881
A63: 1 | B63: EX11252 | F63: Maintenance and repairs of other machinery and equipment | I63: 0 | J63: 642.2183873 | K63: 12495.992 | L63: 13756.66995 | M63: 0 | N63: -13756.66995 | O63: 14385.91434 | P63: 0 | Q63: -14385.91434 | R63: 15071.2753 | S63: 0 | T63: -15071.2753 | U63: 0
A64: 1 | B64: EX11253 | F64: Maintenance and repairs of heritage buildings | I64: 0 | J64: 0 | K64: 0 | L64: 0 | M64: 0 | N64: 0 | O64: 0 | P64: 0 | Q64: 0 | R64: 0 | S64: 0 | T64: 0 | U64: 0
A65: 1 | B65: EX11254 | F65: Maintenance and repairs of other heritage fixed structures | I65: 0 | J65: 0 | K65: 0 | L65: 0 | M65: 0 | N65: 0 | O65: 0 | P65: 0 | Q65: 0 | R65: 0 | S65: 0 | T65: 0 | U65: 0
A66: 5 | B66: EX11255 | F66: South african social security agency payment contractors | I66: =SUM(I67:I71) -> 0 | J66: =SUM(J67:J71) -> 0 | K66: =SUM(K67:K71) -> 0 | L66: =SUM(L67:L71) -> 0 | M66: =SUM(M67:M71) -> 0 | N66: 0 | O66: =SUM(O67:O71) -> 0 | P66: 0 | Q66: 0 | R66: =SUM(R67:R71) -> 0 | S66: 0 | T66: 0 | U66: =SUM(U67:U71) -> 0
A67: 5 | B67: EX112551 | F67: SASSA 2 fees | I67: 0 | J67: 0 | K67: 0 | L67: 0 | M67: 0 | N67: =SUM(M67-L67) -> 0 | O67: 0 | P67: 0 | Q67: =SUM(P67-O67) -> 0 | R67: 0 | S67: 0 | T67: =SUM(S67-R67) -> 0 | U67: 0
A68: 5 | B68: EX112552 | F68: SASSA Bankcard fees | I68: 0 | J68: 0 | K68: 0 | L68: 0 | M68: 0 | N68: 0 | O68: 0 | P68: 0 | Q68: 0 | R68: 0 | S68: 0 | T68: 0 | U68: 0
A69: 5 | B69: EX112553 | F69: SASSA registration fees | I69: 0 | J69: 0 | K69: 0 | L69: 0 | M69: 0 | N69: 0 | O69: 0 | P69: 0 | Q69: 0 | R69: 0 | S69: 0 | T69: 0 | U69: 0
A70: 5 | B70: EX112554 | F70: SASSA beneficiary fees | I70: 0 | J70: 0 | K70: 0 | L70: 0 | M70: 0 | N70: 0 | O70: 0 | P70: 0 | Q70: 0 | R70: 0 | S70: 0 | T70: 0 | U70: 0
A71: 5 | B71: EX112555 | F71: SASSA help desk fees | I71: 0 | J71: 0 | K71: 0 | L71: 0 | M71: 0 | N71: 0 | O71: 0 | P71: 0 | Q71: 0 | R71: 0 | S71: 0 | T71: 0 | U71: 0
A72: 1 | B72: EX11256 | F72: Other | I72: 0 | J72: 634 | K72: 65663.06967 | L72: 102.4044772 | M72: 67897.17449 | N72: 67794.77001 | O72: 108.5487458 | P72: 70208.34094 | Q72: 70099.79219 | R72: 115.0616706 | S72: 72668.34659 | T72: 72553.28492 | U72: 75212.86633
A73: 1 | B73: EX1121 | F73: Agency and support/outsourced services | I73: 171.42528 | J73: 31.14864 | K73: 0 | L73: 0 | M73: 1.17184 | N73: 1.17184 | O73: 0 | P73: 1.230432 | Q73: 1.230432 | R73: 0 | S73: 1.289492736 | T73: 1.289492736 | U73: 1.351388387
A74: 5 | B74: EX11211 | F74: Of Which: Medical assessments | I74: 0 | J74: 0 | K74: 0 | L74: 0 | M74: 0 | N74: 0 | O74: 0 | P74: 0 | Q74: 0 | R74: 0 | S74: 0 | T74: 0 | U74: 0
A75: 1 | B75: EX1161 | F75: Entertainment | I75: 0 | J75: 0 | K75: 0 | L75: 0 | M75: 0 | N75: 0 | O75: 0 | P75: 0 | Q75: 0 | R75: 0 | S75: 0 | T75: 0 | U75: 0
A76: 1 | B76: EX1166 | F76: Fleet services (including government motor transport) | I76: 0 | J76: 0 | K76: 0 | L76: 0 | M76: 0 | N76: 0 | O76: 0 | P76: 0 | Q76: 0 | R76: 0 | S76: 0 | T76: 0 | U76: 0
A77: 1 | B77: EX1167 | F77: Housing | I77: 0 | J77: 0 | K77: 0 | L77: 0 | M77: 0 | N77: 0 | O77: 0 | P77: 0 | Q77: 0 | R77: 0 | S77: 0 | T77: 0 | U77: 0
A78: 1 | B78: EX1168 | F78: Inventory: Clothing material and accessories | I78: 0 | J78: 0 | K78: 0 | L78: 0 | M78: 0 | N78: 0 | O78: 0 | P78: 0 | Q78: 0 | R78: 0 | S78: 0 | T78: 0 | U78: 0
A79: 1 | B79: EX1169 | F79: Inventory: Farming supplies | I79: 0 | J79: 0 | K79: 0 | L79: 0 | M79: 0 | N79: 0 | O79: 0 | P79: 0 | Q79: 0 | R79: 0 | S79: 0 | T79: 0 | U79: 0
A80: 1 | B80: EX1170 | F80: Inventory: Food and food supplies | I80: 0 | J80: 0 | K80: 0 | L80: 0 | M80: 0 | N80: 0 | O80: 0 | P80: 0 | Q80: 0 | R80: 0 | S80: 0 | T80: 0 | U80: 0
A81: 1 | B81: EX1171 | F81: Inventory: Fuel, oil and gas | I81: 75852 | J81: 86019 | K81: 107581 | L81: 114268 | M81: 116362.9007 | N81: 2094.900739 | O81: 125695 | P81: 127999 | Q81: 2304 | R81: 138264 | S81: 140799 | T81: 2535 | U81: 154879
A82: 1 | B82: EX1172 | F82: Inventory: Learner and teacher support material | I82: 0 | J82: 0 | K82: 0 | L82: 0 | M82: 0 | N82: 0 | O82: 0 | P82: 0 | Q82: 0 | R82: 0 | S82: 0 | T82: 0 | U82: 0
A83: 1 | B83: EX1126 | F83: Inventory: Materials and supplies | I83: 9640549.705 | J83: 10061290.17 | K83: 11201048.73 | L83: 11703269.37 | M83: 11551886.54 | N83: -151382.8261 | O83: 12952884.43 | P83: 12664317.02 | Q83: -288567.4018 | R83: 14495645.39 | S83: 13911546.88 | T83: -584098.5126 | U83: 15413158.04
A84: 1 | B84: EX1173 | F84: Inventory: Medical supplies | I84: 0 | J84: 0 | K84: 0 | L84: 0 | M84: 0 | N84: 0 | O84: 0 | P84: 0 | Q84: 0 | R84: 0 | S84: 0 | T84: 0 | U84: 0
A85: 1 | B85: EX1174 | F85: Inventory: Medicine | I85: 0 | J85: 0 | K85: 0 | L85: 0 | M85: 0 | N85: 0 | O85: 0 | P85: 0 | Q85: 0 | R85: 0 | S85: 0 | T85: 0 | U85: 0
A86: 1 | B86: EX1175 | F86: Medsas inventory interface | I86: 0 | J86: 0 | K86: 0 | L86: 0 | M86: 0 | N86: 0 | O86: 0 | P86: 0 | Q86: 0 | R86: 0 | S86: 0 | T86: 0 | U86: 0
A87: 1 | B87: EX1176 | F87: Inventory: Other supplies | I87: 57735 | J87: 64718 | K87: 70708 | L87: 81445 | M87: 81445 | N87: 0 | O87: 87268 | P87: 87268 | Q87: 0 | R87: 93515 | S87: 93515 | T87: 0 | U87: 100373
A88: 1 | B88: EX1177 | F88: Consumable supplies | I88: 0 | J88: 20119.01179 | K88: 25620.59335 | L88: 21798.40224 | M88: 26491.69352 | N88: 4693.291285 | O88: 22689.95689 | P88: 27392.4111 | Q88: 4702.454214 | R88: 23617.97613 | S88: 28351.14549 | T88: 4733.169365 | U88: 29343.43558
A89: 1 | B89: EX1144 | F89: Consumables: Stationery, printing and office supplies | I89: 90 | J89: 274.43219 | K89: 430.1407024 | L89: 385.4881321 | M89: 396.7881862 | N89: 11.30005411 | O89: 404.4780046 | P89: 415.6270162 | Q89: 11.14901162 | R89: 426.8529373 | S89: 437.0122633 | T89: 10.15932596 | U89: 493.3856051
A90: 1 | B90: EX1127 | F90: Operating leases | I90: 62.1793 | J90: 2718.83387 | K90: 3677.930581 | L90: 3899.56951 | M90: 49515.28411 | N90: 45615.7146 | O90: 4122.024452 | P90: 52020.62609 | Q90: 47898.60163 | R90: 4357.504094 | S90: 54555.23906 | T90: 50197.73497 | U90: 57163.25579
A91: 1 | B91: EX1178 | F91: Rental and hiring | I91: 0 | J91: 21.4 | K91: 33 | L91: 57.18631813 | M91: 0 | N91: -57.18631813 | O91: 60.13463855 | P91: 0 | Q91: -60.13463855 | R91: 63.12174526 | S91: 0 | T91: -63.12174526 | U91: 0
A92: 1 | B92: EX1145 | F92: Property payments | I92: 121150 | J92: 128026 | K92: 171883 | L92: 183206 | M92: 183206 | N92: 0 | O92: 199695 | P92: 199695 | Q92: 0 | R92: 217668 | S92: 217668 | T92: 0 | U92: 237258
A93: 1 | B93: EX1179 | F93: Transport provided: Internal activities | I93: 0 | J93: 0 | K93: 0 | L93: 0 | M93: 0 | N93: 0 | O93: 0 | P93: 0 | Q93: 0 | R93: 0 | S93: 0 | T93: 0 | U93: 0
A94: 1 | B94: EX1131 | F94: Travel and subsistence | I94: 54941.92965 | J94: 975.8412591 | K94: 652.0212349 | L94: 1589.865804 | M94: 463.1519544 | N94: -1126.71385 | O94: 1676.165603 | P94: 507.2820543 | Q94: -1168.883549 | R94: 1770.310487 | S94: 556.7975313 | T94: -1213.512956 | U94: 603.590166
A95: 1 | B95: EX1130 | F95: Training and development | I95: 4650.75848 | J95: 1826 | K95: 678.5978566 | L95: 721.4414595 | M95: 2172.667969 | N95: 1451.22651 | O95: 759.978755 | P95: 2285.351456 | Q95: 1525.372701 | R95: 802.417447 | S95: 2400.200037 | T95: 1597.78259 | U95: 2513.953422
A96: 1 | B96: EX1132 | F96: Operating payments | I96: 720609.593 | J96: 1094793.546 | K96: 1361202.84 | L96: 1631773.506 | M96: 1469453.907 | N96: -162319.599 | O96: 1782893.104 | P96: 1562970.835 | Q96: -219922.2685 | R96: 1794959.278 | S96: 2414739.848 | T96: 619780.5699 | U96: 2937096.628
A97: 1 | B97: EX1146 | F97: Venues and facilities | I97: 0 | J97: 0 | K97: 0 | L97: 0 | M97: 0 | N97: 0 | O97: 0 | P97: 0 | Q97: 0 | R97: 0 | S97: 0 | T97: 0 | U97: 0
A98: 1 | B98: EX113 | F98: Depreciation | I98: 978390.6581 | J98: 896560.4701 | K98: 923469.2522 | L98: 1065988.805 | M98: 1053706.901 | N98: -12281.90434 | O98: 1212824.524 | P98: 1144275.245 | Q98: -68549.27904 | R98: 1378868.736 | S98: 1174793.509 | T98: -204075.227 | U98: 1356916.963
A99: 1 | B99: EX114 | F99: Losses from | I99: =SUM(I100:I101,I104) -> 740576 | J99: =SUM(J100:J101,J104) -> 415147 | K99: =SUM(K100:K101,K104) -> 91852 | L99: =SUM(L100:L101,L104) -> 99137 | M99: =SUM(M100:M101,M104) -> 99137 | N99: =SUM(M99-L99) -> 0 | O99: =SUM(O100:O101,O104) -> 109150 | P99: 109150 | Q99: =SUM(P99-O99) -> 0 | R99: =SUM(R100:R101,R104) -> 120162 | S99: 120162 | T99: =SUM(S99-R99) -> 0 | U99: =SUM(U100:U101,U104) -> 132290
A100: 1 | B100: EX1141 | F100: Sale of fixed assets | I100: 780 | J100: 0 | K100: 0 | L100: 0 | M100: 0 | N100: 0 | O100: 0 | P100: 0 | Q100: 0 | R100: 0 | S100: 0 | T100: 0 | U100: 0
A101: 1 | B101: EX1142 | F101: Impairments and adjustments to fair value | I101: =SUM(I102:I103) -> 739796 | J101: =SUM(J102:J103) -> 415147 | K101: =SUM(K102:K103) -> 91852 | L101: =SUM(L102:L103) -> 99137 | M101: =SUM(M102:M103) -> 99137 | N101: 0 | O101: =SUM(O102:O103) -> 109150 | P101: 109150 | Q101: 0 | R101: =SUM(R102:R103) -> 120162 | S101: 120162 | T101: 0 | U101: =SUM(U102:U103) -> 132290
A102: 1 | B102: EX11421 | F102: Adjustments to fair value of assets | I102: 0 | J102: 0 | K102: 0 | L102: 0 | M102: 0 | N102: 0 | O102: 0 | P102: 0 | Q102: 0 | R102: 0 | S102: 0 | T102: 0 | U102: 0
A103: 1 | B103: EX11422 | F103: Impairments to assets | I103: 739796 | J103: 415147 | K103: 91852 | L103: 99137 | M103: 99137 | N103: 0 | O103: 109150 | P103: 109150 | Q103: 0 | R103: 120162 | S103: 120162 | T103: 0 | U103: 132290
A104: 1 | B104: EX1143 | F104: Other | I104: 0 | J104: 0 | K104: 0 | L104: 0 | M104: 0 | N104: 0 | O104: 0 | P104: 0 | Q104: 0 | R104: 0 | S104: 0 | T104: 0 | U104: 0
A105: 1 | B105: EX115 | F105: Interest, dividends and rent on land | I105: =SUM(I106:I108) -> 45416 | J105: =SUM(J106:J108) -> 46799 | K105: =SUM(K106:K108) -> 47121 | L105: =SUM(L106:L108) -> 37481 | M105: =SUM(M106:M108) -> 37481 | N105: 0 | O105: =SUM(O106:O108) -> 41658 | P105: 41658 | Q105: 0 | R105: =SUM(R106:R108) -> 46933 | S105: 144583 | T105: 97650 | U105: =SUM(U106:U108) -> 149430
A106: 1 | B106: EX1151 | F106: Interest | I106: 45416 | J106: 46799 | K106: 47121 | L106: 37481 | M106: 37481 | N106: 0 | O106: 41658 | P106: 41658 | Q106: 0 | R106: 46933 | S106: 144583 | T106: 97650 | U106: 149430
A107: 1 | B107: EX1152 | F107: Dividends | I107: 0 | J107: 0 | K107: 0 | L107: 0 | M107: 0 | N107: 0 | O107: 0 | P107: 0 | Q107: 0 | R107: 0 | S107: 0 | T107: 0 | U107: 0
A108: 1 | B108: EX1153 | F108: Rent on land | I108: 0 | J108: 0 | K108: 0 | L108: 0 | M108: 0 | N108: 0 | O108: 0 | P108: 0 | Q108: 0 | R108: 0 | S108: 0 | T108: 0 | U108: 0
A109: 1 | B109: EX12 | F109: Transfers and subsidies | I109: =SUM(I110,I121,I132:I135) -> 0 | J109: =SUM(J110,J121,J132:J135) -> 0 | K109: =SUM(K110,K121,K132:K135) -> 0 | L109: =SUM(L110,L121,L132:L135) -> 0 | M109: =SUM(M110,M121,M132:M135) -> 0 | N109: 0 | O109: =SUM(O110,O121,O132:O135) -> 0 | P109: 0 | Q109: 0 | R109: =SUM(R110,R121,R132:R135) -> 0 | S109: 0 | T109: 0 | U109: =SUM(U110,U121,U132:U135) -> 0
A110: 2 | B110: EX121 | F110: Employer Grant (SETAs only) | I110: =SUM(I111,I117,I120) -> 0 | J110: =SUM(J111,J117,J120) -> 0 | K110: =SUM(K111,K117,K120) -> 0 | L110: =SUM(L111,L117,L120) -> 0 | M110: =SUM(M111,M117,M120) -> 0 | N110: 0 | O110: =SUM(O111,O117,O120) -> 0 | P110: 0 | Q110: 0 | R110: =SUM(R111,R117,R120) -> 0 | S110: 0 | T110: 0 | U110: =SUM(U111,U117,U120) -> 0
A111: 1 | B111: EX122 | F111: Other government units | I111: =SUM(I112:I116) -> 0 | J111: =SUM(J112:J116) -> 0 | K111: =SUM(K112:K116) -> 0 | L111: =SUM(L112:L116) -> 0 | M111: =SUM(M112:M116) -> 0 | N111: 0 | O111: =SUM(O112:O116) -> 0 | P111: 0 | Q111: 0 | R111: =SUM(R112:R116) -> 0 | S111: 0 | T111: 0 | U111: =SUM(U112:U116) -> 0
A112: 1 | B112: EX1221 | F112: National government | I112: 0 | J112: 0 | K112: 0 | L112: 0 | M112: 0 | N112: 0 | O112: 0 | P112: 0 | Q112: 0 | R112: 0 | S112: 0 | T112: 0 | U112: 0
A113: 1 | B113: EX1222 | F113: Departmental agencies and accounts | I113: 0 | J113: 0 | K113: 0 | L113: 0 | M113: 0 | N113: 0 | O113: 0 | P113: 0 | Q113: 0 | R113: 0 | S113: 0 | T113: 0 | U113: 0
A114: 1 | B114: EX1223 | F114: Provinces | I114: 0 | J114: 0 | K114: 0 | L114: 0 | M114: 0 | N114: 0 | O114: 0 | P114: 0 | Q114: 0 | R114: 0 | S114: 0 | T114: 0 | U114: 0
A115: 1 | B115: EX1224 | F115: Municipalities | I115: 0 | J115: 0 | K115: 0 | L115: 0 | M115: 0 | N115: 0 | O115: 0 | P115: 0 | Q115: 0 | R115: 0 | S115: 0 | T115: 0 | U115: 0
A116: 2 | B116: EX1225 | F116: National Skills Fund | I116: 0 | J116: 0 | K116: 0 | L116: 0 | M116: 0 | N116: 0 | O116: 0 | P116: 0 | Q116: 0 | R116: 0 | S116: 0 | T116: 0 | U116: 0
A117: 1 | B117: EX123 | F117: Public corporations and private enterprises (subsidies and other transfers) | I117: =SUM(I118:I119) -> 0 | J117: =SUM(J118:J119) -> 0 | K117: =SUM(K118:K119) -> 0 | L117: =SUM(L118:L119) -> 0 | M117: =SUM(M118:M119) -> 0 | N117: 0 | O117: =SUM(O118:O119) -> 0 | P117: 0 | Q117: 0 | R117: =SUM(R118:R119) -> 0 | S117: 0 | T117: 0 | U117: =SUM(U118:U119) -> 0
A118: 1 | B118: EX1231 | F118: Public corporations | I118: 0 | J118: 0 | K118: 0 | L118: 0 | M118: 0 | N118: 0 | O118: 0 | P118: 0 | Q118: 0 | R118: 0 | S118: 0 | T118: 0 | U118: 0
A119: 1 | B119: EX1232 | F119: Private enterprises | I119: 0 | J119: 0 | K119: 0 | L119: 0 | M119: 0 | N119: 0 | O119: 0 | P119: 0 | Q119: 0 | R119: 0 | S119: 0 | T119: 0 | U119: 0
A120: 2 | B120: EX124 | F120: Households and non government units | I120: 0 | J120: 0 | K120: 0 | L120: 0 | M120: 0 | N120: 0 | O120: 0 | P120: 0 | Q120: 0 | R120: 0 | S120: 0 | T120: 0 | U120: 0
A121: 2 | B121: EX125 | F121: Discretionary Grant (SETAs only) | I121: =SUM(I122,I128,I131) -> 0 | J121: =SUM(J122,J128,J131) -> 0 | K121: =SUM(K122,K128,K131) -> 0 | L121: =SUM(L122,L128,L131) -> 0 | M121: =SUM(M122,M128,M131) -> 0 | N121: 0 | O121: =SUM(O122,O128,O131) -> 0 | P121: 0 | Q121: 0 | R121: =SUM(R122,R128,R131) -> 0 | S121: 0 | T121: 0 | U121: =SUM(U122,U128,U131) -> 0
A122: 2 | B122: EX126 | F122: Other government units | I122: =SUM(I123:I127) -> 0 | J122: =SUM(J123:J127) -> 0 | K122: =SUM(K123:K127) -> 0 | L122: =SUM(L123:L127) -> 0 | M122: =SUM(M123:M127) -> 0 | N122: 0 | O122: =SUM(O123:O127) -> 0 | P122: 0 | Q122: 0 | R122: =SUM(R123:R127) -> 0 | S122: 0 | T122: 0 | U122: =SUM(U123:U127) -> 0
A123: 2 | B123: EX1261 | F123: National government | I123: 0 | J123: 0 | K123: 0 | L123: 0 | M123: 0 | N123: 0 | O123: 0 | P123: 0 | Q123: 0 | R123: 0 | S123: 0 | T123: 0 | U123: 0
A124: 2 | B124: EX1262 | F124: Departmental agencies and accounts | I124: 0 | J124: 0 | K124: 0 | L124: 0 | M124: 0 | N124: 0 | O124: 0 | P124: 0 | Q124: 0 | R124: 0 | S124: 0 | T124: 0 | U124: 0
A125: 2 | B125: EX1263 | F125: Provinces | I125: 0 | J125: 0 | K125: 0 | L125: 0 | M125: 0 | N125: 0 | O125: 0 | P125: 0 | Q125: 0 | R125: 0 | S125: 0 | T125: 0 | U125: 0
A126: 2 | B126: EX1264 | F126: Municipalities | I126: 0 | J126: 0 | K126: 0 | L126: 0 | M126: 0 | N126: 0 | O126: 0 | P126: 0 | Q126: 0 | R126: 0 | S126: 0 | T126: 0 | U126: 0
A127: 2 | B127: EX1265 | F127: National Skills Fund | I127: 0 | J127: 0 | K127: 0 | L127: 0 | M127: 0 | N127: 0 | O127: 0 | P127: 0 | Q127: 0 | R127: 0 | S127: 0 | T127: 0 | U127: 0
A128: 2 | B128: EX127 | F128: Public corporations and private enterprises (subsidies and other transfers) | I128: =SUM(I129:I130) -> 0 | J128: =SUM(J129:J130) -> 0 | K128: =SUM(K129:K130) -> 0 | L128: =SUM(L129:L130) -> 0 | M128: =SUM(M129:M130) -> 0 | N128: 0 | O128: =SUM(O129:O130) -> 0 | P128: 0 | Q128: 0 | R128: =SUM(R129:R130) -> 0 | S128: 0 | T128: 0 | U128: =SUM(U129:U130) -> 0
A129: 2 | B129: EX1271 | F129: Public corporations | I129: 0 | J129: 0 | K129: 0 | L129: 0 | M129: 0 | N129: =SUM(M129-L129) -> 0 | O129: 0 | P129: 0 | Q129: =SUM(P129-O129) -> 0 | R129: 0 | S129: 0 | T129: =SUM(S129-R129) -> 0 | U129: 0
A130: 2 | B130: EX1272 | F130: Private enterprises | I130: 0 | J130: 0 | K130: 0 | L130: 0 | M130: 0 | N130: 0 | O130: 0 | P130: 0 | Q130: 0 | R130: 0 | S130: 0 | T130: 0 | U130: 0
A131: 2 | B131: EX128 | F131: Households and non government units | I131: 0 | J131: 0 | K131: 0 | L131: 0 | M131: 0 | N131: 0 | O131: 0 | P131: 0 | Q131: 0 | R131: 0 | S131: 0 | T131: 0 | U131: 0
A132: 1 | B132: EX129 | F132: Higher education institutions | I132: 0 | J132: 0 | K132: 0 | L132: 0 | M132: 0 | N132: 0 | O132: 0 | P132: 0 | Q132: 0 | R132: 0 | S132: 0 | T132: 0 | U132: 0
A133: 1 | B133: EX130 | F133: Foreign governments and international organisations | I133: 0 | J133: 0 | K133: 0 | L133: 0 | M133: 0 | N133: 0 | O133: 0 | P133: 0 | Q133: 0 | R133: 0 | S133: 0 | T133: 0 | U133: 0
A134: 1 | B134: EX131 | F134: Non-profit institutions | I134: 0 | J134: 0 | K134: 0 | L134: 0 | M134: 0 | N134: 0 | O134: 0 | P134: 0 | Q134: 0 | R134: 0 | S134: 0 | T134: 0 | U134: 0
A135: 1 | B135: EX132 | F135: Households | I135: =SUM(I136:I137) -> 0 | J135: =SUM(J136:J137) -> 0 | K135: =SUM(K136:K137) -> 0 | L135: =SUM(L136:L137) -> 0 | M135: =SUM(M136:M137) -> 0 | N135: =SUM(M135-L135) -> 0 | O135: =SUM(O136:O137) -> 0 | P135: 0 | Q135: 0 | R135: =SUM(R136:R137) -> 0 | S135: 0 | T135: 0 | U135: =SUM(U136:U137) -> 0
A136: 1 | B136: EX1301 | F136: Social benefits | I136: 0 | J136: 0 | K136: 0 | L136: 0 | M136: 0 | N136: 0 | O136: 0 | P136: 0 | Q136: 0 | R136: 0 | S136: 0 | T136: 0 | U136: 0
A137: 1 | B137: EX1302 | F137: Other transfers to households | I137: 0 | J137: 0 | K137: 0 | L137: 0 | M137: 0 | N137: 0 | O137: 0 | P137: 0 | Q137: 0 | R137: 0 | S137: 0 | T137: 0 | U137: 0
A138: 1 | B138: EX13 | F138: Tax payment | I138: 0 | J138: 0 | K138: 0 | L138: 0 | M138: 0 | N138: 0 | O138: 0 | P138: 0 | Q138: 0 | R138: 0 | S138: 0 | T138: 0 | U138: 0
A139: 1 | B139: EX14 | F139: Outside shareholders Interest | I139: 0 | J139: 0 | K139: 0 | L139: 0 | M139: 0 | N139: 0 | O139: 0 | P139: 0 | Q139: 0 | R139: 0 | S139: 0 | T139: 0 | U139: 0
A140: 1 | B140: EX15 | F140: Total Expenditure | I140: =SUM(I39,I109,I138:I139) -> 14676328.31 | J140: =SUM(J39,J109,J138:J139) -> 14827153.37 | K140: =SUM(K39,K109,K138:K139) -> 16160502.94 | L140: =SUM(L39,L109,L138:L139) -> 17619259.38 | M140: =SUM(M39,M109,M138:M139) -> 17109962.67 | N140: -509296.7026 | O140: =SUM(O39,O109,O138:O139) -> 19420777.99 | P140: =SUM(P39,P109,P138:P139) -> 18616543.04 | Q140: -804234.9548 | R140: =SUM(R39,R109,R138:R139) -> 21404659.4 | S140: =SUM(S39,S109,S138:S139) -> 21139907.05 | T140: -264752.3429 | U140: =SUM(U39,U109,U138:U139) -> 23520744.67
A141: 1
A142: 1 | F142: Objective less Expenditure | I142: =ROUND(IF(I37-I140>0,IF(I37-I140<1,0,I37-I140),I37-I140),0) -> 0 | J142: 0 | K142: -1 | L142: -1 | M142: 0 | N142: =ROUND(IF(N37-N140>0,IF(N37-N140<1,0,N37-N140),N37-N140),0) -> 1 | O142: -1 | P142: -1 | Q142: 0 | R142: -1 | S142: -1 | T142: 0 | U142: 0
A143: 1

Sheet 3
F6: PE No | G6: =Settings!O2 -> PE153
F7: Entity name | G7: =Settings!$E$2 -> ZWater Boards Consolidation
F9: Performance and operations information
A10: ItemCat | B10: Item code | C10: Hide/unhide | F10: Activity/Output/Outcome/Efficiency Indicator | G10: Priorities | I10: =MyYearM3 -> 2019/20 | J10: =MyYearM2 -> 2020/21 | K10: =MyYearM1 -> 2021/22 | L10: =MyYear0 -> 2022/23 | M10: =MyYearP1 -> 2023/24 | N10: =MyYearP2 -> 2024/25 | O10: =MyYearP3 -> 2025/26 | P10: Related Objectives | Q10: Add to 'Performance Indicators' Sheet | R10: Comments
A11: 1 | F11: 0 | G11: 0 | H11: 0 | I11: 0 | J11: 0 | K11: 0 | L11: 0 | M11: 0 | N11: 0 | O11: 0 | P11: 0 | Q11: 0 | R11: 0 | S11: 0 | T11: 0
A12: 1 | F12: 0 | G12: 0 | H12: 0 | I12: 0 | J12: 0 | K12: 0 | L12: 0 | M12: 0 | N12: 0 | O12: 0 | P12: 0 | Q12: 0 | R12: 0 | S12: 0 | T12: 0
A13: 1 | F13: 0 | G13: 0 | H13: 0 | I13: 0 | J13: 0 | K13: 0 | L13: 0 | M13: 0 | N13: 0 | O13: 0 | P13: 0 | Q13: 0 | R13: 0 | S13: 0 | T13: 0
A14: 1 | F14: 0 | G14: 0 | H14: 0 | I14: 0 | J14: 0 | K14: 0 | L14: 0 | M14: 0 | N14: 0 | O14: 0 | P14: 0 | Q14: 0 | R14: 0 | S14: 0 | T14: 0
A15: 1 | F15: 0 | G15: 0 | H15: 0 | I15: 0 | J15: 0 | K15: 0 | L15: 0 | M15: 0 | N15: 0 | O15: 0 | P15: 0 | Q15: 0 | R15: 0 | S15: 0 | T15: 0
A16: 1 | F16: 0 | G16: 0 | H16: 0 | I16: 0 | J16: 0 | K16: 0 | L16: 0 | M16: 0 | N16: 0 | O16: 0 | P16: 0 | Q16: 0 | R16: 0 | S16: 0 | T16: 0
A17: 1 | F17: 0 | G17: 0 | H17: 0 | I17: 0 | J17: 0 | K17: 0 | L17: 0 | M17: 0 | N17: 0 | O17: 0 | P17: 0 | Q17: 0 | R17: 0 | S17: 0 | T17: 0
A18: 1 | F18: 0 | G18: 0 | H18: 0 | I18: 0 | J18: 0 | K18: 0 | L18: 0 | M18: 0 | N18: 0 | O18: 0 | P18: 0 | Q18: 0 | R18: 0 | S18: 0 | T18: 0
A19: 1 | F19: 0 | G19: 0 | H19: 0 | I19: 0 | J19: 0 | K19: 0 | L19: 0 | M19: 0 | N19: 0 | O19: 0 | P19: 0 | Q19: 0 | R19: 0 | S19: 0 | T19: 0
A20: 1 | F20: 0 | G20: 0 | H20: 0 | I20: 0 | J20: 0 | K20: 0 | L20: 0 | M20: 0 | N20: 0 | O20: 0 | P20: 0 | Q20: 0 | R20: 0 | S20: 0 | T20: 0
A21: 1 | F21: 0 | G21: 0 | H21: 0 | I21: 0 | J21: 0 | K21: 0 | L21: 0 | M21: 0 | N21: 0 | O21: 0 | P21: 0 | Q21: 0 | R21: 0 | S21: 0 | T21: 0
A22: 1 | F22: 0 | G22: 0 | H22: 0 | I22: 0 | J22: 0 | K22: 0 | L22: 0 | M22: 0 | N22: 0 | O22: 0 | P22: 0 | Q22: 0 | R22: 0 | S22: 0 | T22: 0
A23: 1 | F23: 0 | G23: 0 | H23: 0 | I23: 0 | J23: 0 | K23: 0 | L23: 0 | M23: 0 | N23: 0 | O23: 0 | P23: 0 | Q23: 0 | R23: 0 | S23: 0 | T23: 0
A24: 1 | F24: 0 | G24: 0 | H24: 0 | I24: 0 | J24: 0 | K24: 0 | L24: 0 | M24: 0 | N24: 0 | O24: 0 | P24: 0 | Q24: 0 | R24: 0 | S24: 0 | T24: 0
A25: 1 | F25: 0 | G25: 0 | H25: 0 | I25: 0 | J25: 0 | K25: 0 | L25: 0 | M25: 0 | N25: 0 | O25: 0 | P25: 0 | Q25: 0 | R25: 0 | S25: 0 | T25: 0
A26: 1 | F26: Notes:
A27: 1 | F27: Performance indicators are an explanation of objectives performance.
A28: 1 | F28: 1. They are specific measurements that track progress towards achieving the goals and objectives of an institution.
A29: 1 | F29: 2. Institutions should use performance indicators in the 2021/22 Annual Performance Plans and those in the 2022 ENE.
A30: 1 | F30: 3. Institutions should also indicate instances where targets are not affected by budget baseline reprioritisation.
A31: 1
A32: 1 | I32: =MyYearM3 -> 2019/20 | J32: =MyYearM2 -> 2020/21 | K32: =MyYearM1 -> 2021/22 | L32: =MyYear0 -> 2022/23 | O32: =MyYearP1 -> 2023/24 | R32: =MyYearP2 -> 2024/25 | U32: =MyYearP3 -> 2025/26
A33: 1 | F33: Expenses | I33: =Hist_year3RestatedAudited -> Audited outcome | J33: =Hist_year2RestatedAudited -> Audited outcome | K33: =Hist_year1Audited -> Audited outcome | L33: =Cur_YearBudgEst -> Budget estimate | M33: =Cur_YearApprovedBudg -> Approved budget | N33: =Cur_YearChangeFrRevBudg -> Changes from budget estimate | O33: =MTEF1BudgEst -> Budget estimate | P33: =MTEF1RevBudgEst -> Revised budget estimate | Q33: =MTEF1_ChangeFrBudgEst -> Changes from budget estimate | R33: =MTEF2BudgEst -> Budget estimate | S33: =MTEF2RevBudgEst -> Revised budget estimate | T33: =MTEF2_ChangeFrBudgEst -> Changes from budget estimate | U33: =MTEF3PlanBudgetEst -> Planning budget estimate
A34: 1
A35: 1 | F35: Rand thousand
A36: 1 | F36: Objective/Activity
A37: 1 | F37: Bulk activities | I37: 600516.8284 | J37: 893742.2953 | K37: 974052.1112 | L37: 1063188.899 | M37: 1012854.843 | N37: =SUM(M37-L37) -> -50334.05624 | O37: 1130731.087 | P37: 1076969.181 | Q37: =SUM(P37-O37) -> -53761.90505 | R37: 1242768.598 | S37: 1132087.093 | T37: =SUM(S37-R37) -> -110681.5046 | U37: 1190500.388
A38: 1 | F38: Economic classification
A39: 1 | B39: EX11 | F39: Current payments | I39: =SUM(I40,I43,I98:I99,I105) -> 600516.8081 | J39: =SUM(J40,J43,J98:J99,J105) -> 893741.967 | K39: =SUM(K40,K43,K98:K99,K105) -> 974054.0152 | L39: =SUM(L40,L43,L98:L99,L105) -> 1063188.982 | M39: =SUM(M40,M43,M98:M99,M105) -> 1012854.773 | N39: =SUM(M39-L39) -> -50334.20965 | O39: =SUM(O40,O43,O98:O99,O105) -> 1130730.504 | P39: 1076968.595 | Q39: =SUM(P39-O39) -> -53761.90953 | R39: =SUM(R40,R43,R98:R99,R105) -> 1242768.364 | S39: 1132086.454 | T39: =SUM(S39-R39) -> -110681.9105 | U39: =SUM(U40,U43,U98:U99,U105) -> 1190499.357
A40: 1 | B40: EX111 | F40: Compensation of employees | I40: =SUM(I41:I42) -> 276101.4186 | J40: =SUM(J41:J42) -> 202996.7292 | K40: =SUM(K41:K42) -> 183069.1232 | L40: =SUM(L41:L42) -> 217109.2971 | M40: =SUM(M41:M42) -> 190143.2875 | N40: =SUM(M40-L40) -> -26966.00963 | O40: =SUM(O41:O42) -> 204986.3069 | P40: 204213.5481 | Q40: =SUM(P40-O40) -> -772.7588139 | R40: =SUM(R41:R42) -> 225965.954 | S40: 218036.5979 | T40: =SUM(S40-R40) -> -7929.356124 | U40: =SUM(U41:U42) -> 230128.4276
A41: 1 | B41: EX1111 | F41: Salaries and wages | I41: 269119.2586 | J41: 194880.8192 | K41: 174496.1941 | L41: 208443.6071 | M41: 182056.4437 | N41: =SUM(M41-L41) -> -26387.16343 | O41: 195753.6369 | P41: 195752.3245 | Q41: =SUM(P41-O41) -> -1.312412101 | R41: 216205.594 | S41: 209104.881 | T41: =SUM(S41-R41) -> -7100.71302 | U41: 220705.2295
A42: 1 | B42: EX1112 | F42: Social contributions | I42: 6982.16 | J42: 8115.91 | K42: 8572.929114 | L42: 8665.69 | M42: 8086.843797 | N42: =SUM(M42-L42) -> -578.8462031 | O42: 9232.67 | P42: 8461.223598 | Q42: =SUM(P42-O42) -> -771.4464018 | R42: 9760.36 | S42: 8931.716896 | T42: =SUM(S42-R42) -> -828.6431038 | U42: 9423.198125
A43: 1 | B43: EX112 | F43: Goods and services | I43: =SUM(I45:I54,I58:I61,I73,I75:I97) -> 267108.3012 | J43: =SUM(J45:J54,J58:J61,J73,J75:J97) -> 187910.6853 | K43: 292565.6371 | L43: 322944.2383 | M43: 281015.6547 | N43: -41928.5836 | O43: 369149.6576 | P43: 297013.4711 | Q43: -72136.18645 | R43: 482314.8367 | S43: 358462.7565 | T43: -123852.0802 | U43: 379787.3261 | V43: =SUM(V45:V54,V58:V61,V73,V75:V97) -> 0
A44: 1 | B44: EX000 | F44: Of which 1
A45: 1 | B45: EX1133 | F45: Administrative fees | I45: 2 | J45: 649.29894 | K45: 678.5173923 | L45: 712.4432619 | M45: 712.4432619 | N45: =SUM(M45-L45) -> 0 | O45: 755.1898576 | P45: 755.1898576 | Q45: =SUM(P45-O45) -> 0 | R45: 800.5012491 | S45: 800.5012491 | T45: =SUM(S45-R45) -> 0 | U45: 836.363705
A46: 1 | B46: EX1134 | F46: Advertising | I46: 0 | J46: 68.34201 | K46: 71.41740045 | L46: 74.98827047 | M46: 74.98827047 | N46: 0 | O46: 79.4875667 | P46: 79.4875667 | Q46: 0 | R46: 84.2568207 | S46: 84.2568207 | T46: 0 | U46: 88.03152627
A47: 1 | B47: EX1135 | F47: Minor assets | I47: 0 | J47: 0 | K47: 0 | L47: 0 | M47: 0 | N47: 0 | O47: 0 | P47: 0 | Q47: 0 | R47: 0 | S47: 0 | T47: 0 | U47: 0
A48: 1 | B48: EX1136 | F48: Audit costs: External | I48: 6081.78344 | J48: 7894.56566 | K48: 6786.821115 | L48: 7126.16217 | M48: 7126.16217 | N48: 0 | O48: 7553.731901 | P48: 7553.731901 | Q48: 0 | R48: 8006.955815 | S48: 8006.955815 | T48: 0 | U48: 8365.667435
A49: 1 | B49: EX1139 | F49: Bursaries: Employees | I49: 0 | J49: 0 | K49: 0 | L49: 0 | M49: 0 | N49: 0 | O49: 0 | P49: 0 | Q49: 0 | R49: 0 | S49: 0 | T49: 0 | U49: 0
A50: 1 | B50: EX1140 | F50: Catering: Internal activities | I50: 28.00118 | J50: 0 | K50: 11.96 | L50: 12.499 | M50: 0 | N50: -12.499 | O50: 13 | P50: 0 | Q50: -13 | R50: 13.7 | S50: 0 | T50: -13.7 | U50: 0
A51: 1 | B51: EX1122 | F51: Communication (G&S) | I51: 0 | J51: 13.568 | K51: 15.177 | L51: 15.8 | M51: 667.0033 | N51: 651.2033 | O51: 16.5 | P51: 700.353465 | Q51: 683.853465 | R51: 17 | S51: 733.9704313 | T51: 716.9704313 | U51: 769.201012
A52: 1 | B52: EX1123 | F52: Computer services | I52: 182.9607979 | J52: 386.73058 | K52: 2912.133456 | L52: 3057.740129 | M52: 3057.740129 | N52: 0 | O52: 3241.204537 | P52: 3241.204537 | Q52: 0 | R52: 3435.676809 | S52: 3435.676809 | T52: 0 | U52: 3589.59513
A53: 1 | B53: EX1124 | F53: Consultants: Business and advisory services | I53: 3657.939891 | J53: 1910.58628 | K53: 1860 | L53: 2043.72 | M53: 933.61724 | N53: -1110.10276 | O53: 2141.79456 | P53: 980.298102 | Q53: -1161.496458 | R53: 2244.432699 | S53: 1027.352411 | T53: -1217.080288 | U53: 1076.665327
A54: 1 | B54: EX1180 | F54: Infrastructure and planning services | I54: =SUM(I55:I57) -> 0 | J54: =SUM(J55:J57) -> 0 | K54: =SUM(K55:K57) -> 0 | L54: =SUM(L55:L57) -> 0 | M54: =SUM(M55:M57) -> 0 | N54: =SUM(M54-L54) -> 0 | O54: =SUM(O55:O57) -> 0 | P54: 0 | Q54: =SUM(P54-O54) -> 0 | R54: =SUM(R55:R57) -> 0 | S54: 0 | T54: 0 | U54: =SUM(U55:U57) -> 0
A55: 1 | B55: EX11801 | F55: Maintenance and repairs: Buildings: Consultants | I55: 0 | J55: 0 | K55: 0 | L55: 0 | M55: 0 | N55: =SUM(M55-L55) -> 0 | O55: 0 | P55: 0 | Q55: =SUM(P55-O55) -> 0 | R55: 0 | S55: 0 | T55: 0 | U55: 0
A56: 1 | B56: EX11802 | F56: Maintenance and repairs: Other fixed structures: Consultants | I56: 0 | J56: 0 | K56: 0 | L56: 0 | M56: 0 | N56: 0 | O56: 0 | P56: 0 | Q56: 0 | R56: 0 | S56: 0 | T56: 0 | U56: 0
A57: 1 | B57: EX11803 | F57: Other | I57: 0 | J57: 0 | K57: 0 | L57: 0 | M57: 0 | N57: 0 | O57: 0 | P57: 0 | Q57: 0 | R57: 0 | S57: 0 | T57: 0 | U57: 0
A58: 1 | B58: EX1164 | F58: Laboratory services | I58: 0 | J58: 0 | K58: 0 | L58: 0 | M58: 0 | N58: 0 | O58: 0 | P58: 0 | Q58: 0 | R58: 0 | S58: 0 | T58: 0 | U58: 0
A59: 1 | B59: EX1162 | F59: Legal services (G&S) | I59: 106.80376 | J59: 0 | K59: 0 | L59: 0 | M59: 0 | N59: 0 | O59: 0 | P59: 0 | Q59: 0 | R59: 0 | S59: 0 | T59: 0 | U59: 0
A60: 1 | B60: EX1165 | F60: Science and technological services | I60: 444.266 | J60: 0 | K60: 0 | L60: 0 | M60: 0 | N60: 0 | O60: 0 | P60: 0 | Q60: 0 | R60: 0 | S60: 0 | T60: 0 | U60: 0
A61: 1 | B61: EX1125 | F61: Contractors | I61: =SUM(I62:I66,I72) -> 98809.59577 | J61: =SUM(J62:J66,J72) -> 42094.92712 | K61: =SUM(K62:K66,K72) -> 88655.42009 | L61: =SUM(L62:L66,L72) -> 95285.76059 | M61: =SUM(M62:M66,M72) -> 63393.83288 | N61: =SUM(M61-L61) -> -31891.92771 | O61: =SUM(O62:O66,O72) -> 100572.7644 | P61: 67819.82625 | Q61: =SUM(P61-O61) -> -32752.93812 | R61: =SUM(R62:R66,R72) -> 106439.4851 | S61: 72485.81798 | T61: -33953.66708 | U61: =SUM(U62:U66,U72) -> 77305.242
A62: 1 | B62: EX11251 | F62: Maintenance and repairs of other fixed structures | I62: 98809.59577 | J62: 40114.92712 | K62: 54083.78973 | L62: 59156.18916 | M62: 62928.28245 | N62: 3772.093292 | O62: 62774.71392 | P62: 67326.3428 | Q62: 4551.628884 | R62: 66821.2066 | S62: 71962.72552 | T62: 5141.518923 | U62: 76758.715
A63: 1 | B63: EX11252 | F63: Maintenance and repairs of other machinery and equipment | I63: 0 | J63: 0 | K63: 34281.20958 | L63: 35824.62961 | M63: 160.6086082 | N63: -35664.021 | O63: 37474.81212 | P63: 170.2451246 | Q63: -37304.567 | R63: 39275.64583 | S63: 180.4598321 | T63: -39095.186 | U63: 188.5444326
A64: 1 | B64: EX11253 | F64: Maintenance and repairs of heritage buildings | I64: 0 | J64: 0 | K64: 0 | L64: 0 | M64: 0 | N64: 0 | O64: 0 | P64: 0 | Q64: 0 | R64: 0 | S64: 0 | T64: 0 | U64: 0
A65: 1 | B65: EX11254 | F65: Maintenance and repairs of other heritage fixed structures | I65: 0 | J65: 0 | K65: 0 | L65: 0 | M65: 0 | N65: 0 | O65: 0 | P65: 0 | Q65: 0 | R65: 0 | S65: 0 | T65: 0 | U65: 0
A66: 5 | B66: EX11255 | F66: South african social security agency payment contractors | I66: =SUM(I67:I71) -> 0 | J66: =SUM(J67:J71) -> 0 | K66: =SUM(K67:K71) -> 0 | L66: =SUM(L67:L71) -> 0 | M66: =SUM(M67:M71) -> 0 | N66: 0 | O66: =SUM(O67:O71) -> 0 | P66: 0 | Q66: 0 | R66: =SUM(R67:R71) -> 0 | S66: 0 | T66: 0 | U66: =SUM(U67:U71) -> 0
A67: 5 | B67: EX112551 | F67: SASSA 3 fees | I67: 0 | J67: 0 | K67: 0 | L67: 0 | M67: 0 | N67: =SUM(M67-L67) -> 0 | O67: 0 | P67: 0 | Q67: =SUM(P67-O67) -> 0 | R67: 0 | S67: 0 | T67: =SUM(S67-R67) -> 0 | U67: 0
A68: 5 | B68: EX112552 | F68: SASSA Bankcard fees | I68: 0 | J68: 0 | K68: 0 | L68: 0 | M68: 0 | N68: 0 | O68: 0 | P68: 0 | Q68: 0 | R68: 0 | S68: 0 | T68: 0 | U68: 0
A69: 5 | B69: EX112553 | F69: SASSA registration fees | I69: 0 | J69: 0 | K69: 0 | L69: 0 | M69: 0 | N69: 0 | O69: 0 | P69: 0 | Q69: 0 | R69: 0 | S69: 0 | T69: 0 | U69: 0
A70: 5 | B70: EX112554 | F70: SASSA beneficiary fees | I70: 0 | J70: 0 | K70: 0 | L70: 0 | M70: 0 | N70: 0 | O70: 0 | P70: 0 | Q70: 0 | R70: 0 | S70: 0 | T70: 0 | U70: 0
A71: 5 | B71: EX112555 | F71: SASSA help desk fees | I71: 0 | J71: 0 | K71: 0 | L71: 0 | M71: 0 | N71: 0 | O71: 0 | P71: 0 | Q71: 0 | R71: 0 | S71: 0 | T71: 0 | U71: 0
A72: 1 | B72: EX11256 | F72: Other | I72: 0 | J72: 1980 | K72: 290.4207779 | L72: 304.9418168 | M72: 304.9418168 | N72: 0 | O72: 323.2383258 | P72: 323.2383258 | Q72: 0 | R72: 342.6326254 | S72: 342.6326254 | T72: 0 | U72: 357.982567
